Workbook

Sheet Instructions
B2: =CONCATENATE(dms_Sector," ",dms_Segment," ", "Network Service Provider") -> Electricity Transmission Network Service Provider
B3: =IF(dms_Model="Reset","Regulatory Proposal RIN Template","Annual Reporting RIN") -> Regulatory Proposal RIN Template
B4: =CONCATENATE("This template is to be used by ",dms_TradingNameFull," to fulfil its reporting obligations to the AER.") -> This template is to be used by AusNet Transmission Group Pty Limited to fulfil its reporting obligations to the AER.
B5: INSTRUCTIONS
B6: GENERAL | C6: Complete the Business & other details worksheet before entering data or values in any other worksheets. The Business & other details worksheet is linked to other worksheets within the workbook and automatically generates certain column headings and conditional formatting.
B9: CONFIDENTIAL INFORMATION | C9: Please identify all confidential data by shading the input cell as per the colour code on each worksheet.
B11: RESPONSES | C11: Please return two (2) files to the AER: 1. A confidential version which must contain a complete set of all responses with confidential information marked using the Mark selection CONFIDENTIAL macro and which has been completed using the locked template file provided by the AER. 2. A public version with confidential information either removed completely or aggregated in some form together with writtten consent to disclose the public version of the response. Use the drop down box on the Business and other details worksheet to identify the file as either confidential ('consolidated') or public.
B13: AMENDMENTS | C13: If an NSP wishes to correct data previously submitted to the AER it should resubmit that data using the original completed submission as the starting point. Please make any necessary changes to the data. Data that is not being amended should be left unchanged. NSPs must identify the reason for the amendments in the Amendment Reason box on the Business and other details worksheet. NSPs may provide further details regarding any amendments in the Amendments worksheet. .
C14: Please identify all amended data by shading the input cell as per the colour code on each worksheet.
C15: Please resubmit two (2) files - a confidential version and a public version of the amended submission to the AER
B17: UNITS OF MEASURE | C17: All amounts are to be unrounded and reported on a one for one basis: that is 1000 is to be entered as '1000'. Applicable units of measure may be identified in the table column headings or row descriptors.
B19: NAVIGATION | C19: Many tables in the worksheets have been "grouped" to allow for easy navigation. To ungroup or group data use the outline symbols in the left margin (for Row groupings) or above the columns (for column groupings).

Sheet CONTENTS
C1: =INDEX(dms_Worksheet_List,MATCH(dms_Model,dms_Model_List)) -> REGULATORY REPORTING STATEMENT
C2: =INDEX(dms_TradingNameFull_List,MATCH(dms_TradingName,dms_TradingName_List)) -> AusNet Transmission Group Pty Limited
C3: =CONCATENATE("REGULATORY PERIOD FROM ", FRCP_y1," TO ",dms_MultiYear_FinalYear_Result) -> REGULATORY PERIOD FROM 2027-28 TO 2031-32
C6: CONTENTS
C8: TEMPLATE | D8: FINAL RIN JULY 2025
C10: SUBMISSION | D10: Business & other details
C12: EXPENDITURE | D12: 2.1 Expenditure summary
D13: 2.2 Repex
D14: 2.3 Augex (b)
D15: 2.5 Connections
D16: 2.6 Non-network
D17: 2.10 Overheads
D18: 2.14 Forecast price changes
D19: 2.16 Opex Summary
D20: 2.17 Step Changes
C22: ECONOMIC BENCHMARKING | D22: 3.1 Revenue
D23: 3.2 Operating expenditure
D24: 3.3 Assets (RAB)
D25: 3.4 Operational data
D26: 3.5 Physical assets
D27: 3.7 Operating environment
C29: OTHER | D29: 7.1 Policies and Procedures
D30: 7.2 Contingent projects
D31: 7.3 Obligations
D32: 7.4 Shared Assets
D33: 7.5 Large Projects
D34: 7.9 STPIS
C36: CAPEX | D36: 8.2 Capex

Sheet Business & other details
V1: =INDEX(dms_Worksheet_List,MATCH(dms_Model,dms_Model_List)) -> REGULATORY REPORTING STATEMENT
V2: =INDEX(dms_TradingNameFull_List,MATCH(dms_TradingName,dms_TradingName_List)) -> AusNet Transmission Group Pty Limited
V3: =CONCATENATE("REGULATORY PERIOD FROM ", FRCP_y1," TO ",dms_MultiYear_FinalYear_Result) -> REGULATORY PERIOD FROM 2027-28 TO 2031-32
V4: BUSINESS & OTHER DETAILS
V6: INSTRUCTIONS
V7: Complete the following business details regulatory template before entering data or values in any other regulatory template. This regulatory template is linked to other cells within the spreadsheet and automatically generates column headings and conditional formatting to distinguish business specific input and non-input cells.
Q9: SUBMISSION PARTICULARS INPUT SHEET
V12: ENTITY DETAILS
V14: Business Name
V16: Short name | AL16: AusNet (T)
V17: ACN/ABN | AL17: =INDEX(dms_ABN_List,MATCH(dms_TradingName,dms_TradingName_List)) -> 78079798173
V21: Business Address | BQ21: Postal Address
V23: Address 1 | BI23: Address 1
V24: Address 2 | BI24: Address 2
V25: Suburb | BI25: Suburb
V26: State | AL26: VIC | AV26: Post code | BI26: State | BQ26: VIC | CA26: Post code
BA28: `
V30: Contact Names
V32: Name | BI32: Name
V33: Phone | BI33: Phone
V34: Email | BI34: Email
Q39: REGULATORY CONTROL PERIODS
Z42: Forthcoming period | AL42: 2027-28 | AU42: =FRCP_y2 -> 2028-29 | BD42: =FRCP_y3 -> 2029-30 | BM42: =FRCP_y4 -> 2030-31 | BV42: =FRCP_y5 -> 2031-32
AL43: =FRCP_y6 -> 2032-33 | AU43: =FRCP_y7 -> 2033-34 | BD43: =FRCP_y8 -> 2034-35 | BM43: =FRCP_y9 -> 2035-36 | BV43: =FRCP_y10 -> 2036-37
AL44: =FRCP_y11 -> 2037-38 | AU44: =FRCP_y12 -> 2038-39 | BD44: =FRCP_y13 -> 2039-40 | BM44: =FRCP_y14 -> 2040-41 | BV44: =FRCP_y15 -> 2041-42
X46: RESETS | Z46: Current period | AL46: =CRCP_y1 -> 2022-23 | AU46: =CRCP_y2 -> 2023-24 | BD46: =CRCP_y3 -> 2024-25 | BM46: =CRCP_y4 -> 2025-26 | BV46: =CRCP_y5 -> 2026-27
AL47: =CRCP_y6 -> 2027-28 | AU47: =CRCP_y7 -> 2028-29 | BD47: =CRCP_y8 -> 2029-30 | BM47: =CRCP_y9 -> 2030-31 | BV47: =CRCP_y10 -> 2031-32
AL48: =CRCP_y11 -> 2032-33 | AU48: =CRCP_y12 -> 2033-34 | BD48: =CRCP_y13 -> 2034-35 | BM48: =CRCP_y14 -> 2035-36 | BV48: =CRCP_y15 -> 2036-37
Z50: Previous period | AL50: =PRCP_y1 -> 2017-18 | AU50: =PRCP_y2 -> 2018-19 | BD50: =PRCP_y3 -> 2019-20 | BM50: =PRCP_y4 -> 2020-21 | BV50: =PRCP_y5 -> 2021-22
AL51: =PRCP_y6 -> 2022-23 | AU51: =PRCP_y7 -> 2023-24 | BD51: =PRCP_y8 -> 2024-25 | BM51: =PRCP_y9 -> 2025-26 | BV51: =PRCP_y10 -> 2026-27
AL52: =PRCP_y11 -> 2027-28 | AU52: =PRCP_y12 -> 2028-29 | BD52: =PRCP_y13 -> 2029-30 | BM52: =PRCP_y14 -> 2030-31 | BV52: =PRCP_y15 -> 2031-32
Z54: Commencing year | AL54: 2022-23
X55: ANNUAL RINS
Z56: Final year | AL56: 2022-23
Q60: SUBMISSION DETAILS
Z62: RIN type | AL62: =INDIRECT(dms_Model) -> Regulatory Reporting (Reset)
Z64: Source | AL64: Regulatory proposal
X66: THIS FILE | Z66: Data Quality | AL66: Consolidated
Z68: Confidentiality Status | AL68: Public
Z70: Amended RIN Amendment Reason | AL70: .
Z74: Submission Date | AL74: dd/mm/yy | BD74: Please enter date this file submitted to AER

Sheet 2.1 Expenditure summary
B1: =(LOOKUP(dms_Model,dms_Model_List,dms_Worksheet_List)) -> REGULATORY REPORTING STATEMENT | F1: #25C6FF | H1: Protected (SOCI)
B2: =INDEX(dms_TradingNameFull_List,MATCH(dms_TradingName,dms_TradingName_List)) -> AusNet Transmission Group Pty Limited | F2: #FFCCCC | H2: Confidential
B3: =CONCATENATE("REGULATORY PERIOD FROM ", FRCP_y1," TO ",dms_MultiYear_FinalYear_Result) -> REGULATORY PERIOD FROM 2027-28 TO 2031-32 | F3: 12.5% Grey | H3: Amended
B4: 2.1 - EXPENDITURE SUMMARY AND RECONCILIATION | F4: #FFCCCC & 12.5% Grey | H4: Amended Confidential
B6: There are three tables on this worksheet. Each has been grouped for ease of navigation. See the Instructions sheet on how to group or ungroup tables.
B8: 2.1.1 - PRESCRIBED TRANSMISSION SERVICES CAPEX (as incurred)
C9: EXPENDITURE
C10: =CONCATENATE("Forecast ($0's. real ",dms_DollarReal,")") -> Forecast ($0's. real March 2027)
C11: =dms_y4 -> 2025-26 | D11: =dms_y5 -> 2026-27 | E11: =dms_y6 -> 2027-28 | F11: =dms_y7 -> 2028-29 | G11: =dms_y8 -> 2029-30 | H11: =dms_y9 -> 2030-31 | I11: =dms_y10 -> 2031-32
B12: Replacement expenditure | C12: =SUM('2.2 Repex'!D58:D66) -> 209249232.5 | D12: =SUM('2.2 Repex'!E58:E66) -> 290413843.8 | E12: =SUM('2.2 Repex'!F58:F66) -> 524025442.9 | F12: =SUM('2.2 Repex'!G58:G66) -> 533549316.1 | G12: =SUM('2.2 Repex'!H58:H66) -> 386235768.3 | H12: =SUM('2.2 Repex'!I58:I66) -> 323720365.3 | I12: =SUM('2.2 Repex'!J58:J66) -> 258600394.8
B13: Connections | C13: =SUM('2.5 Connections'!C13:C63) -> 0 | D13: =SUM('2.5 Connections'!D13:D63) -> 0 | E13: =SUM('2.5 Connections'!E13:E63) -> 0 | F13: =SUM('2.5 Connections'!F13:F63) -> 0 | G13: =SUM('2.5 Connections'!G13:G63) -> 0 | H13: =SUM('2.5 Connections'!H13:H63) -> 0 | I13: =SUM('2.5 Connections'!I13:I63) -> 0
B14: Augmentation Expenditure | C14: =SUM('2.3 Augex (b)'!C10:C12) -> 0 | D14: =SUM('2.3 Augex (b)'!D10:D12) -> 0 | E14: =SUM('2.3 Augex (b)'!E10:E12) -> 0 | F14: =SUM('2.3 Augex (b)'!F10:F12) -> 0 | G14: =SUM('2.3 Augex (b)'!G10:G12) -> 0 | H14: =SUM('2.3 Augex (b)'!H10:H12) -> 0 | I14: =SUM('2.3 Augex (b)'!I10:I12) -> 0
B15: ICT | C15: ='2.6 Non-network'!D62 -> 24612250.48 | D15: ='2.6 Non-network'!E62 -> 52457750.75 | E15: ='2.6 Non-network'!F62 -> 51380560.99 | F15: ='2.6 Non-network'!G62 -> 58081256.67 | G15: ='2.6 Non-network'!H62 -> 45201294.79 | H15: ='2.6 Non-network'!I62 -> 51656580.48 | I15: ='2.6 Non-network'!J62 -> 49772351.15
B16: Property | C16: ='2.6 Non-network'!D70 -> 991354.952 | D16: ='2.6 Non-network'!E70 -> 13778952 | E16: ='2.6 Non-network'!F70 -> 21117310.43 | F16: ='2.6 Non-network'!G70 -> 7372468.213 | G16: ='2.6 Non-network'!H70 -> 683869.6108 | H16: ='2.6 Non-network'!I70 -> 13600343.85 | I16: ='2.6 Non-network'!J70 -> 589895.0011
B17: Fleet | C17: =SUM('2.6 Non-network'!D64:D68) -> 599337.067 | D17: =SUM('2.6 Non-network'!E64:E68) -> 1267509 | E17: =SUM('2.6 Non-network'!F64:F68) -> 1263166.646 | F17: =SUM('2.6 Non-network'!G64:G68) -> 2807325.435 | G17: =SUM('2.6 Non-network'!H64:H68) -> 3645777.774 | H17: =SUM('2.6 Non-network'!I64:I68) -> 3209545.097 | I17: =SUM('2.6 Non-network'!J64:J68) -> 1176838.452
B18: Other Non-network | C18: =SUM('2.6 Non-network'!D72:D83) -> 1295369.555 | D18: =SUM('2.6 Non-network'!E72:E83) -> 3000000 | E18: =SUM('2.6 Non-network'!F72:F83) -> 4074030.098 | F18: =SUM('2.6 Non-network'!G72:G83) -> 5007670.574 | G18: =SUM('2.6 Non-network'!H72:H83) -> 5085464.332 | H18: =SUM('2.6 Non-network'!I72:I83) -> 2063044.431 | I18: =SUM('2.6 Non-network'!J72:J83) -> 2127422.503
B19: Capitalised network overheads | C19: ='2.10 Overheads'!D13 -> 11017887.76 | D19: ='2.10 Overheads'!E13 -> 15284939.25 | E19: ='2.10 Overheads'!F13 -> 16832334.54 | F19: ='2.10 Overheads'!G13 -> 17210775.05 | G19: ='2.10 Overheads'!H13 -> 14335307.82 | H19: ='2.10 Overheads'!I13 -> 13167459.13 | I19: ='2.10 Overheads'!J13 -> 11918555.59
B20: Capitalised corporate overheads | C20: ='2.10 Overheads'!D26+'2.10 Overheads'!D39 -> 1295381.604 | D20: ='2.10 Overheads'!E26+'2.10 Overheads'!E39 -> 2760934.25 | E20: ='2.10 Overheads'!F26+'2.10 Overheads'!F39 -> 1958885.51 | F20: ='2.10 Overheads'!G26+'2.10 Overheads'!G39 -> 2109890.527 | G20: ='2.10 Overheads'!H26+'2.10 Overheads'!H39 -> 1881259.444 | H20: ='2.10 Overheads'!I26+'2.10 Overheads'!I39 -> 2028387.897 | I20: ='2.10 Overheads'!J26+'2.10 Overheads'!J39 -> 2011600.837
B21: Total gross capex | C21: =SUM(C12:C20) -> 249060813.9 | D21: =SUM(D12:D20) -> 378963929.1 | E21: 620651731.1 | F21: 626138702.5 | G21: 457068742 | H21: 409445726.1 | I21: 326197058.4
B23: 2.1.2 - PRESCRIBED TRANSMISSION SERVICES OPEX
C24: EXPENDITURE
C25: =CONCATENATE("Forecast ($0's. real ",dms_DollarReal,")") -> Forecast ($0's. real March 2027)
C26: =dms_y4 -> 2025-26 | D26: =dms_y5 -> 2026-27 | E26: =dms_y6 -> 2027-28 | F26: =dms_y7 -> 2028-29 | G26: =dms_y8 -> 2029-30 | H26: =dms_y9 -> 2030-31 | I26: =dms_y10 -> 2031-32
B27: Vegetation management | C27: 7438700.741 | D27: 7236030.665
B28: Maintenance | C28: 33168617.6 | D28: 32384770.62
B29: Non-network | C29: 49372333.76 | D29: 50151542.78
B30: Network overheads | C30: 14467029.52 | D30: 14464043.59
B31: Corporate overheads | C31: 305077295.1 | D31: 299850796.7
B32: Other | C32: 613418.5419 | D32: 614918.825
B33: Total | C33: =SUM(C27:C32) -> 410137395.3 | D33: =SUM(D27:D32) -> 404702103.2 | E33: ='2.16 Opex Summary'!H22 -> 427344260.7 | F33: ='2.16 Opex Summary'!I22 -> 429482594.1 | G33: ='2.16 Opex Summary'!J22 -> 428430558.5 | H33: ='2.16 Opex Summary'!K22 -> 433439937.7 | I33: ='2.16 Opex Summary'!L22 -> 437740206.3
B36: 2.1.8 - PRESCRIBED TRANSMISSION SERVICES CAPITALISED OVERHEADS
C37: EXPENDITURE
C38: =CONCATENATE("Forecast ($0's. real ",dms_DollarReal,")") -> Forecast ($0's. real March 2027)
C39: =dms_y4 -> 2025-26 | D39: =dms_y5 -> 2026-27 | E39: =dms_y6 -> 2027-28 | F39: =dms_y7 -> 2028-29 | G39: =dms_y8 -> 2029-30 | H39: =dms_y9 -> 2030-31 | I39: =dms_y10 -> 2031-32
B40: Replacement expenditure | C40: ='2.10 Overheads'!D13 -> 11017887.76 | D40: ='2.10 Overheads'!E13 -> 15284939.25 | E40: ='2.10 Overheads'!F13 -> 16832334.54 | F40: ='2.10 Overheads'!G13 -> 17210775.05 | G40: ='2.10 Overheads'!H13 -> 14335307.82 | H40: ='2.10 Overheads'!I13 -> 13167459.13 | I40: ='2.10 Overheads'!J13 -> 11918555.59
B41: Connections | C41: 0 | D41: 0 | E41: 0 | F41: 0 | G41: 0 | H41: 0 | I41: 0
B42: Augmentation Expenditure | C42: 0 | D42: 0 | E42: 0 | F42: 0 | G42: 0 | H42: 0 | I42: 0
B43: Non-network | C43: ='2.10 Overheads'!D26 -> 1295381.604 | D43: ='2.10 Overheads'!E26 -> 2760934.25 | E43: ='2.10 Overheads'!F26 -> 1958885.51 | F43: ='2.10 Overheads'!G26 -> 2109890.527 | G43: ='2.10 Overheads'!H26 -> 1881259.444 | H43: ='2.10 Overheads'!I26 -> 2028387.897 | I43: ='2.10 Overheads'!J26 -> 2011600.837
B44: Total | C44: =SUM(C40:C43) -> 12313269.36 | D44: 18045873.5 | E44: 18791220.05 | F44: 19320665.57 | G44: 16216567.26 | H44: 15195847.03 | I44: 13930156.43

Sheet 2.2 Repex
B1: =(LOOKUP(dms_Model,dms_Model_List,dms_Worksheet_List)) -> REGULATORY REPORTING STATEMENT | G1: #25C6FF | I1: Protected (SOCI)
B2: =INDEX(dms_TradingNameFull_List,MATCH(dms_TradingName,dms_TradingName_List)) -> AusNet Transmission Group Pty Limited | G2: #FFCCCC | I2: Confidential
B3: =CONCATENATE("REGULATORY PERIOD FROM ", FRCP_y1," TO ",dms_MultiYear_FinalYear_Result) -> REGULATORY PERIOD FROM 2027-28 TO 2031-32 | G3: 12.5% Grey | I3: Amended
B4: 2.2 REPEX | G4: #FFCCCC & 12.5% Grey | I4: Amended Confidential
B6: There is ONE table (with three sub-tables) on this worksheet. See the Instructions sheet on how to group or ungroup tables.
B8: 2.2.1 - REPLACEMENT EXPENDITURE, VOLUMES AND ASSET FAILURES BY ASSET CATEGORY
B9: EXPENDITURE AS COMMISSIONED
D10: EXPENDITURE
D11: =CONCATENATE("Forecast ($0's. real ",dms_DollarReal,")") -> Forecast ($0's. real March 2027)
B12: ASSET GROUP | D12: =dms_y4 -> 2025-26 | E12: =dms_y5 -> 2026-27 | F12: =dms_y6 -> 2027-28 | G12: =dms_y7 -> 2028-29 | H12: =dms_y8 -> 2029-30 | I12: =dms_y9 -> 2030-31 | J12: =dms_y10 -> 2031-32
B13: TRANSMISSION TOWERS | C13: $ | D13: 30661911 | E13: 51627766 | F13: ='[1]Output| RIN'!C28*10^6 -> 14520024.21 | G13: ='[1]Output| RIN'!D28*10^6 -> 14624766.54 | H13: ='[1]Output| RIN'!E28*10^6 -> 14801715.17 | I13: ='[1]Output| RIN'!F28*10^6 -> 14953355.35 | J13: ='[1]Output| RIN'!G28*10^6 -> 15133461.74
B14: TRANSMISSION TOWER SUPPORT STRUCTURES | C14: $ | D14: 12724118 | E14: 19546893 | F14: ='[1]Output| RIN'!C29*10^6 -> 121092017.8 | G14: ='[1]Output| RIN'!D29*10^6 -> 127060595.4 | H14: ='[1]Output| RIN'!E29*10^6 -> 32775709.59 | I14: ='[1]Output| RIN'!F29*10^6 -> 33111489.23 | J14: ='[1]Output| RIN'!G29*10^6 -> 33510302.11
B15: CONDUCTORS | C15: $ | D15: 14915655 | E15: 26094753 | F15: ='[1]Output| RIN'!C30*10^6 -> 22586257.22 | G15: ='[1]Output| RIN'!D30*10^6 -> 19485640.93 | H15: ='[1]Output| RIN'!E30*10^6 -> 15409869.75 | I15: ='[1]Output| RIN'!F30*10^6 -> 26285020.12 | J15: ='[1]Output| RIN'!G30*10^6 -> 21202125.51
B16: TRANSMISSION CABLES | C16: $ | D16: 485619 | E16: 5560000 | F16: ='[1]Output| RIN'!C31*10^6 -> 7840092.981 | G16: ='[1]Output| RIN'!D31*10^6 -> 25209261.76 | H16: ='[1]Output| RIN'!E31*10^6 -> 20819084.27 | I16: ='[1]Output| RIN'!F31*10^6 -> 9201884.363 | J16: ='[1]Output| RIN'!G31*10^6 -> 0
B17: SUBSTATION SWITCHBAYS | C17: $ | D17: 60607384 | E17: 71066709 | F17: ='[1]Output| RIN'!C32*10^6 -> 69966956.44 | G17: ='[1]Output| RIN'!D32*10^6 -> 66680169.04 | H17: ='[1]Output| RIN'!E32*10^6 -> 39010777.64 | I17: ='[1]Output| RIN'!F32*10^6 -> 138098212.5 | J17: ='[1]Output| RIN'!G32*10^6 -> 72887204.12
B18: SUBSTATION POWER TRANSFORMERS | C18: $ | D18: 53217378 | E18: 91913065 | F18: ='[1]Output| RIN'!C33*10^6 -> 104821308.9 | G18: ='[1]Output| RIN'!D33*10^6 -> 206360994.4 | H18: ='[1]Output| RIN'!E33*10^6 -> 47696910.94 | I18: ='[1]Output| RIN'!F33*10^6 -> 58989423.1 | J18: ='[1]Output| RIN'!G33*10^6 -> 55387731.31
B19: SUBSTATION REACTIVE PLANT | C19: $ | D19: 899023 | E19: 1321201 | F19: ='[1]Output| RIN'!C34*10^6 -> 0 | G19: ='[1]Output| RIN'!D34*10^6 -> 5045127.877 | H19: ='[1]Output| RIN'!E34*10^6 -> 19744772.19 | I19: ='[1]Output| RIN'!F34*10^6 -> 15532849.69 | J19: ='[1]Output| RIN'!G34*10^6 -> 6430612.453
B20: SCADA, NETWORK CONTROL AND PROTECTION SYSTEMS | C20: $ | D20: 37114182 | E20: 53303213 | F20: ='[1]Output| RIN'!C35*10^6 -> 64827647.28 | G20: ='[1]Output| RIN'!D35*10^6 -> 44720525.3 | H20: ='[1]Output| RIN'!E35*10^6 -> 36262415.77 | I20: ='[1]Output| RIN'!F35*10^6 -> 54864689.99 | J20: ='[1]Output| RIN'!G35*10^6 -> 41474405.44
B21: OTHER | C21: $ | D21: 36932632 | E21: 52414157 | F21: ='[1]Output| RIN'!C36*10^6 -> 89297755.86 | G21: ='[1]Output| RIN'!D36*10^6 -> 74970116.59 | H21: ='[1]Output| RIN'!E36*10^6 -> 56080735.03 | I21: ='[1]Output| RIN'!F36*10^6 -> 115325334.8 | J21: ='[1]Output| RIN'!G36*10^6 -> 63090187.05
B24: ASSET REPLACEMENTS
D25: VOLUMES
D26: (0's)
B27: ASSET GROUP | D27: =dms_y4 -> 2025-26 | E27: =dms_y5 -> 2026-27 | F27: =dms_y6 -> 2027-28 | G27: =dms_y7 -> 2028-29 | H27: =dms_y8 -> 2029-30 | I27: =dms_y9 -> 2030-31 | J27: =dms_y10 -> 2031-32
B28: TRANSMISSION TOWERS | C28: number of assets | D28: 3 | E28: 3 | F28: 4 | G28: 4 | H28: 4 | I28: 4 | J28: 5
B29: TRANSMISSION TOWER SUPPORT STRUCTURES | C29: number of assets | F29: 311 | G29: 310 | H29: 310 | I29: 310 | J29: 310
B30: CONDUCTORS | C30: km | F30: 58 | G30: 59 | H30: 60 | I30: 57.253 | J30: 57.253
B31: TRANSMISSION CABLES | C31: km | F31: 0 | G31: 0 | H31: 0 | I31: 0 | J31: 0
B32: SUBSTATION SWITCHBAYS | C32: number of assets | D32: 44 | E32: 73 | F32: 151 | G32: 157 | H32: 191 | I32: 159 | J32: 38
B33: SUBSTATION POWER TRANSFORMERS | C33: number of assets | D33: 2 | E33: 9 | F33: 25 | G33: 44 | H33: 25 | I33: 112 | J33: 26
B34: SUBSTATION REACTIVE PLANT | C34: number of assets | G34: 1
B35: SCADA, NETWORK CONTROL AND PROTECTION SYSTEMS | C35: number of assets | E35: 6 | F35: 152 | G35: 122 | H35: 210 | I35: 174 | J35: 107
B36: OTHER | C36: number of assets | F36: 384 | G36: 396 | H36: 342 | I36: 345 | J36: 331
B39: ASSET FAILURES
D40: VOLUMES
D41: (0's)
B42: ASSET GROUP | D42: =dms_y4 -> 2025-26 | E42: =dms_y5 -> 2026-27 | F42: =dms_y6 -> 2027-28 | G42: =dms_y7 -> 2028-29 | H42: =dms_y8 -> 2029-30 | I42: =dms_y9 -> 2030-31 | J42: =dms_y10 -> 2031-32
B43: TRANSMISSION TOWERS | C43: number of assets | D43: 0 | E43: 0 | F43: 0 | G43: 0 | H43: 0 | I43: 0 | J43: 0
B44: TRANSMISSION TOWER SUPPORT STRUCTURES | C44: number of assets | D44: 0 | E44: 0 | F44: 0 | G44: 0 | H44: 0 | I44: 0 | J44: 0
B45: CONDUCTORS | C45: km | D45: 0 | E45: 0 | F45: 0 | G45: 0 | H45: 0 | I45: 0 | J45: 0
B46: TRANSMISSION CABLES | C46: km | D46: 0 | E46: 0 | F46: 0 | G46: 0 | H46: 0 | I46: 0 | J46: 0
B47: SUBSTATION SWITCHBAYS | C47: number of assets | D47: 0 | E47: 0 | F47: 0 | G47: 0 | H47: 0 | I47: 0 | J47: 0
B48: SUBSTATION POWER TRANSFORMERS | C48: number of assets | D48: 0 | E48: 0 | F48: 0 | G48: 0 | H48: 0 | I48: 0 | J48: 0
B49: SUBSTATION REACTIVE PLANT | C49: number of assets | D49: 0 | E49: 0 | F49: 0 | G49: 0 | H49: 0 | I49: 0 | J49: 0
B50: SCADA, NETWORK CONTROL AND PROTECTION SYSTEMS | C50: number of assets | D50: 0 | E50: 0 | F50: 0 | G50: 0 | H50: 0 | I50: 0 | J50: 0
B51: OTHER | C51: number of assets | D51: 0 | E51: 0 | F51: 0 | G51: 0 | H51: 0 | I51: 0 | J51: 0
B54: EXPENDITURE AS INCURRED
D55: EXPENDITURE
D56: =CONCATENATE("Forecast ($0's. real ",dms_DollarReal,")") -> Forecast ($0's. real March 2027)
B57: ASSET GROUP | D57: =dms_y4 -> 2025-26 | E57: =dms_y5 -> 2026-27 | F57: =dms_y6 -> 2027-28 | G57: =dms_y7 -> 2028-29 | H57: =dms_y8 -> 2029-30 | I57: =dms_y9 -> 2030-31 | J57: =dms_y10 -> 2031-32
B58: TRANSMISSION TOWERS | C58: $ | D58: 29128815.45 | E58: 49046377.7 | F58: ='[1]Output| RIN'!C43*10^6 -> 14068138.5 | G58: ='[1]Output| RIN'!D43*10^6 -> 14167755.27 | H58: ='[1]Output| RIN'!E43*10^6 -> 14272003.58 | I58: ='[1]Output| RIN'!F43*10^6 -> 14368894.65 | J58: ='[1]Output| RIN'!G43*10^6 -> 14466709.91
B59: TRANSMISSION TOWER SUPPORT STRUCTURES | C59: $ | D59: 12087912.1 | E59: 18569548.35 | F59: ='[1]Output| RIN'!C44*10^6 -> 117323446 | G59: ='[1]Output| RIN'!D44*10^6 -> 123090062 | H59: ='[1]Output| RIN'!E44*10^6 -> 31602759.48 | I59: ='[1]Output| RIN'!F44*10^6 -> 31817307.16 | J59: ='[1]Output| RIN'!G44*10^6 -> 32033901.3
B60: CONDUCTORS | C60: $ | D60: 22316812.9 | E60: 9010323.45 | F60: ='[1]Output| RIN'!C45*10^6 -> 24395545.48 | G60: ='[1]Output| RIN'!D45*10^6 -> 22321369.3 | H60: ='[1]Output| RIN'!E45*10^6 -> 21172080.43 | I60: ='[1]Output| RIN'!F45*10^6 -> 19909411.36 | J60: ='[1]Output| RIN'!G45*10^6 -> 17392792.11
B61: TRANSMISSION CABLES | C61: $ | D61: 461338.05 | E61: 5282000 | F61: ='[1]Output| RIN'!C46*10^6 -> 7596097.103 | G61: ='[1]Output| RIN'!D46*10^6 -> 24421494.2 | H61: ='[1]Output| RIN'!E46*10^6 -> 20074028.02 | I61: ='[1]Output| RIN'!F46*10^6 -> 8842223.29 | J61: ='[1]Output| RIN'!G46*10^6 -> 0
B62: SUBSTATION SWITCHBAYS | C62: $ | D62: 39183404.55 | E62: 50259839.3 | F62: ='[1]Output| RIN'!C47*10^6 -> 76056720.76 | G62: ='[1]Output| RIN'!D47*10^6 -> 76493838.52 | H62: ='[1]Output| RIN'!E47*10^6 -> 75512970.88 | I62: ='[1]Output| RIN'!F47*10^6 -> 82049233.38 | J62: ='[1]Output| RIN'!G47*10^6 -> 68956301.3
B63: SUBSTATION POWER TRANSFORMERS | C63: $ | D63: 36831072.5 | E63: 76086570.65 | F63: ='[1]Output| RIN'!C48*10^6 -> 128881934.6 | G63: ='[1]Output| RIN'!D48*10^6 -> 140186876.7 | H63: ='[1]Output| RIN'!E48*10^6 -> 77280527.28 | I63: ='[1]Output| RIN'!F48*10^6 -> 37764337.11 | J63: ='[1]Output| RIN'!G48*10^6 -> 21798417.27
B64: SUBSTATION REACTIVE PLANT | C64: $ | D64: 854071.85 | E64: 1255140.95 | F64: ='[1]Output| RIN'!C49*10^6 -> 0 | G64: ='[1]Output| RIN'!D49*10^6 -> 4887472.008 | H64: ='[1]Output| RIN'!E49*10^6 -> 19038162.54 | I64: ='[1]Output| RIN'!F49*10^6 -> 14925739.11 | J64: ='[1]Output| RIN'!G49*10^6 -> 6147291.777
B65: SCADA, NETWORK CONTROL AND PROTECTION SYSTEMS | C65: $ | D65: 32986861.4 | E65: 42033457.75 | F65: ='[1]Output| RIN'!C50*10^6 -> 65196235.57 | G65: ='[1]Output| RIN'!D50*10^6 -> 46124125.96 | H65: ='[1]Output| RIN'!E50*10^6 -> 45429825.88 | I65: ='[1]Output| RIN'!F50*10^6 -> 41801362.23 | J65: ='[1]Output| RIN'!G50*10^6 -> 36729426.84
B66: OTHER | C66: $ | D66: 35398943.7 | E66: 38870585.7 | F66: ='[1]Output| RIN'!C51*10^6 -> 90507324.82 | G66: ='[1]Output| RIN'!D51*10^6 -> 81856322.05 | H66: ='[1]Output| RIN'!E51*10^6 -> 81853410.16 | I66: ='[1]Output| RIN'!F51*10^6 -> 72241856.98 | J66: ='[1]Output| RIN'!G51*10^6 -> 61075554.31

Sheet 2.3 Augex (b)
B1: =(LOOKUP(dms_Model,dms_Model_List,dms_Worksheet_List)) -> REGULATORY REPORTING STATEMENT | F1: #25C6FF | H1: Protected (SOCI)
B2: =INDEX(dms_TradingNameFull_List,MATCH(dms_TradingName,dms_TradingName_List)) -> AusNet Transmission Group Pty Limited | F2: #FFCCCC | H2: Confidential
B3: =CONCATENATE("REGULATORY PERIOD FROM ", FRCP_y1," TO ",dms_MultiYear_FinalYear_Result) -> REGULATORY PERIOD FROM 2027-28 TO 2031-32 | F3: 12.5% Grey | H3: Amended
B4: 2.3 AUGEX PROJECTS | F4: #FFCCCC & 12.5% Grey | H4: Amended Confidential
B6: 2.3.4 - AUGEX - TOTAL EXPENDITURE
C7: EXPENDITURE
C8: =CONCATENATE("Forecast ($0's. real ",dms_DollarReal,")") -> Forecast ($0's. real March 2027)
B9: As incurred | C9: =dms_y4 -> 2025-26 | D9: =dms_y5 -> 2026-27 | E9: =dms_y6 -> 2027-28 | F9: =dms_y7 -> 2028-29 | G9: =dms_y8 -> 2029-30 | H9: =dms_y9 -> 2030-31 | I9: =dms_y10 -> 2031-32
B10: Substations | C10: Not required | D10: Not required | E10: Not required | F10: Not required | G10: Not required | H10: Not required | I10: Not required
B11: Lines | C11: Not required | D11: Not required | E11: Not required | F11: Not required | G11: Not required | H11: Not required | I11: Not required
B12: Other assets | C12: Not required | D12: Not required | E12: Not required | F12: Not required | G12: Not required | H12: Not required | I12: Not required
B13: Total | C13: =SUM(C10:C12) -> 0 | D13: 0 | E13: 0 | F13: 0 | G13: 0 | H13: 0 | I13: 0

Sheet 2.5 Connections
B1: =(LOOKUP(dms_Model,dms_Model_List,dms_Worksheet_List)) -> REGULATORY REPORTING STATEMENT | F1: #25C6FF | H1: Protected (SOCI)
B2: =INDEX(dms_TradingNameFull_List,MATCH(dms_TradingName,dms_TradingName_List)) -> AusNet Transmission Group Pty Limited | F2: #FFCCCC | H2: Confidential
B3: =CONCATENATE("REGULATORY PERIOD FROM ", FRCP_y1," TO ",dms_MultiYear_FinalYear_Result) -> REGULATORY PERIOD FROM 2027-28 TO 2031-32 | F3: 12.5% Grey | H3: Amended
B4: 2.5 CONNECTIONS EXPENDITURE | F4: #FFCCCC & 12.5% Grey | H4: Amended Confidential
B6: There are TWO tables on this worksheet. Each has been grouped (or sub-grouped). See the Instructions sheet on how to group or ungroup data.
B8: 2.5.1 - EXPENDITURE ON CONNECTION PROJECTS
C9: EXPENDITURE
C10: =CONCATENATE("Forecast ($0's. real ",dms_DollarReal,")") -> Forecast ($0's. real March 2027)
C11: =dms_y4 -> 2025-26 | D11: =dms_y5 -> 2026-27 | E11: =dms_y6 -> 2027-28 | F11: =dms_y7 -> 2028-29 | G11: =dms_y8 -> 2029-30 | H11: =dms_y9 -> 2030-31 | I11: =dms_y10 -> 2031-32
B12: DIRECT MATERIALS EXPENDITURE
B13: <Enter project description here…> | C13: Not required | D13: Not required | E13: Not required | F13: Not required | G13: Not required | H13: Not required | I13: Not required
B38: DIRECT LABOUR EXPENDITURE
B39: =IF(ISBLANK(B13),"",B13) -> <Enter project description here…> | C39: Not required | D39: Not required | E39: Not required | F39: Not required | G39: Not required | H39: Not required | I39: Not required
B67: 2.5.2 - DESCRIPTION OF CONNECTION PROJECTS
C68: CONNECTION RATING (MVA) | D68: CONNECTION VOLTAGE (KV) | E68: UNDERGROUND / OVERHEAD (drop down) | F68: YEAR CONNECTION PROJECT COMPLETED
B69: =IF(ISBLANK(B13),"",B13) -> <Enter project description here…> | C69: Not required | D69: Not required | E69: Not required | F69: Not required

Sheet 2.14 Forecast price changes
B1: =(LOOKUP(dms_Model,dms_Model_List,dms_Worksheet_List)) -> REGULATORY REPORTING STATEMENT | F1: #25C6FF | H1: Protected (SOCI)
B2: =INDEX(dms_TradingNameFull_List,MATCH(dms_TradingName,dms_TradingName_List)) -> AusNet Transmission Group Pty Limited | F2: #FFCCCC | H2: Confidential
B3: =CONCATENATE("REGULATORY PERIOD FROM ", FRCP_y1," TO ",dms_MultiYear_FinalYear_Result) -> REGULATORY PERIOD FROM 2027-28 TO 2031-32 | F3: 12.5% Grey | H3: Amended
B4: 2.14 FORECAST PRICE CHANGES | F4: #FFCCCC & 12.5% Grey | H4: Amended Confidential
B6: 2.14.2 - FORECAST CAPEX AND OPEX PRICE CHANGES
C7: Price changes (% YoY real) Current regulatory period | E7: Price changes (%YoY real) Forthcoming regulatory period
C8: FORECAST
B9: Description | C9: =dms_y4 -> 2025-26 | D9: =dms_y5 -> 2026-27 | E9: =dms_y6 -> 2027-28 | F9: =dms_y7 -> 2028-29 | G9: =dms_y8 -> 2029-30 | H9: =dms_y9 -> 2030-31 | I9: =dms_y10 -> 2031-32
B10: OPEX
B11: Labour Price Growth - WPI | C11: 0.01043613927 | D11: 0.007192249403 | E11: 0.009453290313 | F11: 0.01167710903 | G11: 0.01207897168 | H11: 0.01109252182 | I11: 0.01107547321
B12: Productivity Growth | C12: 0.005 | D12: 0.005 | E12: 0.005154 | F12: 0.005154 | G12: 0.005154 | H12: 0.005154 | I12: 0.005154
B13: Output Growth
B14: CAPEX
B15: Labour Price Growth - WPI | C15: ='[1]Input| Escalations'!H25 -> 0.008100515567 | D15: ='[1]Input| Escalations'!I25 -> 0.009313524394 | E15: ='[1]Input| Escalations'!J25 -> 0.009453290313 | F15: ='[1]Input| Escalations'!K25 -> 0.01167710903 | G15: ='[1]Input| Escalations'!L25 -> 0.01207897168 | H15: ='[1]Input| Escalations'!M25 -> 0.01109252182 | I15: ='[1]Input| Escalations'!N25 -> 0.01107547321

Sheet 2.6 Non-network
B1: =(LOOKUP(dms_Model,dms_Model_List,dms_Worksheet_List)) -> REGULATORY REPORTING STATEMENT | F1: #25C6FF | H1: Protected (SOCI)
B2: =INDEX(dms_TradingNameFull_List,MATCH(dms_TradingName,dms_TradingName_List)) -> AusNet Transmission Group Pty Limited | F2: #FFCCCC | H2: Confidential
B3: =CONCATENATE("REGULATORY PERIOD FROM ", FRCP_y1," TO ",dms_MultiYear_FinalYear_Result) -> REGULATORY PERIOD FROM 2027-28 TO 2031-32 | F3: 12.5% Grey | H3: Amended
B4: 2.6 NON NETWORK EXPENDITURE | F4: #FFCCCC & 12.5% Grey | H4: Amended Confidential
B6: 2.6.1 - NON-NETWORK EXPENDITURE
D7: EXPENDITURE
D8: =CONCATENATE("Forecast ($0's. real ",dms_DollarReal,")") -> Forecast ($0's. real March 2027)
D9: =dms_y4 -> 2025-26 | E9: =dms_y5 -> 2026-27 | F9: =dms_y6 -> 2027-28 | G9: =dms_y7 -> 2028-29 | H9: =dms_y8 -> 2029-30 | I9: =dms_y9 -> 2030-31 | J9: =dms_y10 -> 2031-32
B10: OPEX
B11: INFORMATION & COMMUNICATIONS TECHNOLOGY
B12: Device expenditure | D12: - | E12: - | F12: 0 | G12: 0 | H12: 0 | I12: 0 | J12: 0
B13: Recurrent | D13: 20783679.93 | E13: 21209665.56 | F13: 21303382.87 | G13: 23243460.76 | H13: 25944623.86 | I13: 27605630.86 | J13: 28481211.18
B14: Non-recurrent | D14: 5881366.039 | E14: 5894279.092 | F14: 4594506.002 | G14: 4608401.238 | H14: 4623635.545 | I14: 4635725.83 | J14: 4647792.377
C15: Total IT and communications | D15: =SUM(D12:D14) -> 26665045.97 | E15: 27103944.65 | F15: 25897888.87 | G15: 27851862 | H15: 30568259.4 | I15: 32241356.69 | J15: 33129003.56
B16: MOTOR VEHICLES
B17: Car | D17: 109035.7535 | E17: 119939.3288 | F17: 112286.0409 | G17: 112625.6293 | H17: 112997.9436 | I17: 113293.4204 | J17: 113588.3172
B18: Light commercial vehicle | D18: 219585.8924 | E18: 234729.7471 | F18: 226131.6101 | G18: 226815.5034 | H18: 227565.303 | I18: 228160.3606 | J18: 228754.2498
B19: Elevated work platform (LCV) | D19: 0 | E19: 0 | F19: 0 | G19: 0 | H19: 0 | I19: 0 | J19: 0
B20: Elevated work platform (HCV) | D20: 0 | E20: 0 | F20: 0 | G20: 0 | H20: 0 | I20: 0 | J20: 0
B21: Heavy commercial vehicle | D21: 18172.62558 | E21: 18172.62558 | F21: 18714.34015 | G21: 18770.93822 | H21: 18832.99059 | I21: 18882.23674 | J21: 18931.38619
B22: BUILDINGS AND PROPERTY
B23: Total buildings and property expenditure | D23: 22360493.51 | E23: 22674756.43 | F23: 26530090.65 | G23: 26729047.74 | H23: 26940295.63 | I23: 27142219.56 | J23: 27350303.56
B24: OTHER
B25: Other expenditure | D25: 0 | E25: 0 | F25: 0 | G25: 0 | H25: 0 | I25: 0 | J25: 0
B26: Other - TNSP nominated
B38: CAPEX
B39: IT & COMMUNICATIONS
B40: Recurrent
B41: Advanced Energy Management System | F41: ='[1]Output| RIN'!C69*10^6 -> 0 | G41: ='[1]Output| RIN'!D69*10^6 -> 0 | H41: ='[1]Output| RIN'!E69*10^6 -> 0 | I41: ='[1]Output| RIN'!F69*10^6 -> 0 | J41: ='[1]Output| RIN'!G69*10^6 -> 0
B42: Asset Management & Field Enablement | F42: ='[1]Output| RIN'!C70*10^6 -> 0 | G42: ='[1]Output| RIN'!D70*10^6 -> 0 | H42: ='[1]Output| RIN'!E70*10^6 -> 0 | I42: ='[1]Output| RIN'!F70*10^6 -> 0 | J42: ='[1]Output| RIN'!G70*10^6 -> 0
B43: Customer Engagement | F43: ='[1]Output| RIN'!C71*10^6 -> 0 | G43: ='[1]Output| RIN'!D71*10^6 -> 0 | H43: ='[1]Output| RIN'!E71*10^6 -> 0 | I43: ='[1]Output| RIN'!F71*10^6 -> 0 | J43: ='[1]Output| RIN'!G71*10^6 -> 0
B44: Metering Systems | F44: ='[1]Output| RIN'!C72*10^6 -> 0 | G44: ='[1]Output| RIN'!D72*10^6 -> 0 | H44: ='[1]Output| RIN'!E72*10^6 -> 0 | I44: ='[1]Output| RIN'!F72*10^6 -> 0 | J44: ='[1]Output| RIN'!G72*10^6 -> 0
B45: Digital resilience – applications | F45: ='[1]Output| RIN'!C73*10^6 -> 5739796.426 | G45: ='[1]Output| RIN'!D73*10^6 -> 9259519.268 | H45: ='[1]Output| RIN'!E73*10^6 -> 5985800.561 | I45: ='[1]Output| RIN'!F73*10^6 -> 6361053.934 | J45: ='[1]Output| RIN'!G73*10^6 -> 9901401.732
B46: Digital resilience – infrastructure | F46: ='[1]Output| RIN'!C74*10^6 -> 5952018.615 | G46: ='[1]Output| RIN'!D74*10^6 -> 4658863.815 | H46: ='[1]Output| RIN'!E74*10^6 -> 7453310.056 | I46: ='[1]Output| RIN'!F74*10^6 -> 8338459.151 | J46: ='[1]Output| RIN'!G74*10^6 -> 4572620.415
B47: Cyber security | F47: ='[1]Output| RIN'!C75*10^6 -> 4391588.807 | G47: ='[1]Output| RIN'!D75*10^6 -> 4430305.06 | H47: ='[1]Output| RIN'!E75*10^6 -> 4470821.367 | I47: ='[1]Output| RIN'!F75*10^6 -> 4508478.27 | J47: ='[1]Output| RIN'!G75*10^6 -> 4546494.363
B48: Other | D48: 5206437.601 | E48: 14159791.42 | F48: ='[1]Output| RIN'!C76*10^6 -> 0 | G48: ='[1]Output| RIN'!D76*10^6 -> 0 | H48: ='[1]Output| RIN'!E76*10^6 -> 0 | I48: ='[1]Output| RIN'!F76*10^6 -> 0 | J48: ='[1]Output| RIN'!G76*10^6 -> 0
B51: Non-recurrent
B52: Advanced Energy Management System | F52: ='[1]Output| RIN'!C77*10^6 -> 12970342.57 | G52: ='[1]Output| RIN'!D77*10^6 -> 16319535.83 | H52: ='[1]Output| RIN'!E77*10^6 -> 15648706.8 | I52: ='[1]Output| RIN'!F77*10^6 -> 17833467.14 | J52: ='[1]Output| RIN'!G77*10^6 -> 18637020.05
B53: Asset Management & Field Enablement | F53: ='[1]Output| RIN'!C78*10^6 -> 8678660.688 | G53: ='[1]Output| RIN'!D78*10^6 -> 7961063.337 | H53: ='[1]Output| RIN'!E78*10^6 -> 3958950.432 | I53: ='[1]Output| RIN'!F78*10^6 -> 4610742.89 | J53: ='[1]Output| RIN'!G78*10^6 -> 4259832.682
B54: Customer Engagement | F54: ='[1]Output| RIN'!C79*10^6 -> 3852075.576 | G54: ='[1]Output| RIN'!D79*10^6 -> 0 | H54: ='[1]Output| RIN'!E79*10^6 -> 0 | I54: ='[1]Output| RIN'!F79*10^6 -> 0 | J54: ='[1]Output| RIN'!G79*10^6 -> 0
B55: Metering Systems | F55: ='[1]Output| RIN'!C80*10^6 -> 2291705.683 | G55: ='[1]Output| RIN'!D80*10^6 -> 7859967.365 | H55: ='[1]Output| RIN'!E80*10^6 -> 0 | I55: ='[1]Output| RIN'!F80*10^6 -> 2235441.847 | J55: ='[1]Output| RIN'!G80*10^6 -> 0
B56: Digital resilience – applications | F56: ='[1]Output| RIN'!C81*10^6 -> 0 | G56: ='[1]Output| RIN'!D81*10^6 -> 0 | H56: ='[1]Output| RIN'!E81*10^6 -> 0 | I56: ='[1]Output| RIN'!F81*10^6 -> 0 | J56: ='[1]Output| RIN'!G81*10^6 -> 0
B57: Digital resilience – infrastructure | F57: ='[1]Output| RIN'!C82*10^6 -> 0 | G57: ='[1]Output| RIN'!D82*10^6 -> 0 | H57: ='[1]Output| RIN'!E82*10^6 -> 0 | I57: ='[1]Output| RIN'!F82*10^6 -> 0 | J57: ='[1]Output| RIN'!G82*10^6 -> 0
B58: Cyber security | F58: ='[1]Output| RIN'!C83*10^6 -> 7504372.619 | G58: ='[1]Output| RIN'!D83*10^6 -> 7592001.996 | H58: ='[1]Output| RIN'!E83*10^6 -> 7683705.573 | I58: ='[1]Output| RIN'!F83*10^6 -> 7768937.245 | J58: ='[1]Output| RIN'!G83*10^6 -> 7854981.901
B59: Other | D59: 19405812.88 | E59: 38297959.33 | F59: ='[1]Output| RIN'!C84*10^6 -> 0 | G59: ='[1]Output| RIN'!D84*10^6 -> 0 | H59: ='[1]Output| RIN'!E84*10^6 -> 0 | I59: ='[1]Output| RIN'!F84*10^6 -> 0 | J59: ='[1]Output| RIN'!G84*10^6 -> 0
C62: Total IT and communications | D62: =SUM(D40:D61) -> 24612250.48 | E62: 52457750.75 | F62: 51380560.99 | G62: 58081256.67 | H62: 45201294.79 | I62: 51656580.48 | J62: 49772351.15
B63: MOTOR VEHICLES
B64: Car | D64: 149834.2668 | E64: 570379.05 | F64: ='[1]Output| RIN'!C58*10^6 -> 311166.2519 | G64: ='[1]Output| RIN'!D58*10^6 -> 126379.7576 | H64: ='[1]Output| RIN'!E58*10^6 -> 126537.7626 | I64: ='[1]Output| RIN'!F58*10^6 -> 580386.5472 | J64: ='[1]Output| RIN'!G58*10^6 -> 632683.1266
B65: Light commercial vehicle | D65: 449502.8003 | E65: 697129.95 | F65: ='[1]Output| RIN'!C59*10^6 -> 952000.3939 | G65: ='[1]Output| RIN'!D59*10^6 -> 2292084.885 | H65: ='[1]Output| RIN'!E59*10^6 -> 3519240.012 | I65: ='[1]Output| RIN'!F59*10^6 -> 2629158.55 | J65: ='[1]Output| RIN'!G59*10^6 -> 544155.3256
B66: Elevated work platform (LCV) | F66: ='[1]Output| RIN'!C60*10^6 -> 0 | G66: ='[1]Output| RIN'!D60*10^6 -> 0 | H66: ='[1]Output| RIN'!E60*10^6 -> 0 | I66: ='[1]Output| RIN'!F60*10^6 -> 0 | J66: ='[1]Output| RIN'!G60*10^6 -> 0
B67: Elevated work platform (HCV) | F67: ='[1]Output| RIN'!C61*10^6 -> 0 | G67: ='[1]Output| RIN'!D61*10^6 -> 0 | H67: ='[1]Output| RIN'!E61*10^6 -> 0 | I67: ='[1]Output| RIN'!F61*10^6 -> 0 | J67: ='[1]Output| RIN'!G61*10^6 -> 0
B68: Heavy commercial vehicle | F68: ='[1]Output| RIN'!C62*10^6 -> 0 | G68: ='[1]Output| RIN'!D62*10^6 -> 388860.7927 | H68: ='[1]Output| RIN'!E62*10^6 -> 0 | I68: ='[1]Output| RIN'!F62*10^6 -> 0 | J68: ='[1]Output| RIN'!G62*10^6 -> 0
B69: BUILDINGS AND PROPERTY
B70: Total buildings and property expenditure | D70: 991354.952 | E70: 13778952 | F70: ='[1]Output| TRR Driver'!C69*10^3 -> 21117310.43 | G70: ='[1]Output| TRR Driver'!D69*10^3 -> 7372468.213 | H70: ='[1]Output| TRR Driver'!E69*10^3 -> 683869.6108 | I70: ='[1]Output| TRR Driver'!F69*10^3 -> 13600343.85 | J70: ='[1]Output| TRR Driver'!G69*10^3 -> 589895.0011
B71: OTHER
B72: Other expenditure | D72: 1295369.555 | E72: 3000000
B73: OTHER - TNSP nominated
B74: Testing Equipment | F74: ='[1]Output| TRR Driver'!C70*10^3 -> 4074030.098 | G74: ='[1]Output| TRR Driver'!D70*10^3 -> 5007670.574 | H74: ='[1]Output| TRR Driver'!E70*10^3 -> 5085464.332 | I74: ='[1]Output| TRR Driver'!F70*10^3 -> 2063044.431 | J74: ='[1]Output| TRR Driver'!G70*10^3 -> 2127422.503
B87: 2.6.3 - ANNUAL DESCRIPTOR METRICS
B88: IT & COMMUNICATIONS
D89: VOLUMES
D90: (0's)
D91: =dms_y4 -> 2025-26 | E91: =dms_y5 -> 2026-27 | F91: =dms_y6 -> 2027-28 | G91: =dms_y7 -> 2028-29 | H91: =dms_y8 -> 2029-30 | I91: =dms_y9 -> 2030-31 | J91: =dms_y10 -> 2031-32
B92: Number of devices | D92: 514.35 | E92: 514.35 | F92: 514.35 | G92: 514.35 | H92: 514.35 | I92: 514.35 | J92: 514.35
B94: MOTOR VEHICLES
D95: VOLUMES
D96: (0's or %)
C97: Units | D97: =dms_y4 -> 2025-26 | E97: =dms_y5 -> 2026-27 | F97: =dms_y6 -> 2027-28 | G97: =dms_y7 -> 2028-29 | H97: =dms_y8 -> 2029-30 | I97: =dms_y9 -> 2030-31 | J97: =dms_y10 -> 2031-32
B98: CAR
B99: Number purchased | C99: 0's | D99: 4 | E99: 12 | F99: 5 | G99: 2 | H99: 2 | I99: 6 | J99: 9
B100: Number leased | C100: 0's | D100: 0 | E100: 0 | F100: 0 | G100: 0 | H100: 0 | I100: 0 | J100: 0
B101: Number in fleet | C101: 0's | D101: 20 | E101: 22 | F101: 24 | G101: 26 | H101: 28 | I101: 30 | J101: 32
B102: Proportion of total fleet expenditure allocated as regulatory expenditure | C102: %
B103: LIGHT COMMERCIAL VEHICLE
B104: Number purchased | C104: 0's | D104: 4 | E104: 5 | F104: 6 | G104: 23 | H104: 35 | I104: 28 | J104: 5
B105: Number leased | C105: 0's | D105: 0 | E105: 0 | F105: 0 | G105: 0 | H105: 0 | I105: 0 | J105: 0
B106: Number in fleet | C106: 0's | D106: 29 | E106: 31 | F106: 33 | G106: 55 | H106: 77 | I106: 99 | J106: 101
B107: Proportion of total fleet expenditure allocated as regulatory expenditure | C107: %
B108: ELEVATED WORK PLATFORM (LCV)
B109: Number purchased | C109: 0's | D109: 0 | E109: 0 | F109: 0 | G109: 0 | H109: 0 | I109: 0 | J109: 0
B110: Number leased | C110: 0's | D110: 0 | E110: 0 | F110: 0 | G110: 0 | H110: 0 | I110: 0 | J110: 0
B111: Number in fleet | C111: 0's | D111: 0 | E111: 0 | F111: 0 | G111: 0 | H111: 0 | I111: 0 | J111: 0
B112: Proportion of total fleet expenditure allocated as regulatory expenditure | C112: %
B113: ELEVATED WORK PLATFORM (HCV)
B114: Number purchased | C114: 0's | D114: 0 | E114: 0 | F114: 0 | G114: 0 | H114: 0 | I114: 0 | J114: 0
B115: Number leased | C115: 0's | D115: 0 | E115: 0 | F115: 0 | G115: 0 | H115: 0 | I115: 0 | J115: 0
B116: Number in fleet | C116: 0's | D116: 0 | E116: 0 | F116: 0 | G116: 0 | H116: 0 | I116: 0 | J116: 0
B117: Proportion of total fleet expenditure allocated as regulatory expenditure | C117: %
B118: HEAVY COMMERCIAL VEHICLE
B119: Number purchased | C119: 0's | D119: 0 | E119: 0 | F119: 1 | G119: 2 | H119: 1 | I119: 1 | J119: 1
B120: Number leased | C120: 0's | D120: 0 | E120: 0 | F120: 0 | G120: 0 | H120: 0 | I120: 0 | J120: 0
B121: Number in fleet | C121: 0's | D121: 6 | E121: 6 | F121: 6 | G121: 6 | H121: 6 | I121: 6 | J121: 6
B122: Proportion of total fleet expenditure allocated as regulatory expenditure | C122: %

Sheet 2.16 Opex Summary
B1: =(LOOKUP(dms_Model,dms_Model_List,dms_Worksheet_List)) -> REGULATORY REPORTING STATEMENT | G1: #25C6FF | I1: Protected (SOCI)
B2: =INDEX(dms_TradingNameFull_List,MATCH(dms_TradingName,dms_TradingName_List)) -> AusNet Transmission Group Pty Limited | G2: #FFCCCC | I2: Confidential
B3: =CONCATENATE("REGULATORY PERIOD FROM ", FRCP_y1," TO ",dms_MultiYear_FinalYear_Result) -> REGULATORY PERIOD FROM 2027-28 TO 2031-32 | G3: 12.5% Grey | I3: Amended
B4: 2.16 OPEX SUMMARY | G4: #FFCCCC & 12.5% Grey | I4: Amended Confidential
B6: Instructions | K6: IMPORTANT!
B7: =CONCATENATE("Complete the tables below in accordance with the regulatory information notice. ",dms_TradingName, "'s total forecast opex must reconcile to Table 2.16.1. If ",dms_TradingName," did not forecast its total opex using a Base Year approach, total forecast opex must reconcile to Table 2.16.2") -> Complete the tables below in accordance with the regulatory information notice. AusNet (T)'s total forecast opex must reconcile to Table 2.16.1. If AusNet (T) did not forecast its total opex using a Base Year approach, total forecast opex must reconcile to Table 2.16.2 | K7: =CONCATENATE("Has ",dms_TradingName," used a base-step-trend model to derive its opex forecast? ") -> Has AusNet (T) used a base-step-trend model to derive its opex forecast? | M7: Yes
B8: The total step changes and category specific forecasts in Table 2.16.1 must reconcile (in each year) to the total step changes and category secific forecasts for each year in Tables 2.17.1 and 2.17.5 of worksheet 2.17 Step Changes.") | K8: Yes / No
K9: Please nominate the base year. | M9: 2025-26
B11: 2.16.1 - PRESCRIBED TRANSMISSION SERVICES - OPEX BY DRIVER
C12: EXPENDITURE
C13: =CONCATENATE("Forecast ($0's. real ",dms_DollarReal,")") -> Forecast ($0's. real March 2027)
C14: =CRCP_y1 -> 2022-23 | D14: =CRCP_y2 -> 2023-24 | E14: =CRCP_y3 -> 2024-25 | F14: =dms_y4 -> 2025-26 | G14: =dms_y5 -> 2026-27 | H14: =dms_y6 -> 2027-28 | I14: =dms_y7 -> 2028-29 | J14: =dms_y8 -> 2029-30 | K14: =dms_y9 -> 2030-31 | L14: =dms_y10 -> 2031-32
B15: Base year total opex, excluding category specific | F15: 124772146.5 | G15: 124772146.5 | H15: 124981880.3 | I15: 124981880.3 | J15: 124981880.3 | K15: 124981880.3 | L15: 124981880.3
B16: Increment from base year to final year | F16: 0 | G16: 209733.7694 | H16: 0 | I16: 0 | J16: 0 | K16: 0 | L16: 0
B17: Price growth | F17: 0 | G17: 0 | H17: 812763.06 | I17: 1825287.225 | J17: 2870147.796 | K17: 3824149.4 | L17: 4774255.571
B18: Output growth | F18: 0 | G18: 0 | H18: 0 | I18: 0 | J18: 0 | K18: 0 | L18: 0
B19: Productivity growth | F19: 0 | G19: 0 | H19: -629437.6494 | I19: -1263422.761 | J19: -1893264.773 | K19: -2517898.434 | L19: -3139283.329
B20: Step changes | F20: 0 | G20: 0 | H20: 16588238.01 | I20: 15319331.7 | J20: 10787515.75 | K20: 12366134.1 | L20: 13199073.44
B21: Category specific | F21: 279373089.7 | G21: 273920041.4 | H21: 285590817 | I21: 288619517.6 | J21: 291684279.5 | K21: 294785672.3 | L21: 297924280.4
B22: Total opex | F22: =SUM(F15:F21) -> 404145236.3 | G22: 398901921.7 | H22: 427344260.7 | I22: 429482594.1 | J22: 428430558.5 | K22: 433439937.7 | L22: 437740206.3
B26: 2.16.2 - PRESCRIBED TRANSMISSION SERVICES - OPEX BY CATEGORY
C27: EXPENDITURE
C28: =CONCATENATE("Forecast ($0's. real ",dms_DollarReal,")") -> Forecast ($0's. real March 2027)
C29: =CRCP_y1 -> 2022-23 | D29: =CRCP_y2 -> 2023-24 | E29: =CRCP_y3 -> 2024-25 | F29: =CRCP_y4 -> 2025-26 | G29: =CRCP_y5 -> 2026-27 | H29: =FRCP_y1 -> 2027-28 | I29: =FRCP_y2 -> 2028-29 | J29: =FRCP_y3 -> 2029-30 | K29: =FRCP_y4 -> 2030-31 | L29: =FRCP_y5 -> 2031-32
B60: Total opex | C60: =SUM(C30:C59) -> 0 | D60: 0 | E60: 0 | F60: 0 | G60: 0 | H60: 0 | I60: 0 | J60: 0 | K60: 0 | L60: 0

Sheet 2.10 Overheads
B1: =(LOOKUP(dms_Model,dms_Model_List,dms_Worksheet_List)) -> REGULATORY REPORTING STATEMENT | F1: #25C6FF | H1: Protected (SOCI)
B2: =INDEX(dms_TradingNameFull_List,MATCH(dms_TradingName,dms_TradingName_List)) -> AusNet Transmission Group Pty Limited | F2: #FFCCCC | H2: Confidential
B3: =CONCATENATE("REGULATORY PERIOD FROM ", FRCP_y1," TO ",dms_MultiYear_FinalYear_Result) -> REGULATORY PERIOD FROM 2027-28 TO 2031-32 | F3: 12.5% Grey | H3: Amended
B4: 2.10 OVERHEADS | F4: #FFCCCC & 12.5% Grey | H4: Amended Confidential
B6: 2.10.1 - NETWORK OVERHEADS EXPENDITURE
D7: EXPENDITURE
D8: =CONCATENATE("Forecast ($0's. real ",dms_DollarReal,")") -> Forecast ($0's. real March 2027)
D9: =dms_y4 -> 2025-26 | E9: =dms_y5 -> 2026-27 | F9: =dms_y6 -> 2027-28 | G9: =dms_y7 -> 2028-29 | H9: =dms_y8 -> 2029-30 | I9: =dms_y9 -> 2030-31 | J9: =dms_y10 -> 2031-32
B10: OPEX
B11: Prescribed Transmission Services | C11: Total | D11: 14467029.52 | E11: 14464043.59 | F11: 14911511.71 | G11: 14956608.83 | H11: 15006051.92 | I11: 15045291.05 | J11: 15084453.14
B12: CAPEX
B13: Prescribed Transmission Services | C13: Total | D13: 11017887.76 | E13: =SUM('[2]RY27 Template 2.4 - Consol'!$E$187:$E$194) -> 15284939.25 | F13: ='[1]Output| RIN'!C18*10^6 -> 16832334.54 | G13: ='[1]Output| RIN'!D18*10^6 -> 17210775.05 | H13: ='[1]Output| RIN'!E18*10^6 -> 14335307.82 | I13: ='[1]Output| RIN'!F18*10^6 -> 13167459.13 | J13: ='[1]Output| RIN'!G18*10^6 -> 11918555.59
B14: OTHER TRANSMISSION SERVICES
B15: Negotiated Services | C15: Total | D15: 0 | E15: 0 | F15: 0 | G15: 0 | H15: 0 | I15: 0 | J15: 0
B16: Non-regulated Services | C16: Total | D16: 0 | E16: 0 | F16: 0 | G16: 0 | H16: 0 | I16: 0 | J16: 0
B19: 2.10.2 - CORPORATE OVERHEADS EXPENDITURE
D20: EXPENDITURE
D21: =CONCATENATE("Forecast ($0's. real ",dms_DollarReal,")") -> Forecast ($0's. real March 2027)
D22: =dms_y4 -> 2025-26 | E22: =dms_y5 -> 2026-27 | F22: =dms_y6 -> 2027-28 | G22: =dms_y7 -> 2028-29 | H22: =dms_y8 -> 2029-30 | I22: =dms_y9 -> 2030-31 | J22: =dms_y10 -> 2031-32
B23: OPEX
B24: Prescribed Transmission Services | C24: Total | D24: 305077295.1 | E24: 299850796.7 | F24: 302825788.9 | G24: 305801223.7 | H24: 308814469.2 | I24: 311840704.6 | J24: 314897746.2
B25: CAPEX
B26: Prescribed Transmission Services | C26: Total | D26: 1295381.604 | E26: =SUM('[2]RY27 Template 2.4 - Consol'!$E$198:$E$199) -> 2760934.25 | F26: ='[1]Output| RIN'!C19*10^6 -> 1958885.51 | G26: ='[1]Output| RIN'!D19*10^6 -> 2109890.527 | H26: ='[1]Output| RIN'!E19*10^6 -> 1881259.444 | I26: ='[1]Output| RIN'!F19*10^6 -> 2028387.897 | J26: ='[1]Output| RIN'!G19*10^6 -> 2011600.837
B27: OTHER TRANSMISSION SERVICES
B28: Negotiated Services | C28: Total | D28: 0 | E28: 0 | F28: 0 | G28: 0 | H28: 0 | I28: 0 | J28: 0
B29: Non-regulated Services | C29: Total | D29: 0 | E29: 0 | F29: 0 | G29: 0 | H29: 0 | I29: 0 | J29: 0
B32: 2.10.3 - CORPORATE OVERHEADS EXPENDITURE - EASEMENT LEVY ONLY
D33: EXPENDITURE
D34: =CONCATENATE("Forecast ($0's. real ",dms_DollarReal,")") -> Forecast ($0's. real March 2027)
D35: =dms_y4 -> 2025-26 | E35: =dms_y5 -> 2026-27 | F35: =dms_y6 -> 2027-28 | G35: =dms_y7 -> 2028-29 | H35: =dms_y8 -> 2029-30 | I35: =dms_y9 -> 2030-31 | J35: =dms_y10 -> 2031-32
B36: OPEX
B37: Prescribed Transmission Services | C37: Total | D37: 279373089.7 | E37: 273920041.4 | F37: 277063485.7 | G37: 279961007.2 | H37: 282888830.9 | I37: 285847273.7 | J37: 288836655.8
B38: CAPEX
B39: Prescribed Transmission Services | C39: Total | D39: 0 | E39: 0 | F39: 0 | G39: 0 | H39: 0 | I39: 0 | J39: 0
B40: OTHER TRANSMISSION SERVICES
B41: Negotiated Services | C41: Total | D41: 0 | E41: 0 | F41: 0 | G41: 0 | H41: 0 | I41: 0 | J41: 0
B42: Non-regulated Services | C42: Total | D42: 0 | E42: 0 | F42: 0 | G42: 0 | H42: 0 | I42: 0 | J42: 0

Sheet 2.17 Step Changes
B1: =(LOOKUP(dms_Model,dms_Model_List,dms_Worksheet_List)) -> REGULATORY REPORTING STATEMENT | F1: #25C6FF | H1: Protected (SOCI)
B2: =INDEX(dms_TradingNameFull_List,MATCH(dms_TradingName,dms_TradingName_List)) -> AusNet Transmission Group Pty Limited | F2: #FFCCCC | H2: Confidential
B3: =CONCATENATE("REGULATORY PERIOD FROM ", FRCP_y1," TO ",dms_MultiYear_FinalYear_Result) -> REGULATORY PERIOD FROM 2027-28 TO 2031-32 | F3: 12.5% Grey | H3: Amended
B4: 2.17 STEP CHANGES | F4: #FFCCCC & 12.5% Grey | H4: Amended Confidential
B6: 2.17.1 - STEP CHANGES FOR PRESCRIBED TRANSMISSION SERVICES - FORECAST OPEX
D7: EXPENDITURE
D8: =CONCATENATE("Forecast ($0's. real ",dms_DollarReal,")") -> Forecast ($0's. real March 2027)
B9: Step change | C9: Description | D9: =dms_y4 -> 2025-26 | E9: =dms_y5 -> 2026-27 | F9: =dms_y6 -> 2027-28 | G9: =dms_y7 -> 2028-29 | H9: =dms_y8 -> 2029-30 | I9: =dms_y9 -> 2030-31 | J9: =dms_y10 -> 2031-32
B10: Delegated Responsibilites (linked to VicGrid Reforms)
B11: Digital (inc SaaS, etc) | C11: Opex associated with new capex initiatives | F11: 15168274.77 | G11: 14044802.31 | H11: 9605535.172 | I11: 11223817.3 | J11: 12056756.64
B12: Landholder Engagement | C12: Customer driven initiative | F12: 1419963.243 | G12: 1274529.392 | H12: 1181980.577 | I12: 1142316.799 | J12: 1142316.799
B13: Insurance
B14: Network Operations - Deliverability
B24: Total | D24: =SUM(D10:D23) -> 0 | E24: =SUM(E10:E23) -> 0 | F24: 16588238.01 | G24: 15319331.7 | H24: 10787515.75 | I24: 12366134.1 | J24: 13199073.44
B25: Check | F25: =IF(ROUND(F$24,0)-ROUND('2.16 Opex Summary'!C$20,0)=0,"OK","Error") -> Error | G25: =IF(ROUND(G$24,0)-ROUND('2.16 Opex Summary'!D$20,0)=0,"OK","Error") -> Error | H25: =IF(ROUND(H$24,0)-ROUND('2.16 Opex Summary'!E$20,0)=0,"OK","Error") -> Error | I25: =IF(ROUND(I$24,0)-ROUND('2.16 Opex Summary'!F$20,0)=0,"OK","Error") -> Error | J25: =IF(ROUND(J$24,0)-ROUND('2.16 Opex Summary'!G$20,0)=0,"OK","Error") -> Error
B28: 2.17.2 - STEP CHANGES FOR PRESCRIBED TRANSMISSION SERVICES - FORECAST CAPEX
D29: EXPENDITURE
D30: =CONCATENATE("Forecast ($0's. real ",dms_DollarReal,")") -> Forecast ($0's. real March 2027)
B31: Step change | C31: Description | D31: =dms_y4 -> 2025-26 | E31: =dms_y5 -> 2026-27 | F31: =dms_y6 -> 2027-28 | G31: =dms_y7 -> 2028-29 | H31: =dms_y8 -> 2029-30 | I31: =dms_y9 -> 2030-31 | J31: =dms_y10 -> 2031-32
D32: Nil | E32: Nil | F32: Nil | G32: Nil | H32: Nil | I32: Nil | J32: Nil
B47: Total | D47: =SUM(D32:D46) -> 0 | E47: 0 | F47: 0 | G47: 0 | H47: 0 | I47: 0 | J47: 0
B50: 2.17.5 - CATEGORY SPECIFIC OPEX FOR PRESCRIBED TRANSMISSION SERVICES
D51: EXPENDITURE
D52: =CONCATENATE("Forecast ($0's. real ",dms_DollarReal,")") -> Forecast ($0's. real March 2027)
B53: Category | C53: Description | D53: =dms_y4 -> 2025-26 | E53: =dms_y5 -> 2026-27 | F53: =dms_y6 -> 2027-28 | G53: =dms_y7 -> 2028-29 | H53: =dms_y8 -> 2029-30 | I53: =dms_y9 -> 2030-31 | J53: =dms_y10 -> 2031-32
B54: Easement land tax | D54: 279373089.7 | E54: 273920041.4 | F54: 277063485.7 | G54: 279961007.2 | H54: 282888830.9 | I54: 285847273.7 | J54: 288836655.8
B55: AEMO participant fees | D55: 0 | E55: 0 | F55: 4119056.906 | G55: 4250235.968 | H55: 4387174.11 | I55: 4530124.17 | J55: 4679350.087
B56: Group 3 roll in | D56: 0 | E56: 0 | F56: 4408274.47 | G56: 4408274.47 | H56: 4408274.47 | I56: 4408274.47 | J56: 4408274.47
B68: Total | D68: =SUM(D54:D67) -> 279373089.7 | E68: =SUM(E54:E67) -> 273920041.4 | F68: 285590817 | G68: 288619517.6 | H68: 291684279.5 | I68: 294785672.3 | J68: 297924280.4
B69: Check | F69: =IF(ROUND(F$68,0)-ROUND('2.16 Opex Summary'!C$21,0)=0,"OK","Error") -> Error | G69: =IF(ROUND(G$68,0)-ROUND('2.16 Opex Summary'!D$21,0)=0,"OK","Error") -> Error | H69: =IF(ROUND(H$68,0)-ROUND('2.16 Opex Summary'!E$21,0)=0,"OK","Error") -> Error | I69: =IF(ROUND(I$68,0)-ROUND('2.16 Opex Summary'!F$21,0)=0,"OK","Error") -> Error | J69: =IF(ROUND(J$68,0)-ROUND('2.16 Opex Summary'!G$21,0)=0,"OK","Error") -> Error

Sheet 3.1 Revenue
B1: =(LOOKUP(dms_Model,dms_Model_List,dms_Worksheet_List)) -> REGULATORY REPORTING STATEMENT | F1: #25C6FF | H1: Protected (SOCI)
B2: =INDEX(dms_TradingNameFull_List,MATCH(dms_TradingName,dms_TradingName_List)) -> AusNet Transmission Group Pty Limited | F2: #FFCCCC | H2: Confidential
B3: =CONCATENATE("REGULATORY PERIOD FROM ", FRCP_y1," TO ",dms_MultiYear_FinalYear_Result) -> REGULATORY PERIOD FROM 2027-28 TO 2031-32 | F3: 12.5% Grey | H3: Amended
B4: 3.1 REVENUE | F4: #FFCCCC & 12.5% Grey | H4: Amended Confidential
B7: 3.1.1 - REVENUE GROUPING BY CHARGEABLE QUANTITY
C8: REVENUE
C9: =CONCATENATE("Forecast ($0's. real ",dms_DollarReal,")") -> Forecast ($0's. real March 2027)
B10: REVENUE FROM PRESCRIBED SERVICES | C10: =dms_y4 -> 2025-26 | D10: =dms_y5 -> 2026-27 | E10: =dms_y6 -> 2027-28 | F10: =dms_y7 -> 2028-29 | G10: =dms_y8 -> 2029-30 | H10: =dms_y9 -> 2030-31 | I10: =dms_y10 -> 2031-32
B11: Prescribed entry services | C11: 8075488.781 | D11: 8634004.545 | E11: 10402348.88 | F11: 10767599.95 | G11: 11145675.84 | H11: 11537026.87 | I11: 11942119.17
B12: Prescribed exit services | C12: 74548304.51 | D12: 79824973.91 | E12: 96174055.02 | F12: 99550953.49 | G12: 103046422.9 | H12: 106664626.4 | I12: 110409873.6
B13: Prescribed common transmission services | C13: 178799570.8 | D13: 179151430.2 | E13: 215843722.4 | F13: 223422505.9 | G13: 231267398.3 | H13: 239387743.5 | I13: 247793213.2
B14: Locational TUOS services | C14: 188492002.9 | D14: 201589616.6 | E14: 242877509.7 | F14: 251405513.4 | G14: 260232955.4 | H14: 269370349.8 | I14: 278828579.7
B15: Non-locational TUOS services | C15: 188492002.9 | D15: 201589616.6 | E15: 242877509.7 | F15: 251405513.4 | G15: 260232955.4 | H15: 269370349.8 | I15: 278828579.7
B16: Net revenue from modified load export charges
B17: System strength services
B18: Inter-regional settlements residues; proceeds from auctions
B19: Intra-regional settlements residues
A20: TREV01 | B20: Total | C20: =SUM(C11:C19) -> 638407369.9 | D20: 670789641.9 | E20: 808175145.8 | F20: 836552086.1 | G20: 865925407.8 | H20: 896330096.3 | I20: 927802365.3
B24: 3.1.2 - REVENUE GROUPING BY TYPE OF CONNECTED EQUIPMENT
C25: REVENUE
C26: =CONCATENATE("Forecast ($0's. real ",dms_DollarReal,")") -> Forecast ($0's. real March 2027)
C27: =dms_y4 -> 2025-26 | D27: =dms_y5 -> 2026-27 | E27: =dms_y6 -> 2027-28 | F27: =dms_y7 -> 2028-29 | G27: =dms_y8 -> 2029-30 | H27: =dms_y9 -> 2030-31 | I27: =dms_y10 -> 2031-32
A28: TREV0201 | B28: From other connected transmission networks
A29: TREV0202 | B29: From distribution networks | C29: 74350166.13 | D29: 79608238.12 | E29: 95912929.23 | F29: 99280658.95 | G29: 102766637.6 | H29: 106375017.3 | I29: 110110095.6
A30: TREV0203 | B30: From directly connected end–users | C30: 198138.3802 | D30: 216735.7906 | E30: 261125.796 | F30: 270294.5401 | G30: 279785.2205 | H30: 289609.1412 | I30: 299778.0029
A31: TREV0204 | B31: From generators | C31: 8075488.781 | D31: 8634004.545 | E31: 10402348.88 | F31: 10767599.95 | G31: 11145675.84 | H31: 11537026.87 | I31: 11942119.17
A32: TREV0205 | B32: Other revenue | C32: 555783576.6 | D32: 582330663.4 | E32: 701598741.9 | F32: 726233532.6 | G32: 751733309.1 | H32: 778128443 | I32: 805450372.5
A33: TREV02 | B33: Total | C33: =SUM(C28:C32) -> 638407369.9 | D33: 670789641.9 | E33: 808175145.8 | F33: 836552086.1 | G33: 865925407.8 | H33: 896330096.3 | I33: 927802365.3
B36: 3.1.3 - REVENUE (penalties) ALLOWED (deducted) THROUGH INCENTIVE SCHEMES
C37: REVENUE
C38: =CONCATENATE("Forecast ($0's. real ",dms_DollarReal,")") -> Forecast ($0's. real March 2027)
C39: =dms_y4 -> 2025-26 | D39: =dms_y5 -> 2026-27 | E39: =dms_y6 -> 2027-28 | F39: =dms_y7 -> 2028-29 | G39: =dms_y8 -> 2029-30 | H39: =dms_y9 -> 2030-31 | I39: =dms_y10 -> 2031-32
A40: TREV0301 | B40: EBSS | C40: ='[3]PTRM input'!J453*10^6 -> 11661575.21 | D40: ='[3]PTRM input'!K453*10^6 -> 0 | E40: =-'[4]PTRM input'!G453*10^6 -> 850919.7007 | F40: =-'[4]PTRM input'!H453*10^6 -> 37450646.63 | G40: =-'[4]PTRM input'!I453*10^6 -> 33048932.29 | H40: =-'[4]PTRM input'!J453*10^6 -> 21027394.85 | I40: =-'[4]PTRM input'!K453*10^6 -> -1.421085472e-08
A41: TREV0302 | B41: STPIS | E41: 0 | F41: 0 | G41: 0 | H41: 0 | I41: 0
A42: TREV0312 | B42: CESS | C42: ='[3]PTRM input'!J454*10^6 -> 1649105.206 | D42: ='[3]PTRM input'!K454*10^6 -> 1649105.206 | E42: =-'[4]PTRM input'!G454*10^6 -> 6893764.329 | F42: =-'[4]PTRM input'!H454*10^6 -> 6893764.329 | G42: =-'[4]PTRM input'!I454*10^6 -> 6893764.329 | H42: =-'[4]PTRM input'!J454*10^6 -> 6893764.329 | I42: =-'[4]PTRM input'!K454*10^6 -> 6893764.329
A43: TREV0303 | B43: Other | C43: 0 | D43: 0 | E43: 0 | F43: 0 | G43: 0 | H43: 0 | I43: 0
A44: TREV03 | B44: Total | C44: =SUM(C40:C43) -> 13310680.42 | D44: 1649105.206 | E44: 7744684.03 | F44: 44344410.96 | G44: 39942696.62 | H44: 27921159.18 | I44: 6893764.329

Sheet 3.2 Operating expenditure
B1: =(LOOKUP(dms_Model,dms_Model_List,dms_Worksheet_List)) -> REGULATORY REPORTING STATEMENT | F1: #25C6FF | H1: Protected (SOCI)
B2: =INDEX(dms_TradingNameFull_List,MATCH(dms_TradingName,dms_TradingName_List)) -> AusNet Transmission Group Pty Limited | F2: #FFCCCC | H2: Confidential
B3: =CONCATENATE("REGULATORY PERIOD FROM ", FRCP_y1," TO ",dms_MultiYear_FinalYear_Result) -> REGULATORY PERIOD FROM 2027-28 TO 2031-32 | F3: 12.5% Grey | H3: Amended
B4: 3.2 OPERATING EXPENDITURE | F4: #FFCCCC & 12.5% Grey | H4: Amended Confidential
B7: 3.2.1 - OPEX CATEGORIES
C8: EXPENDITURE
C9: =CONCATENATE("Forecast ($0's. real ",dms_DollarReal,")") -> Forecast ($0's. real March 2027)
C10: =dms_y4 -> 2025-26 | D10: =dms_y5 -> 2026-27 | E10: =dms_y6 -> 2027-28 | F10: =dms_y7 -> 2028-29 | G10: =dms_y8 -> 2029-30 | H10: =dms_y9 -> 2030-31 | I10: =dms_y10 -> 2031-32
B11: OPEX CATEGORIES AND COST ALLOCATIONS - approved CAM
B12: Network Maintenance | C12: 40607318.34 | D12: 39620801.29 | E12: 45107375.36 | F12: 45230462.27 | G12: 45365410.97 | H12: 45472509.26 | I12: 45579397.28
B13: Network Operations | C13: 15427242.34 | D13: 15451804.12 | E13: 16882074.95 | F13: 16783403.4 | G13: 16742123.33 | H13: 16743147.57 | I13: 16783755.7
B14: Insurance | C14: 8713540.587 | D14: 8904460.714 | E14: 8733235.337 | F14: 8759647.394 | G14: 8788604.761 | H14: 8811585.97 | I14: 8834522.059
B15: Other Taxes and Charges | C15: 20486886.98 | D15: 20801626.89 | E15: 24652249.3 | F15: 24845527.21 | G15: 25050548.62 | H15: 25247531.07 | I15: 25450683.3
B16: OHS | C16: 413677.1012 | D16: 363579.7258 | E16: 414612.1134 | F16: 415866.0312 | G16: 417240.788 | H16: 418331.8255 | I16: 419420.721
B17: Finance | C17: 6187524.574 | D17: 6211454.616 | E17: 6201509.905 | F17: 6220265.226 | G17: 6240827.983 | H17: 6257147.044 | I17: 6273434.064
B18: HR | C18: 4070730.93 | D18: 4158311.435 | E18: 4079931.785 | F18: 4092270.785 | G18: 4105798.885 | H18: 4116535.085 | I18: 4127250.207
B19: IT | C19: 19663694.97 | D19: 19987353.51 | E19: 18880713.1 | F19: 20813464.07 | G19: 23506594.16 | H19: 25161225.99 | I19: 26030443.65
B20: IT - SaaS | C20: 7001350.998 | D20: 7116591.141 | E20: 17118217.84 | F20: 14124992.89 | G20: 7061665.243 | H20: 7080130.7 | I20: 7098559.903
B21: Building Services | C21: 1873606.531 | D21: 1873129.54 | E21: 1877841.344 | F21: 1883520.528 | G21: 1889747.011 | H21: 1894688.486 | I21: 1899620.259
B22: Strategy and Business Development | C22: 714961.1774 | D22: 667417.649 | E22: 716577.1659 | F22: 718744.3212 | G22: 721120.3236 | H22: 723005.9718 | I22: 724887.9178
B23: Other Corporate Services | C23: 5603770.995 | D23: 5625531.107 | E23: 5616436.898 | F23: 5633422.775 | G23: 5652045.567 | H23: 5666825.027 | I23: 5681575.471
B24: Non-Regulated Services | C24: 0 | D24: 0 | E24: 0 | F24: 0 | G24: 0 | H24: 0 | I24: 0
B25: Easement tax | C25: 279373089.7 | D25: 273920041.4 | E25: 277063485.7 | F25: 279961007.2 | G25: 282888830.9 | H25: 285847273.7 | I25: 288836655.8
B47: Total | C47: =SUM(C12:C46) -> 410137395.3 | D47: 404702103.2 | E47: 427344260.7 | F47: 429482594.1 | G47: 428430558.5 | H47: 433439937.7 | I47: 437740206.3
B51: Instructions Table 3.2.3 must be completed if there are any proposed changes to the CAM reported in response to Schedule 1, paragraph 1.3.
B53: 3.2.3 - OPEX CATEGORIES - Revised CAM
C54: EXPENDITURE
C55: =CONCATENATE("Forecast ($0's. real ",dms_DollarReal,")") -> Forecast ($0's. real March 2027)
C56: =dms_y4 -> 2025-26 | D56: =dms_y5 -> 2026-27 | E56: =dms_y6 -> 2027-28 | F56: =dms_y7 -> 2028-29 | G56: =dms_y8 -> 2029-30 | H56: =dms_y9 -> 2030-31 | I56: =dms_y10 -> 2031-32
B57: OPEX CATEGORIES AND COST ALLOCATIONS - revised CAM
C58: Not required | D58: Not required | E58: Not required | F58: Not required | G58: Not required | H58: Not required | I58: Not required
B94: Total | C94: =SUM(C58:C93) -> 0 | D94: 0 | E94: 0 | F94: 0 | G94: 0 | H94: 0 | I94: 0

Sheet 3.3 Assets (RAB)
B1: =(LOOKUP(dms_Model,dms_Model_List,dms_Worksheet_List)) -> REGULATORY REPORTING STATEMENT | F1: #25C6FF | H1: Protected (SOCI)
B2: =INDEX(dms_TradingNameFull_List,MATCH(dms_TradingName,dms_TradingName_List)) -> AusNet Transmission Group Pty Limited | F2: #FFCCCC | H2: Confidential
B3: =CONCATENATE("REGULATORY PERIOD FROM ", FRCP_y1," TO ",dms_MultiYear_FinalYear_Result) -> REGULATORY PERIOD FROM 2027-28 TO 2031-32 | F3: 12.5% Grey | H3: Amended
B4: 3.3 ASSETS | F4: #FFCCCC & 12.5% Grey | H4: Amended Confidential
B6: 3.3.1 - Benchmarking ASSET BASE VALUES
C7: VALUES
C8: =CONCATENATE("Forecast ($0's. real ",dms_DollarReal,")") -> Forecast ($0's. real March 2027)
C9: =dms_y4 -> 2025-26 | D9: =dms_y5 -> 2026-27 | E9: =dms_y6 -> 2027-28 | F9: =dms_y7 -> 2028-29 | G9: =dms_y8 -> 2029-30 | H9: =dms_y9 -> 2030-31 | I9: =dms_y10 -> 2031-32
B10: For total asset base:
A11: TRAB0101 | B11: Opening value | C11: =C25+C33+C41+C49+C57+C65 -> 3852915334 | D11: =C17 -> 4016151326 | E11: =E25+E33+E41+E49+E57+E65 -> 4542142766 | F11: 4898811156 | G11: 5317084815 | H11: 5387676226 | I11: 5651707630
A12: TRAB0102 | B12: Inflation addition | C12: =C26+C34+C42+C50+C58+C66 -> 98249341.03 | D12: 0 | E12: 0 | F12: 0 | G12: 0 | H12: 0 | I12: 0
A13: TRAB0103 | B13: Actual straight line depreciation | C13: 217791652.4 | D13: 224558919 | E13: 227129802 | F13: 251819196 | G13: 273773308 | H13: 283867002 | I13: 303739438.4
A14: TRAB0104 | B14: Gross capex | C14: 276446998.7 | D14: 446112904 | E14: 574746014.4 | F14: 659535809.3 | G14: 339099656.3 | H14: 538920160.9 | I14: 364794137.7
A15: TRAB0106 | B15: Disposals | C15: 375321.7164 | D15: 385492.5189 | E15: 444589.7819 | F15: 466819.271 | G15: 490160.2345 | H15: 514668.2463 | I15: 540401.6586
A16: TRAB0108 | B16: Capex timing adjustment | C16: 6706626.289 | D16: 11928532.72 | E16: 9496768.201 | F16: 11023864.06 | G16: 5755223.096 | H16: 9492913.108 | I16: 6730462.114
A17: TRAB0107 | B17: Closing value | C17: =(C11+C12+C14+C16)-C13-C15 -> 4016151326 | D17: =(D11+D12+D14+D16)-D13-D15 -> 4249248351 | E17: =(E11+E12+E14+E16)-E13-E15 -> 4898811156 | F17: =(F11+F12+F14+F16)-F13-F15 -> 5317084815 | G17: =(G11+G12+G14+G16)-G13-G15 -> 5387676226 | H17: =(H11+H12+H14+H16)-H13-H15 -> 5651707630 | I17: =(I11+I12+I14+I16)-I13-I15 -> 5718952389
B20: 3.3.2 - Benchmarking ASSET VALUE ROLL FORWARD
C21: VALUES
C22: =CONCATENATE("Forecast ($0's. real ",dms_DollarReal,")") -> Forecast ($0's. real March 2027)
C23: =dms_y4 -> 2025-26 | D23: =dms_y5 -> 2026-27 | E23: =dms_y6 -> 2027-28 | F23: =dms_y7 -> 2028-29 | G23: =dms_y8 -> 2029-30 | H23: =dms_y9 -> 2030-31 | I23: =dms_y10 -> 2031-32
B24: For overhead assets:
A25: TRAB0201 | B25: Opening value | C25: 1154092674 | D25: =C31 -> 1171879682 | E25: =('[5]PTRM input summary'!$K$11+'[5]PTRM input summary'!$K$26)*10^6-E33 -> 1284673873 | F25: 1393709554 | G25: 1499061216 | H25: 1492557751 | I25: 1494868479
A26: TRAB0202 | B26: Inflation addition | C26: 29429363.19 | D26: 0
A27: TRAB0203 | B27: Actual straight line depreciation | C27: 75481353.8 | D27: 76058200.76 | E27: =([4]Assets!G180+[4]Assets!G323)*10^6-E35 -> 80826018.87 | F27: =([4]Assets!H180+[4]Assets!H323)*10^6-F35 -> 84534530.81 | G27: =([4]Assets!I180+[4]Assets!I323)*10^6-G35 -> 88219536.55 | H27: =([4]Assets!J180+[4]Assets!J323)*10^6-H35 -> 90025002.52 | I27: =([4]Assets!K180+[4]Assets!K323)*10^6-I35 -> 92017253.7
A28: TRAB0204 | B28: Gross capex | C28: 62324934.78 | D28: 107609412 | E28: =('[4]PTRM input'!G227+'[4]PTRM input'!G238)*10^6 -> 186773179.4 | F28: =('[4]PTRM input'!H227+'[4]PTRM input'!H238)*10^6 -> 186762327.7 | G28: =('[4]PTRM input'!I227+'[4]PTRM input'!I238)*10^6 -> 80350385.34 | H28: =('[4]PTRM input'!J227+'[4]PTRM input'!J238)*10^6 -> 90735917.77 | I28: =('[4]PTRM input'!K227+'[4]PTRM input'!K238)*10^6 -> 86429305.02
A29: TRAB0206 | B29: Disposals | C29: 0 | D29: 0 | E29: =('[4]PTRM input'!G119+'[4]PTRM input'!G130)*10^6 -> 0 | F29: =('[4]PTRM input'!H119+'[4]PTRM input'!H130)*10^6 -> 0 | G29: =('[4]PTRM input'!I119+'[4]PTRM input'!I130)*10^6 -> 0 | H29: =('[4]PTRM input'!J119+'[4]PTRM input'!J130)*10^6 -> 0 | I29: =('[4]PTRM input'!K119+'[4]PTRM input'!K130)*10^6 -> 0
A30: TRAB0208 | B30: Capex timing adjustment | C30: 1514063.488 | D30: 2879837.226 | E30: =(E28-E29)*(1+[4]WACC!G$19)^0.5-(E28-E29) -> 3088520.27 | F30: =(F28-F29)*(1+[4]WACC!H$19)^0.5-(F28-F29) -> 3123864.941 | G30: =(G28-G29)*(1+[4]WACC!I$19)^0.5-(G28-G29) -> 1365686.429 | H30: =(H28-H29)*(1+[4]WACC!J$19)^0.5-(H28-H29) -> 1599813.143 | I30: =(I28-I29)*(1+[4]WACC!K$19)^0.5-(I28-I29) -> 1596988.872
A31: TRAB0207 | B31: Closing value | C31: =(C25+C26+C28+C30)-C27-C29 -> 1171879682 | D31: =(D25+D26+D28+D30)-D27-D29 -> 1206310730 | E31: 1393709554 | F31: 1499061216 | G31: 1492557751 | H31: 1494868479 | I31: 1490877520
B32: For underground assets:
A33: TRAB0301 | B33: Opening value | C33: 28367208.64 | D33: =C39 -> 27235266.24 | E33: =D39 -> 25470246.3 | F33: 23867770.64 | G33: 22420086.81 | H33: 21100667.93 | I33: 19827961.61
A34: TRAB0302 | B34: Inflation addition | C34: 723363.8203 | D34: 0
A35: TRAB0303 | B35: Actual straight line depreciation | C35: 1855306.215 | D35: 1765019.944 | E35: =([4]Assets!G180+[4]Assets!G323)*10^6*(E33/(E33+E25)) -> 1602475.657 | F35: =([4]Assets!H180+[4]Assets!H323)*10^6*(F33/(F33+F25)) -> 1447683.836 | G35: =([4]Assets!I180+[4]Assets!I323)*10^6*(G33/(G33+G25)) -> 1319418.878 | H35: =([4]Assets!J180+[4]Assets!J323)*10^6*(H33/(H33+H25)) -> 1272706.321 | I35: =([4]Assets!K180+[4]Assets!K323)*10^6*(I33/(I33+I25)) -> 1220518.46
A36: TRAB0305 | B36: Gross capex | C36: 0 | D36: 0 | E36: 0 | F36: 0 | G36: 0 | H36: 0 | I36: 0
A37: TRAB0306 | B37: Disposals | C37: 0 | D37: 0 | E37: 0 | F37: 0 | G37: 0 | H37: 0 | I37: 0
A38: TRAB0308 | B38: Capex timing adjustment | C38: 0 | D38: 0 | E38: =(E36-E37)*(1+[4]WACC!G$19)^0.5-(E36-E37) -> 0 | F38: =(F36-F37)*(1+[4]WACC!H$19)^0.5-(F36-F37) -> 0 | G38: =(G36-G37)*(1+[4]WACC!I$19)^0.5-(G36-G37) -> 0 | H38: =(H36-H37)*(1+[4]WACC!J$19)^0.5-(H36-H37) -> 0 | I38: =(I36-I37)*(1+[4]WACC!K$19)^0.5-(I36-I37) -> 0
A39: TRAB0307 | B39: Closing value | C39: =(C33+C34+C36+C38)-C35-C37 -> 27235266.24 | D39: =(D33+D34+D36+D38)-D35-D37 -> 25470246.3 | E39: =(E33+E34+E36+E38)-E35-E37 -> 23867770.64 | F39: =(F33+F34+F36+F38)-F35-F37 -> 22420086.81 | G39: =(G33+G34+G36+G38)-G35-G37 -> 21100667.93 | H39: =(H33+H34+H36+H38)-H35-H37 -> 19827961.61 | I39: =(I33+I34+I36+I38)-I35-I37 -> 18607443.15
B40: For switchyards, substations & transformers
A41: TRAB0401 | B41: Opening value | C41: 2047223859 | D41: =C47 -> 2170234340 | E41: =('[5]PTRM input summary'!$K$8+'[5]PTRM input summary'!$K$9+'[5]PTRM input summary'!$K$10+'[5]PTRM input summary'!$K$12+'[5]PTRM input summary'!$K$19)*10^6 -> 2443556033 | F41: =E47 -> 2608295301 | G41: 2884362024 | H41: 2967917758 | I41: 3198807618
A42: TRAB0402 | B42: Inflation addition | C42: 52204208.39 | D42: 0
A43: TRAB0403 | B43: Actual straight line depreciation | C43: 68672801.66 | D43: 70970859.34 | E43: =([4]Assets!G141+[4]Assets!G154+[4]Assets!G167+[4]Assets!G193+[4]Assets!G284)*10^6 -> 69126717.12 | F43: =([4]Assets!H141+[4]Assets!H154+[4]Assets!H167+[4]Assets!H193+[4]Assets!H284)*10^6 -> 74323739 | G43: =([4]Assets!I141+[4]Assets!I154+[4]Assets!I167+[4]Assets!I193+[4]Assets!I284)*10^6 -> 82124442.37 | H43: =([4]Assets!J141+[4]Assets!J154+[4]Assets!J167+[4]Assets!J193+[4]Assets!J284)*10^6 -> 85862002.87 | I43: =([4]Assets!K141+[4]Assets!K154+[4]Assets!K167+[4]Assets!K193+[4]Assets!K284)*10^6 -> 92944840.7
A44: TRAB0405 | B44: Gross capex | C44: 136171062.6 | D44: 195847855 | E44: =('[4]PTRM input'!G224+'[4]PTRM input'!G225+'[4]PTRM input'!G226+'[4]PTRM input'!G228+'[4]PTRM input'!G235)*10^6 -> 230127724.7 | F44: =('[4]PTRM input'!H224+'[4]PTRM input'!H225+'[4]PTRM input'!H226+'[4]PTRM input'!H228+'[4]PTRM input'!H235)*10^6 -> 344695494.1 | G44: =('[4]PTRM input'!I224+'[4]PTRM input'!I225+'[4]PTRM input'!I226+'[4]PTRM input'!I228+'[4]PTRM input'!I235)*10^6 -> 162984094.7 | H44: =('[4]PTRM input'!J224+'[4]PTRM input'!J225+'[4]PTRM input'!J226+'[4]PTRM input'!J228+'[4]PTRM input'!J235)*10^6 -> 311340309.9 | I44: =('[4]PTRM input'!K224+'[4]PTRM input'!K225+'[4]PTRM input'!K226+'[4]PTRM input'!K228+'[4]PTRM input'!K235)*10^6 -> 169286543
A45: TRAB0406 | B45: Disposals | C45: 0 | D45: 0 | E45: =('[4]PTRM input'!G116+'[4]PTRM input'!G117+'[4]PTRM input'!G118+'[4]PTRM input'!G120+'[4]PTRM input'!G127)*10^6 -> 66087.67028 | F45: =('[4]PTRM input'!H116+'[4]PTRM input'!H117+'[4]PTRM input'!H118+'[4]PTRM input'!H120+'[4]PTRM input'!H127)*10^6 -> 69392.05379 | G45: =('[4]PTRM input'!I116+'[4]PTRM input'!I117+'[4]PTRM input'!I118+'[4]PTRM input'!I120+'[4]PTRM input'!I127)*10^6 -> 72861.65648 | H45: =('[4]PTRM input'!J116+'[4]PTRM input'!J117+'[4]PTRM input'!J118+'[4]PTRM input'!J120+'[4]PTRM input'!J127)*10^6 -> 76504.73931 | I45: =('[4]PTRM input'!K116+'[4]PTRM input'!K117+'[4]PTRM input'!K118+'[4]PTRM input'!K120+'[4]PTRM input'!K127)*10^6 -> 80329.97627
A46: TRAB0408 | B46: Capex timing adjustment | C46: 3308012.029 | D46: 5241269.633 | E46: =(E44-E45)*(1+[4]WACC!G$19)^0.5-(E44-E45) -> 3804347.239 | F46: =(F44-F45)*(1+[4]WACC!H$19)^0.5-(F44-F45) -> 5764360.57 | G46: =(G44-G45)*(1+[4]WACC!I$19)^0.5-(G44-G45) -> 2768943.287 | H46: =(H44-H45)*(1+[4]WACC!J$19)^0.5-(H44-H45) -> 5488057.415 | I46: =(I44-I45)*(1+[4]WACC!K$19)^0.5-(I44-I45) -> 3126490.942
A47: TRAB0407 | B47: Closing value | C47: =(C41+C42+C44+C46)-C43-C45 -> 2170234340 | D47: =(D41+D42+D44+D46)-D43-D45 -> 2300352605 | E47: =(E41+E42+E44+E46)-E43-E45 -> 2608295301 | F47: =(F41+F42+F44+F46)-F43-F45 -> 2884362024 | G47: =(G41+G42+G44+G46)-G43-G45 -> 2967917758 | H47: =(H41+H42+H44+H46)-H43-H45 -> 3198807618 | I47: =(I41+I42+I44+I46)-I43-I45 -> 3278195481
B48: For easements:
A49: TRAB0501 | B49: Opening value | C49: 176014655.7 | D49: =C55 -> 180503029.4 | E49: ='[5]PTRM input summary'!$K$20*10^6 -> 181295095.4 | F49: =E55 -> 181295095.4 | G49: 181295095.4 | H49: 181295095.4 | I49: 181295095.4
A50: TRAB0502 | B50: Inflation addition | C50: 4488373.72 | D50: 0
A51: TRAB0503 | B51: Actual straight line depreciation | C51: 0 | D51: 0 | E51: =[4]Assets!G297*10^6 -> 0 | F51: =[4]Assets!H297*10^6 -> 0 | G51: =[4]Assets!I297*10^6 -> 0 | H51: =[4]Assets!J297*10^6 -> 0 | I51: =[4]Assets!K297*10^6 -> 0
A52: TRAB0505 | B52: Gross capex | C52: 0 | D52: 0 | E52: ='[4]PTRM input'!G236*10^6 -> 0 | F52: ='[4]PTRM input'!H236*10^6 -> 0 | G52: ='[4]PTRM input'!I236*10^6 -> 0 | H52: ='[4]PTRM input'!J236*10^6 -> 0 | I52: ='[4]PTRM input'!K236*10^6 -> 0
A53: TRAB0506 | B53: Disposals | C53: 0 | D53: 0 | E53: ='[4]PTRM input'!G128*10^6 -> 0 | F53: ='[4]PTRM input'!H128*10^6 -> 0 | G53: ='[4]PTRM input'!I128*10^6 -> 0 | H53: ='[4]PTRM input'!J128*10^6 -> 0 | I53: ='[4]PTRM input'!K128*10^6 -> 0
A54: TRAB0508 | B54: Capex timing adjustment | C54: 0 | D54: 0 | E54: =(E52-E53)*(1+[4]WACC!G$19)^0.5-(E52-E53) -> 0 | F54: =(F52-F53)*(1+[4]WACC!H$19)^0.5-(F52-F53) -> 0 | G54: =(G52-G53)*(1+[4]WACC!I$19)^0.5-(G52-G53) -> 0 | H54: =(H52-H53)*(1+[4]WACC!J$19)^0.5-(H52-H53) -> 0 | I54: =(I52-I53)*(1+[4]WACC!K$19)^0.5-(I52-I53) -> 0
A55: TRAB0507 | B55: Closing value | C55: =(C49+C50+C52+C54)-C51-C53 -> 180503029.4 | D55: =(D49+D50+D52+D54)-D51-D53 -> 180503029.4 | E55: =(E49+E50+E52+E54)-E51-E53 -> 181295095.4 | F55: =(F49+F50+F52+F54)-F51-F53 -> 181295095.4 | G55: =(G49+G50+G52+G54)-G51-G53 -> 181295095.4 | H55: =(H49+H50+H52+H54)-H51-H53 -> 181295095.4 | I55: =(I49+I50+I52+I54)-I51-I53 -> 181295095.4
B56: For “other” assets with long lives:
A57: TRAB0601 | B57: Opening value | C57: 371955529.7 | D57: =C63 -> 383169130.1 | E57: =('[5]PTRM input summary'!$K$7+'[5]PTRM input summary'!$K$13+'[5]PTRM input summary'!$K$17+'[5]PTRM input summary'!$K$18+'[5]PTRM input summary'!$K$21+'[5]PTRM input summary'!$K$31+'[5]PTRM input summary'!$K$54)*10^6 -> 506243420.9 | F57: =E63 -> 543242687.2 | G57: 548943633.8 | H57: 533124291.7 | I57: 545012129.8
A58: TRAB0602 | B58: Inflation addition | C58: 9484866.007 | D58: 0
A59: TRAB0603 | B59: Actual straight line depreciation | C59: 50965030.81 | D59: 51189167.91 | E59: =([4]Assets!G128+[4]Assets!G206+[4]Assets!G258+[4]Assets!G271+[4]Assets!G349+[4]Assets!G739+[4]Assets!G310)*10^6 -> 58259432.48 | F59: =([4]Assets!H128+[4]Assets!H206+[4]Assets!H258+[4]Assets!H271+[4]Assets!H349+[4]Assets!H739+[4]Assets!H310)*10^6 -> 60107641.93 | G59: =([4]Assets!I128+[4]Assets!I206+[4]Assets!I258+[4]Assets!I271+[4]Assets!I349+[4]Assets!I739+[4]Assets!I310)*10^6 -> 61031703.35 | H59: =([4]Assets!J128+[4]Assets!J206+[4]Assets!J258+[4]Assets!J271+[4]Assets!J349+[4]Assets!J739+[4]Assets!J310)*10^6 -> 58093964.98 | I59: =([4]Assets!K128+[4]Assets!K206+[4]Assets!K258+[4]Assets!K271+[4]Assets!K349+[4]Assets!K739+[4]Assets!K310)*10^6 -> 60309007.85
A60: TRAB0605 | B60: Gross capex | C60: 51444032.14 | D60: 86169443 | E60: =('[4]PTRM input'!G223+'[4]PTRM input'!G229+'[4]PTRM input'!G233+'[4]PTRM input'!G234+'[4]PTRM input'!G240+'[4]PTRM input'!G270)*10^6 -> 93935405.68 | F60: =('[4]PTRM input'!H223+'[4]PTRM input'!H229+'[4]PTRM input'!H233+'[4]PTRM input'!H234+'[4]PTRM input'!H240+'[4]PTRM input'!H270)*10^6 -> 64963570.22 | G60: =('[4]PTRM input'!I223+'[4]PTRM input'!I229+'[4]PTRM input'!I233+'[4]PTRM input'!I234+'[4]PTRM input'!I240+'[4]PTRM input'!I270)*10^6 -> 44706242.07 | H60: =('[4]PTRM input'!J223+'[4]PTRM input'!J229+'[4]PTRM input'!J233+'[4]PTRM input'!J234+'[4]PTRM input'!J240+'[4]PTRM input'!J270)*10^6 -> 69031265.88 | I60: =('[4]PTRM input'!K223+'[4]PTRM input'!K229+'[4]PTRM input'!K233+'[4]PTRM input'!K234+'[4]PTRM input'!K240+'[4]PTRM input'!K270)*10^6 -> 55858145.96
A61: TRAB0606 | B61: Disposals | C61: 0 | D61: 0 | E61: =('[4]PTRM input'!G115+'[4]PTRM input'!G121+'[4]PTRM input'!G125+'[4]PTRM input'!G126+'[4]PTRM input'!G132+'[4]PTRM input'!G162+'[4]PTRM input'!G129)*10^6 -> 226300.2043 | F61: =('[4]PTRM input'!H115+'[4]PTRM input'!H121+'[4]PTRM input'!H125+'[4]PTRM input'!H126+'[4]PTRM input'!H132+'[4]PTRM input'!H162+'[4]PTRM input'!H129)*10^6 -> 237615.2145 | G61: =('[4]PTRM input'!I115+'[4]PTRM input'!I121+'[4]PTRM input'!I125+'[4]PTRM input'!I126+'[4]PTRM input'!I132+'[4]PTRM input'!I162+'[4]PTRM input'!I129)*10^6 -> 249495.9752 | H61: =('[4]PTRM input'!J115+'[4]PTRM input'!J121+'[4]PTRM input'!J125+'[4]PTRM input'!J126+'[4]PTRM input'!J132+'[4]PTRM input'!J162+'[4]PTRM input'!J129)*10^6 -> 261970.774 | I61: =('[4]PTRM input'!K115+'[4]PTRM input'!K121+'[4]PTRM input'!K125+'[4]PTRM input'!K126+'[4]PTRM input'!K132+'[4]PTRM input'!K162+'[4]PTRM input'!K129)*10^6 -> 275069.3127
A62: TRAB0608 | B62: Capex timing adjustment | C62: 1249733.048 | D62: 2306061.942 | E62: =(E60-E61)*(1+[4]WACC!G$19)^0.5-(E60-E61) -> 1549593.323 | F62: =(F60-F61)*(1+[4]WACC!H$19)^0.5-(F60-F61) -> 1082633.442 | G62: =(G60-G61)*(1+[4]WACC!I$19)^0.5-(G60-G61) -> 755615.229 | H62: =(H60-H61)*(1+[4]WACC!J$19)^0.5-(H60-H61) -> 1212507.955 | I62: =(I60-I61)*(1+[4]WACC!K$19)^0.5-(I60-I61) -> 1027030.761
A63: TRAB0607 | B63: Closing value | C63: =(C57+C58+C60+C62)-C59-C61 -> 383169130.1 | D63: =(D57+D58+D60+D62)-D59-D61 -> 420455467.1 | E63: =(E57+E58+E60+E62)-E59-E61 -> 543242687.2 | F63: =(F57+F58+F60+F62)-F59-F61 -> 548943633.8 | G63: =(G57+G58+G60+G62)-G59-G61 -> 533124291.7 | H63: =(H57+H58+H60+H62)-H59-H61 -> 545012129.8 | I63: =(I57+I58+I60+I62)-I59-I61 -> 541313229.4
B64: For “other” assets with short lives:
A65: TRAB0701 | B65: Opening value | C65: 75261407.48 | D65: =C71 -> 83129878.64 | E65: =('[5]PTRM input summary'!$K$14+'[5]PTRM input summary'!$K$15+'[5]PTRM input summary'!$K$16+'[5]PTRM input summary'!$K$30+'[5]PTRM input summary'!$K$32+'[5]PTRM input summary'!$K$33+'[5]PTRM input summary'!$K$55)*10^6 -> 100904096.5 | F65: =E71 -> 148400748.7 | G65: 181002758.7 | H65: 191680661.7 | I65: 211896345.5
A66: TRAB0702 | B66: Inflation addition | C66: 1919165.891 | D66: 0
A67: TRAB0703 | B67: Actual straight line depreciation | C67: 20817159.89 | D67: 24575671.1 | E67: =([4]Assets!G219+[4]Assets!G336+[4]Assets!G362+[4]Assets!G375+[4]Assets!G232+[4]Assets!G245+[4]Assets!G388+[4]Assets!G401+[4]Assets!G752)*10^6 -> 17315157.88 | F67: =([4]Assets!H219+[4]Assets!H336+[4]Assets!H362+[4]Assets!H375+[4]Assets!H232+[4]Assets!H245+[4]Assets!H388+[4]Assets!H401+[4]Assets!H752)*10^6 -> 31405600.39 | G67: =([4]Assets!I219+[4]Assets!I336+[4]Assets!I362+[4]Assets!I375+[4]Assets!I232+[4]Assets!I245+[4]Assets!I388+[4]Assets!I401+[4]Assets!I752)*10^6 -> 41078206.83 | H67: =([4]Assets!J219+[4]Assets!J336+[4]Assets!J362+[4]Assets!J375+[4]Assets!J232+[4]Assets!J245+[4]Assets!J388+[4]Assets!J401+[4]Assets!J752)*10^6 -> 48613325.33 | I67: =([4]Assets!K219+[4]Assets!K336+[4]Assets!K362+[4]Assets!K375+[4]Assets!K232+[4]Assets!K245+[4]Assets!K388+[4]Assets!K401+[4]Assets!K752)*10^6 -> 57247817.68
A68: TRAB0705 | B68: Gross capex | C68: 26506969.15 | D68: 56486194 | E68: =('[4]PTRM input'!G230+'[4]PTRM input'!G231+'[4]PTRM input'!G232+'[4]PTRM input'!G239+'[4]PTRM input'!G243+'[4]PTRM input'!G244+'[4]PTRM input'!G271)*10^6 -> 63909704.64 | F68: =('[4]PTRM input'!H230+'[4]PTRM input'!H231+'[4]PTRM input'!H232+'[4]PTRM input'!H239+'[4]PTRM input'!H243+'[4]PTRM input'!H244+'[4]PTRM input'!H271)*10^6 -> 63114417.3 | G68: =('[4]PTRM input'!I230+'[4]PTRM input'!I231+'[4]PTRM input'!I232+'[4]PTRM input'!I239+'[4]PTRM input'!I243+'[4]PTRM input'!I244+'[4]PTRM input'!I271)*10^6 -> 51058934.21 | H68: =('[4]PTRM input'!J230+'[4]PTRM input'!J231+'[4]PTRM input'!J232+'[4]PTRM input'!J239+'[4]PTRM input'!J243+'[4]PTRM input'!J244+'[4]PTRM input'!J271)*10^6 -> 67812667.34 | I68: =('[4]PTRM input'!K230+'[4]PTRM input'!K231+'[4]PTRM input'!K232+'[4]PTRM input'!K239+'[4]PTRM input'!K243+'[4]PTRM input'!K244+'[4]PTRM input'!K271)*10^6 -> 53220143.7
A69: TRAB0706 | B69: Disposals | C69: 375321.7164 | D69: 385492.5189 | E69: =('[4]PTRM input'!G122+'[4]PTRM input'!G131+'[4]PTRM input'!G123+'[4]PTRM input'!G163+'[4]PTRM input'!G124)*10^6 -> 152201.9073 | F69: =('[4]PTRM input'!H122+'[4]PTRM input'!H131+'[4]PTRM input'!H123+'[4]PTRM input'!H163+'[4]PTRM input'!H124)*10^6 -> 159812.0027 | G69: =('[4]PTRM input'!I122+'[4]PTRM input'!I131+'[4]PTRM input'!I123+'[4]PTRM input'!I163+'[4]PTRM input'!I124)*10^6 -> 167802.6028 | H69: =('[4]PTRM input'!J122+'[4]PTRM input'!J131+'[4]PTRM input'!J123+'[4]PTRM input'!J163+'[4]PTRM input'!J124)*10^6 -> 176192.733 | I69: =('[4]PTRM input'!K122+'[4]PTRM input'!K131+'[4]PTRM input'!K123+'[4]PTRM input'!K163+'[4]PTRM input'!K124)*10^6 -> 185002.3696
A70: TRAB0708 | B70: Capex timing adjustment | C70: 634817.7241 | D70: 1501363.919 | E70: =(E68-E69)*(1+[4]WACC!G$19)^0.5-(E68-E69) -> 1054307.37 | F70: =(F68-F69)*(1+[4]WACC!H$19)^0.5-(F68-F69) -> 1053005.104 | G70: =(G68-G69)*(1+[4]WACC!I$19)^0.5-(G68-G69) -> 864978.1514 | H70: =(H68-H69)*(1+[4]WACC!J$19)^0.5-(H68-H69) -> 1192534.595 | I70: =(I68-I69)*(1+[4]WACC!K$19)^0.5-(I68-I69) -> 979951.5397
A71: TRAB0707 | B71: Closing value | C71: =(C65+C66+C68+C70)-C67-C69 -> 83129878.64 | D71: =(D65+D66+D68+D70)-D67-D69 -> 116156272.9 | E71: =(E65+E66+E68+E70)-E67-E69 -> 148400748.7 | F71: =(F65+F66+F68+F70)-F67-F69 -> 181002758.7 | G71: =(G65+G66+G68+G70)-G67-G69 -> 191680661.7 | H71: =(H65+H66+H68+H70)-H67-H69 -> 211896345.5 | I71: =(I65+I66+I68+I70)-I67-I69 -> 208663620.7
B75: Table 3.3.3 Total disaggregated RAB asset values removed
B78: 3.3.4 - ASSET LIVES
C79: ASSET LIFE
C80: (Years)
C81: =dms_y4 -> 2025-26 | D81: =dms_y5 -> 2026-27 | E81: =dms_y6 -> 2027-28 | F81: =dms_y7 -> 2028-29 | G81: =dms_y8 -> 2029-30 | H81: =dms_y9 -> 2030-31 | I81: =dms_y10 -> 2031-32
B82: ESTIMATED SERVICE LIFE OF NEW ASSETS
A83: TRAB0901 | B83: Overhead transmission assets (wires and towers/poles etc) | C83: ='[6]3.3 Assets (RAB)'!H83 -> 68.7522432 | D83: ='[6]3.3 Assets (RAB)'!I83 -> 68.75069184 | E83: =D83 -> 68.75069184 | F83: =E83 -> 68.75069184 | G83: 68.75069184 | H83: 68.75069184 | I83: 68.75069184
A84: TRAB0902 | B84: Underground transmission assets (cables, ducts etc) | C84: ='[6]3.3 Assets (RAB)'!H84 -> 60 | D84: ='[6]3.3 Assets (RAB)'!I84 -> 60 | E84: =D84 -> 60 | F84: 60 | G84: 60 | H84: 60 | I84: 60
A85: TRAB0903 | B85: Substations, switchyards, transformers etc with transmission function | C85: ='[6]3.3 Assets (RAB)'!H85 -> 40.7522432 | D85: ='[6]3.3 Assets (RAB)'!I85 -> 40.75069184 | E85: 40.75069184 | F85: 40.75069184 | G85: 40.75069184 | H85: 40.75069184 | I85: 40.75069184
A86: TRAB0904 | B86: Other assets with long lives | C86: 15.24032565 | D86: 19.18513208 | E86: 18.08184665 | F86: 17.70050604 | G86: 15.18222943 | H86: 16.19089119 | I86: 15.18348987
A87: TRAB0905 | B87: Other assets with short lives | C87: 5.017145138 | D87: 5.031444045 | E87: 5.213036851 | F87: 5.093687743 | G87: 5.170471132 | H87: 5.278494653 | I87: 5.062837822
B88: ESTIMATED RESIDUAL SERVICE LIFE
A89: TRAB1001 | B89: Overhead transmission assets (wires and towers/poles etc) | C89: ='[6]3.3 Assets (RAB)'!H89 -> 20.7 | D89: ='[6]3.3 Assets (RAB)'!I89 -> 20.9 | E89: =D89 -> 20.9 | F89: =E89 -> 20.9 | G89: 20.9 | H89: 20.9 | I89: 20.9
A90: TRAB1002 | B90: Underground transmission assets (cables, ducts etc) | C90: ='[6]3.3 Assets (RAB)'!H90 -> 35.4030208 | D90: ='[6]3.3 Assets (RAB)'!I90 -> 35.29562496 | E90: =D90 -> 35.29562496 | F90: 35.29562496 | G90: 35.29562496 | H90: 35.29562496 | I90: 35.29562496
A91: TRAB1003 | B91: Substations, switchyards, transformers etc with transmission function | C91: ='[6]3.3 Assets (RAB)'!H91 -> 22.5 | D91: ='[6]3.3 Assets (RAB)'!I91 -> 22.2 | E91: 22.2 | F91: 22.2 | G91: 22.2 | H91: 22.2 | I91: 22.2
A92: TRAB1004 | B92: Other assets with long lives | C92: 8.941428731 | D92: 10.01838891 | E92: 10.75963472 | F92: 11.18089679 | G92: 11.24817111 | H92: 11.42352796 | I92: 11.48347227
A93: TRAB1005 | B93: Other assets with short lives | C93: 2.966430924 | D93: 3.531331259 | E93: 3.391478617 | F93: 3.534526058 | G93: 3.618383194 | H93: 3.528023144 | I93: 3.570163021

Sheet 3.4 Operational data
B1: =(LOOKUP(dms_Model,dms_Model_List,dms_Worksheet_List)) -> REGULATORY REPORTING STATEMENT | F1: #25C6FF | H1: Protected (SOCI)
B2: =INDEX(dms_TradingNameFull_List,MATCH(dms_TradingName,dms_TradingName_List)) -> AusNet Transmission Group Pty Limited | F2: #FFCCCC | H2: Confidential
B3: =CONCATENATE("REGULATORY PERIOD FROM ", FRCP_y1," TO ",dms_MultiYear_FinalYear_Result) -> REGULATORY PERIOD FROM 2027-28 TO 2031-32 | F3: 12.5% Grey | H3: Amended
B4: 3.4 OPERATIONAL DATA | F4: #FFCCCC & 12.5% Grey | H4: Amended Confidential
A7: NULL valid for Ausnet (T) | B7: 3.4.1 - ENERGY DELIVERY
D8: VOLUMES
D9: Forecast (0's)
C10: Units | D10: =dms_y4 -> 2025-26 | E10: =dms_y5 -> 2026-27 | F10: =dms_y6 -> 2027-28 | G10: =dms_y7 -> 2028-29 | H10: =dms_y8 -> 2029-30 | I10: =dms_y9 -> 2030-31 | J10: =dms_y10 -> 2031-32
B11: Energy grouping by downstream connection type
A12: TOPED0101 | B12: To Other connected transmission networks | C12: GWh | D12: Not required | E12: Not required | F12: Not required | G12: Not required | H12: Not required | I12: Not required | J12: Not required
A13: TOPED0102 | B13: To Distribution networks | C13: GWh | D13: Not required | E13: Not required | F13: Not required | G13: Not required | H13: Not required | I13: Not required | J13: Not required
A14: TOPED0103 | B14: To Directly connected end–users (330 kV) | C14: GWh | D14: Not required | E14: Not required | F14: Not required | G14: Not required | H14: Not required | I14: Not required | J14: Not required
A15: TOPED0104 | B15: To Directly connected end–users (275 kV) | C15: GWh | D15: Not required | E15: Not required | F15: Not required | G15: Not required | H15: Not required | I15: Not required | J15: Not required
A16: TOPED0105 | B16: To Directly connected end–users (220 kV) | C16: GWh | D16: Not required | E16: Not required | F16: Not required | G16: Not required | H16: Not required | I16: Not required | J16: Not required
A17: TOPED0106 | B17: To Directly connected end–users (132 kV) | C17: GWh | D17: Not required | E17: Not required | F17: Not required | G17: Not required | H17: Not required | I17: Not required | J17: Not required
A18: TOPED0107 | B18: To Directly connected end–users (110 kV) | C18: GWh | D18: Not required | E18: Not required | F18: Not required | G18: Not required | H18: Not required | I18: Not required | J18: Not required
A19: TOPED0108 | B19: To Directly connected end–users (44 kV) | C19: GWh | D19: Not required | E19: Not required | F19: Not required | G19: Not required | H19: Not required | I19: Not required | J19: Not required
A20: TOPED0109 | B20: To Directly connected end–users (33 kV) | C20: GWh | D20: Not required | E20: Not required | F20: Not required | G20: Not required | H20: Not required | I20: Not required | J20: Not required
A21: TOPED0110 | B21: To Directly connected end–users (22 kV) | C21: GWh | D21: Not required | E21: Not required | F21: Not required | G21: Not required | H21: Not required | I21: Not required | J21: Not required
A22: TOPED0111 | B22: To Directly connected end–users (11 kV) | C22: GWh | D22: Not required | E22: Not required | F22: Not required | G22: Not required | H22: Not required | I22: Not required | J22: Not required
A23: TOPED0112 | B23: To Directly connected end–users (6.6 kV) | C23: GWh | D23: Not required | E23: Not required | F23: Not required | G23: Not required | H23: Not required | I23: Not required | J23: Not required
A24: TOPED0113 | B24: Pumping and Power Station Auxillaries | C24: GWh | D24: Not required | E24: Not required | F24: Not required | G24: Not required | H24: Not required | I24: Not required | J24: Not required
A25: TOPED01 | B25: Total energy transported | C25: GWh | D25: =SUM(D12:D24) -> 0 | E25: 0 | F25: 0 | G25: 0 | H25: 0 | I25: 0 | J25: 0
B28: 3.4.2 - CONNECTION POINTS
D29: VOLUMES
D30: Forecast (0's)
A31: NULL valid for Ausnet (T) | C31: Units | D31: =dms_y4 -> 2025-26 | E31: =dms_y5 -> 2026-27 | F31: =dms_y6 -> 2027-28 | G31: =dms_y7 -> 2028-29 | H31: =dms_y8 -> 2029-30 | I31: =dms_y9 -> 2030-31 | J31: =dms_y10 -> 2031-32
B32: AVERAGE Number of entry points at each transmission voltage level
A33: TOPCP0101 | B33: 500kV | C33: number | D33: Not required | E33: Not required | F33: Not required | G33: Not required | H33: Not required | I33: Not required | J33: Not required
A34: TOPCP0102 | B34: 330kV | C34: number | D34: Not required | E34: Not required | F34: Not required | G34: Not required | H34: Not required | I34: Not required | J34: Not required
A35: TOPCP0103 | B35: 275kV | C35: number | D35: Not required | E35: Not required | F35: Not required | G35: Not required | H35: Not required | I35: Not required | J35: Not required
A36: TOPCP0104 | B36: 220kV | C36: number | D36: Not required | E36: Not required | F36: Not required | G36: Not required | H36: Not required | I36: Not required | J36: Not required
A37: TOPCP0105 | B37: 132 kV | C37: number | D37: Not required | E37: Not required | F37: Not required | G37: Not required | H37: Not required | I37: Not required | J37: Not required
A38: TOPCP0106 | B38: 110kV | C38: number | D38: Not required | E38: Not required | F38: Not required | G38: Not required | H38: Not required | I38: Not required | J38: Not required
A39: TOPCP0107 | B39: 66 kV | C39: number | D39: Not required | E39: Not required | F39: Not required | G39: Not required | H39: Not required | I39: Not required | J39: Not required
A40: TOPCP0108 | B40: 33 kV | C40: number | D40: Not required | E40: Not required | F40: Not required | G40: Not required | H40: Not required | I40: Not required | J40: Not required
A41: TOPCP0109 | B41: 22 kV | C41: number | D41: Not required | E41: Not required | F41: Not required | G41: Not required | H41: Not required | I41: Not required | J41: Not required
A42: TOPCP0110 | B42: 11 kV | C42: number | D42: Not required | E42: Not required | F42: Not required | G42: Not required | H42: Not required | I42: Not required | J42: Not required
A43: TOPCP0111 | B43: 6.6 kV | C43: number | D43: Not required | E43: Not required | F43: Not required | G43: Not required | H43: Not required | I43: Not required | J43: Not required
B44: AVERAGE Number of exit points at each transmission voltage level
A45: TOPCP0201 | B45: 500kV | C45: number | D45: Not required | E45: Not required | F45: Not required | G45: Not required | H45: Not required | I45: Not required | J45: Not required
A46: TOPCP0202 | B46: 330kV | C46: number | D46: Not required | E46: Not required | F46: Not required | G46: Not required | H46: Not required | I46: Not required | J46: Not required
A47: TOPCP0203 | B47: 275kV | C47: number | D47: Not required | E47: Not required | F47: Not required | G47: Not required | H47: Not required | I47: Not required | J47: Not required
A48: TOPCP0204 | B48: 220kV | C48: number | D48: Not required | E48: Not required | F48: Not required | G48: Not required | H48: Not required | I48: Not required | J48: Not required
A49: TOPCP0205 | B49: 132 kV | C49: number | D49: Not required | E49: Not required | F49: Not required | G49: Not required | H49: Not required | I49: Not required | J49: Not required
A50: TOPCP0206 | B50: 110kV | C50: number | D50: Not required | E50: Not required | F50: Not required | G50: Not required | H50: Not required | I50: Not required | J50: Not required
A51: TOPCP0207 | B51: 66 kV | C51: number | D51: Not required | E51: Not required | F51: Not required | G51: Not required | H51: Not required | I51: Not required | J51: Not required
A52: TOPCP0208 | B52: 44 kV | C52: number | D52: Not required | E52: Not required | F52: Not required | G52: Not required | H52: Not required | I52: Not required | J52: Not required
A53: TOPCP0209 | B53: 33kV | C53: number | D53: Not required | E53: Not required | F53: Not required | G53: Not required | H53: Not required | I53: Not required | J53: Not required
A54: TOPCP0210 | B54: 22kV | C54: number | D54: Not required | E54: Not required | F54: Not required | G54: Not required | H54: Not required | I54: Not required | J54: Not required
A55: TOPCP0211 | B55: 11kV | C55: number | D55: Not required | E55: Not required | F55: Not required | G55: Not required | H55: Not required | I55: Not required | J55: Not required
A56: TOPCP0212 | B56: 6.6kV | C56: number | D56: Not required | E56: Not required | F56: Not required | G56: Not required | H56: Not required | I56: Not required | J56: Not required
A59: NULL valid for Ausnet (T)
B60: 3.4.3 - SYSTEM DEMAND
D61: VOLUMES
D62: Forecast (0's)
C63: Units | D63: =dms_y4 -> 2025-26 | E63: =dms_y5 -> 2026-27 | F63: =dms_y6 -> 2027-28 | G63: =dms_y7 -> 2028-29 | H63: =dms_y8 -> 2029-30 | I63: =dms_y9 -> 2030-31 | J63: =dms_y10 -> 2031-32
B64: Annual system maximum demand characteristics – MW measure
A65: TOPSD0101 | B65: Transmission System coincident maximum demand | C65: MW
A66: TOPSD0102 | B66: Transmission System coincident weather adjusted maximum demand 10% POE | C66: MW
A67: TOPSD0103 | B67: Transmission System coincident weather adjusted maximum demand 50% POE | C67: MW
A68: TOPSD0104 | B68: Transmission System non-coincident summated maximum demand | C68: MW
A69: TOPSD0105 | B69: Transmission System non-coincident weather adjusted summated maximum demand 10% POE | C69: MW
A70: TOPSD0106 | B70: Transmission System non-coincident weather adjusted summated maximum demand 50% POE | C70: MW
B71: Annual system maximum demand characteristics – MVA measure
A72: TOPSD0201 | B72: Transmission System coincident maximum demand | C72: MVA
A73: TOPSD0202 | B73: Transmission System coincident weather adjusted maximum demand 10% POE | C73: MVA
A74: TOPSD0203 | B74: Transmission System coincident weather adjusted maximum demand 50% POE | C74: MVA
A75: TOPSD0204 | B75: Transmission System non-coincident summated maximum demand | C75: MVA
A76: TOPSD0205 | B76: Transmission System non-coincident weather adjusted summated maximum demand 10% POE | C76: MVA
A77: TOPSD0206 | B77: Transmission System non-coincident weather adjusted summated maximum demand 50% POE | C77: MVA
B78: Power factor
B79: Power factor conversion between MVA and MW
A80: TOPSD0301 | B80: Average overall network power factor conversion between MVA and MW | C80: Factor
A81: TOPSD0302 | B81: Average power factor conversion for 500 kV lines | C81: Factor
A82: TOPSD0303 | B82: Average power factor conversion for 330 kV lines | C82: Factor
A83: TOPSD0304 | B83: Average power factor conversion for 275 kV lines | C83: Factor
A84: TOPSD0305 | B84: Average power factor conversion for 220 kV lines | C84: Factor
A85: TOPSD0306 | B85: Average power factor conversion for 132 kV lines | C85: Factor
A86: TOPSD0307 | B86: Average power factor conversion for 110 kV lines | C86: Factor
A87: TOPSD0308 | B87: Average power factor conversion for 88 kV lines | C87: Factor
A88: TOPSD0309 | B88: Average power factor conversion for 66 kV lines | C88: Factor
A89: TOPSD0310 | B89: Average power factor conversion for 33 kV lines | C89: Factor
A90: TOPSD0311 | B90: Average power factor conversion for 22 kV lines | C90: Factor
A91: TOPSD0311 | B91: Average power factor conversion for 11 kV lines | C91: Factor
A92: TOPSD0312 | B92: Average power factor conversion for 6.6 kV lines | C92: Factor

Sheet 3.5 Physical assets
B1: =(LOOKUP(dms_Model,dms_Model_List,dms_Worksheet_List)) -> REGULATORY REPORTING STATEMENT | F1: #25C6FF | H1: Protected (SOCI)
B2: =INDEX(dms_TradingNameFull_List,MATCH(dms_TradingName,dms_TradingName_List)) -> AusNet Transmission Group Pty Limited | F2: #FFCCCC | H2: Confidential
B3: =CONCATENATE("REGULATORY PERIOD FROM ", FRCP_y1," TO ",dms_MultiYear_FinalYear_Result) -> REGULATORY PERIOD FROM 2027-28 TO 2031-32 | F3: 12.5% Grey | H3: Amended
B4: 3.5 PHYSICAL ASSETS | F4: #FFCCCC & 12.5% Grey | H4: Amended Confidential
B7: 3.5.1 - TRANSMISSION SYSTEM CAPACITIES
D8: VOLUMES
D9: Forecast (0's)
C10: Units | D10: =dms_y4 -> 2025-26 | E10: =dms_y5 -> 2026-27 | F10: =dms_y6 -> 2027-28 | G10: =dms_y7 -> 2028-29 | H10: =dms_y8 -> 2029-30 | I10: =dms_y9 -> 2030-31 | J10: =dms_y10 -> 2031-32
B11: Overhead network length of circuit at each voltage
A12: TPA0101 | B12: 500 kV | C12: km | D12: =IFERROR(INDEX('[7]3.5 Physical assets'!$F:$F,MATCH($A12,'[7]3.5 Physical assets'!$B:$B,0)),0) -> 1464.221345 | E12: =D12 -> 1464.221345 | F12: 1464.221345 | G12: 1464.221345 | H12: 1464.221345 | I12: 1464.221345 | J12: 1464.221345
A13: TPA0102 | B13: 330 kV | C13: km | D13: =IFERROR(INDEX('[7]3.5 Physical assets'!$F:$F,MATCH($A13,'[7]3.5 Physical assets'!$B:$B,0)),0) -> 738.951562 | E13: 738.951562 | F13: 738.951562 | G13: 738.951562 | H13: 738.951562 | I13: 738.951562 | J13: 738.951562
A14: TPA0103 | B14: 275 kV | C14: km | D14: =IFERROR(INDEX('[7]3.5 Physical assets'!$F:$F,MATCH($A14,'[7]3.5 Physical assets'!$B:$B,0)),0) -> 156.733758 | E14: 156.733758 | F14: 156.733758 | G14: 156.733758 | H14: 156.733758 | I14: 156.733758 | J14: 156.733758
A15: TPA0104 | B15: 220 kV | C15: km | D15: =IFERROR(INDEX('[7]3.5 Physical assets'!$F:$F,MATCH($A15,'[7]3.5 Physical assets'!$B:$B,0)),0) -> 4006.973016 | E15: 4006.973016 | F15: 4006.973016 | G15: 4006.973016 | H15: 4006.973016 | I15: 4006.973016 | J15: 4006.973016
A16: TPA0105 | B16: 132 kV | C16: km | D16: =IFERROR(INDEX('[7]3.5 Physical assets'!$F:$F,MATCH($A16,'[7]3.5 Physical assets'!$B:$B,0)),0) -> 0 | E16: 0 | F16: 0 | G16: 0 | H16: 0 | I16: 0 | J16: 0
A17: TPA0106 | B17: 110 kV | C17: km | D17: =IFERROR(INDEX('[7]3.5 Physical assets'!$F:$F,MATCH($A17,'[7]3.5 Physical assets'!$B:$B,0)),0) -> 0 | E17: 0 | F17: 0 | G17: 0 | H17: 0 | I17: 0 | J17: 0
A18: TPA0107 | B18: 88 kV | C18: km | D18: =IFERROR(INDEX('[7]3.5 Physical assets'!$F:$F,MATCH($A18,'[7]3.5 Physical assets'!$B:$B,0)),0) -> 0 | E18: 0 | F18: 0 | G18: 0 | H18: 0 | I18: 0 | J18: 0
A19: TPA0108 | B19: 66 kV | C19: km | D19: =IFERROR(INDEX('[7]3.5 Physical assets'!$F:$F,MATCH($A19,'[7]3.5 Physical assets'!$B:$B,0)),0) -> 175.730718 | E19: 175.730718 | F19: 175.730718 | G19: 175.730718 | H19: 175.730718 | I19: 175.730718 | J19: 175.730718
A20: TPA0109 | B20: 33 kV | C20: km | D20: =IFERROR(INDEX('[7]3.5 Physical assets'!$F:$F,MATCH($A20,'[7]3.5 Physical assets'!$B:$B,0)),0) -> 0 | E20: 0 | F20: 0 | G20: 0 | H20: 0 | I20: 0 | J20: 0
A21: TPA0110 | B21: 22 kV | C21: km | D21: =IFERROR(INDEX('[7]3.5 Physical assets'!$F:$F,MATCH($A21,'[7]3.5 Physical assets'!$B:$B,0)),0) -> 0 | E21: 0 | F21: 0 | G21: 0 | H21: 0 | I21: 0 | J21: 0
A22: TPA011 | B22: 11 kV | C22: km | D22: =IFERROR(INDEX('[7]3.5 Physical assets'!$F:$F,MATCH($A22,'[7]3.5 Physical assets'!$B:$B,0)),0) -> 0 | E22: 0 | F22: 0 | G22: 0 | H22: 0 | I22: 0 | J22: 0
A23: TPA0112 | B23: Other voltages | C23: km | D23: =IFERROR(INDEX('[7]3.5 Physical assets'!$F:$F,MATCH($A23,'[7]3.5 Physical assets'!$B:$B,0)),0) -> 0 | E23: 0 | F23: 0 | G23: 0 | H23: 0 | I23: 0 | J23: 0
A24: TPA01 | B24: Total | D24: =SUM(D12:D22) -> 6542.610399 | E24: 6542.610399 | F24: 6542.610399 | G24: 6542.610399 | H24: 6542.610399 | I24: 6542.610399 | J24: 6542.610399
B26: Underground cable circuit length at each voltage
A27: TPA0201 | B27: 500 kV | C27: km | D27: =IFERROR(INDEX('[7]3.5 Physical assets'!$F:$F,MATCH($A27,'[7]3.5 Physical assets'!$B:$B,0)),0) -> 0 | E27: =D27 -> 0 | F27: 0 | G27: 0 | H27: 0 | I27: 0 | J27: 0
A28: TPA0202 | B28: 330 kV | C28: km | D28: =IFERROR(INDEX('[7]3.5 Physical assets'!$F:$F,MATCH($A28,'[7]3.5 Physical assets'!$B:$B,0)),0) -> 0 | E28: 0 | F28: 0 | G28: 0 | H28: 0 | I28: 0 | J28: 0
A29: TPA0203 | B29: 275 kV | C29: km | D29: =IFERROR(INDEX('[7]3.5 Physical assets'!$F:$F,MATCH($A29,'[7]3.5 Physical assets'!$B:$B,0)),0) -> 0 | E29: 0 | F29: 0 | G29: 0 | H29: 0 | I29: 0 | J29: 0
A30: TPA0204 | B30: 220 kV | C30: km | D30: =IFERROR(INDEX('[7]3.5 Physical assets'!$F:$F,MATCH($A30,'[7]3.5 Physical assets'!$B:$B,0)),0) -> 8.542370333 | E30: 8.542370333 | F30: 8.542370333 | G30: 8.542370333 | H30: 8.542370333 | I30: 8.542370333 | J30: 8.542370333
A31: TPA0205 | B31: 132 kV | C31: km | D31: =IFERROR(INDEX('[7]3.5 Physical assets'!$F:$F,MATCH($A31,'[7]3.5 Physical assets'!$B:$B,0)),0) -> 0 | E31: 0 | F31: 0 | G31: 0 | H31: 0 | I31: 0 | J31: 0
A32: TPA0206 | B32: 110 kV | C32: km | D32: =IFERROR(INDEX('[7]3.5 Physical assets'!$F:$F,MATCH($A32,'[7]3.5 Physical assets'!$B:$B,0)),0) -> 0 | E32: 0 | F32: 0 | G32: 0 | H32: 0 | I32: 0 | J32: 0
A33: TPA0207 | B33: 88 kV | C33: km | D33: =IFERROR(INDEX('[7]3.5 Physical assets'!$F:$F,MATCH($A33,'[7]3.5 Physical assets'!$B:$B,0)),0) -> 0 | E33: 0 | F33: 0 | G33: 0 | H33: 0 | I33: 0 | J33: 0
A34: TPA0208 | B34: 66 kV | C34: km | D34: =IFERROR(INDEX('[7]3.5 Physical assets'!$F:$F,MATCH($A34,'[7]3.5 Physical assets'!$B:$B,0)),0) -> 0 | E34: 0 | F34: 0 | G34: 0 | H34: 0 | I34: 0 | J34: 0
A35: TPA0209 | B35: 33 kV | C35: km | D35: =IFERROR(INDEX('[7]3.5 Physical assets'!$F:$F,MATCH($A35,'[7]3.5 Physical assets'!$B:$B,0)),0) -> 0 | E35: 0 | F35: 0 | G35: 0 | H35: 0 | I35: 0 | J35: 0
A36: TPA0210 | B36: 22 kV | C36: km | D36: =IFERROR(INDEX('[7]3.5 Physical assets'!$F:$F,MATCH($A36,'[7]3.5 Physical assets'!$B:$B,0)),0) -> 0 | E36: 0 | F36: 0 | G36: 0 | H36: 0 | I36: 0 | J36: 0
A37: TPA0211 | B37: 11 kV | C37: km | D37: =IFERROR(INDEX('[7]3.5 Physical assets'!$F:$F,MATCH($A37,'[7]3.5 Physical assets'!$B:$B,0)),0) -> 0 | E37: 0 | F37: 0 | G37: 0 | H37: 0 | I37: 0 | J37: 0
A38: TPA0212 | B38: Other voltages | C38: km | D38: =IFERROR(INDEX('[7]3.5 Physical assets'!$F:$F,MATCH($A38,'[7]3.5 Physical assets'!$B:$B,0)),0) -> 0 | E38: 0 | F38: 0 | G38: 0 | H38: 0 | I38: 0 | J38: 0
A39: TPA02 | B39: Total | D39: =SUM(D27:D37) -> 8.542370333 | E39: 8.542370333 | F39: 8.542370333 | G39: 8.542370333 | H39: 8.542370333 | I39: 8.542370333 | J39: 8.542370333
B41: Estimated overhead network weighted average MVA capacity by voltage class
A42: TPA0301 | B42: 500 kV | C42: MVA | D42: =IFERROR(INDEX('[7]3.5 Physical assets'!$F:$F,MATCH($A42,'[7]3.5 Physical assets'!$B:$B,0)),0) -> 2667.076598 | E42: =D42 -> 2667.076598 | F42: 2667.076598 | G42: 2667.076598 | H42: 2667.076598 | I42: 2667.076598 | J42: 2667.076598
A43: TPA0302 | B43: 330 kV | C43: MVA | D43: =IFERROR(INDEX('[7]3.5 Physical assets'!$F:$F,MATCH($A43,'[7]3.5 Physical assets'!$B:$B,0)),0) -> 801.9877279 | E43: 801.9877279 | F43: 801.9877279 | G43: 801.9877279 | H43: 801.9877279 | I43: 801.9877279 | J43: 801.9877279
A44: TPA0303 | B44: 275 kV | C44: MVA | D44: =IFERROR(INDEX('[7]3.5 Physical assets'!$F:$F,MATCH($A44,'[7]3.5 Physical assets'!$B:$B,0)),0) -> 552.5242076 | E44: 552.5242076 | F44: 552.5242076 | G44: 552.5242076 | H44: 552.5242076 | I44: 552.5242076 | J44: 552.5242076
A45: TPA0304 | B45: 220 kV | C45: MVA | D45: =IFERROR(INDEX('[7]3.5 Physical assets'!$F:$F,MATCH($A45,'[7]3.5 Physical assets'!$B:$B,0)),0) -> 401.8790831 | E45: 401.8790831 | F45: 401.8790831 | G45: 401.8790831 | H45: 401.8790831 | I45: 401.8790831 | J45: 401.8790831
A46: TPA0305 | B46: 132 kV | C46: MVA | D46: =IFERROR(INDEX('[7]3.5 Physical assets'!$F:$F,MATCH($A46,'[7]3.5 Physical assets'!$B:$B,0)),0) -> 0 | E46: 0 | F46: 0 | G46: 0 | H46: 0 | I46: 0 | J46: 0
A47: TPA0306 | B47: 110 kV | C47: MVA | D47: =IFERROR(INDEX('[7]3.5 Physical assets'!$F:$F,MATCH($A47,'[7]3.5 Physical assets'!$B:$B,0)),0) -> 0 | E47: 0 | F47: 0 | G47: 0 | H47: 0 | I47: 0 | J47: 0
A48: TPA0307 | B48: 88 kV | C48: MVA | D48: =IFERROR(INDEX('[7]3.5 Physical assets'!$F:$F,MATCH($A48,'[7]3.5 Physical assets'!$B:$B,0)),0) -> 0 | E48: 0 | F48: 0 | G48: 0 | H48: 0 | I48: 0 | J48: 0
A49: TPA0308 | B49: 66 kV | C49: MVA | D49: =IFERROR(INDEX('[7]3.5 Physical assets'!$F:$F,MATCH($A49,'[7]3.5 Physical assets'!$B:$B,0)),0) -> 93.07868885 | E49: 93.07868885 | F49: 93.07868885 | G49: 93.07868885 | H49: 93.07868885 | I49: 93.07868885 | J49: 93.07868885
A50: TPA0309 | B50: 33 kV | C50: MVA | D50: =IFERROR(INDEX('[7]3.5 Physical assets'!$F:$F,MATCH($A50,'[7]3.5 Physical assets'!$B:$B,0)),0) -> 0 | E50: 0 | F50: 0 | G50: 0 | H50: 0 | I50: 0 | J50: 0
A51: TPA0310 | B51: 22 kV | C51: MVA | D51: =IFERROR(INDEX('[7]3.5 Physical assets'!$F:$F,MATCH($A51,'[7]3.5 Physical assets'!$B:$B,0)),0) -> 0 | E51: 0 | F51: 0 | G51: 0 | H51: 0 | I51: 0 | J51: 0
A52: TPA0311 | B52: 11 kV | C52: MVA | D52: =IFERROR(INDEX('[7]3.5 Physical assets'!$F:$F,MATCH($A52,'[7]3.5 Physical assets'!$B:$B,0)),0) -> 0 | E52: 0 | F52: 0 | G52: 0 | H52: 0 | I52: 0 | J52: 0
A53: TPA0212 | B53: Other voltages | C53: MVA | D53: =IFERROR(INDEX('[7]3.5 Physical assets'!$F:$F,MATCH($A53,'[7]3.5 Physical assets'!$B:$B,0)),0) -> 0 | E53: 0 | F53: 0 | G53: 0 | H53: 0 | I53: 0 | J53: 0
B55: Estimated underground network weighted average MVA capacity by voltage class
A56: TPA0401 | B56: 500 kV | C56: MVA | D56: =IFERROR(INDEX('[7]3.5 Physical assets'!$F:$F,MATCH($A56,'[7]3.5 Physical assets'!$B:$B,0)),0) -> 0 | E56: =D56 -> 0 | F56: 0 | G56: 0 | H56: 0 | I56: 0 | J56: 0
A57: TPA0402 | B57: 330 kV | C57: MVA | D57: =IFERROR(INDEX('[7]3.5 Physical assets'!$F:$F,MATCH($A57,'[7]3.5 Physical assets'!$B:$B,0)),0) -> 0 | E57: 0 | F57: 0 | G57: 0 | H57: 0 | I57: 0 | J57: 0
A58: TPA0403 | B58: 275 kV | C58: MVA | D58: =IFERROR(INDEX('[7]3.5 Physical assets'!$F:$F,MATCH($A58,'[7]3.5 Physical assets'!$B:$B,0)),0) -> 0 | E58: 0 | F58: 0 | G58: 0 | H58: 0 | I58: 0 | J58: 0
A59: TPA0404 | B59: 220 kV | C59: MVA | D59: =IFERROR(INDEX('[7]3.5 Physical assets'!$F:$F,MATCH($A59,'[7]3.5 Physical assets'!$B:$B,0)),0) -> 449.6403896 | E59: 449.6403896 | F59: 449.6403896 | G59: 449.6403896 | H59: 449.6403896 | I59: 449.6403896 | J59: 449.6403896
A60: TPA0405 | B60: 132 kV | C60: MVA | D60: =IFERROR(INDEX('[7]3.5 Physical assets'!$F:$F,MATCH($A60,'[7]3.5 Physical assets'!$B:$B,0)),0) -> 0 | E60: 0 | F60: 0 | G60: 0 | H60: 0 | I60: 0 | J60: 0
A61: TPA0406 | B61: 110 kV | C61: MVA | D61: =IFERROR(INDEX('[7]3.5 Physical assets'!$F:$F,MATCH($A61,'[7]3.5 Physical assets'!$B:$B,0)),0) -> 0 | E61: 0 | F61: 0 | G61: 0 | H61: 0 | I61: 0 | J61: 0
A62: TPA0407 | B62: 88 kV | C62: MVA | D62: =IFERROR(INDEX('[7]3.5 Physical assets'!$F:$F,MATCH($A62,'[7]3.5 Physical assets'!$B:$B,0)),0) -> 0 | E62: 0 | F62: 0 | G62: 0 | H62: 0 | I62: 0 | J62: 0
A63: TPA0408 | B63: 66 kV | C63: MVA | D63: =IFERROR(INDEX('[7]3.5 Physical assets'!$F:$F,MATCH($A63,'[7]3.5 Physical assets'!$B:$B,0)),0) -> 0 | E63: 0 | F63: 0 | G63: 0 | H63: 0 | I63: 0 | J63: 0
A64: TPA0409 | B64: 33 kV | C64: MVA | D64: =IFERROR(INDEX('[7]3.5 Physical assets'!$F:$F,MATCH($A64,'[7]3.5 Physical assets'!$B:$B,0)),0) -> 0 | E64: 0 | F64: 0 | G64: 0 | H64: 0 | I64: 0 | J64: 0
A65: TPA0410 | B65: 22 kV | C65: MVA | D65: =IFERROR(INDEX('[7]3.5 Physical assets'!$F:$F,MATCH($A65,'[7]3.5 Physical assets'!$B:$B,0)),0) -> 0 | E65: 0 | F65: 0 | G65: 0 | H65: 0 | I65: 0 | J65: 0
A66: TPA0411 | B66: 11 kV | C66: MVA | D66: =IFERROR(INDEX('[7]3.5 Physical assets'!$F:$F,MATCH($A66,'[7]3.5 Physical assets'!$B:$B,0)),0) -> 0 | E66: 0 | F66: 0 | G66: 0 | H66: 0 | I66: 0 | J66: 0
A67: TPA0212 | B67: Other voltages | C67: MVA | D67: =IFERROR(INDEX('[7]3.5 Physical assets'!$F:$F,MATCH($A67,'[7]3.5 Physical assets'!$B:$B,0)),0) -> 0 | E67: 0 | F67: 0 | G67: 0 | H67: 0 | I67: 0 | J67: 0
B69: Installed transmission system transformer capacity
A70: TPA0501 | B70: Transmission substations (eg 500 kV to 330 kV) | C70: MVA | D70: =IFERROR(INDEX('[7]3.5 Physical assets'!$F:$F,MATCH($A70,'[7]3.5 Physical assets'!$B:$B,0)),0) -> 13369.93 | E70: =D70 -> 13369.93 | F70: 13369.93 | G70: 13369.93 | H70: 13369.93 | I70: 13369.93 | J70: 13369.93
A71: TPA0502 | B71: Terminal points to DNSP systems | C71: MVA | D71: =IFERROR(INDEX('[7]3.5 Physical assets'!$F:$F,MATCH($A71,'[7]3.5 Physical assets'!$B:$B,0)),0) -> 15164 | E71: 15164 | F71: 15164 | G71: 15164 | H71: 15164 | I71: 15164 | J71: 15164
A72: TPA0503 | B72: Transformer capacity for directly connected end–users owned by the TNSP | C72: MVA | D72: =IFERROR(INDEX('[7]3.5 Physical assets'!$F:$F,MATCH($A72,'[7]3.5 Physical assets'!$B:$B,0)),0) -> 210 | E72: 210 | F72: 210 | G72: 210 | H72: 210 | I72: 210 | J72: 210
A73: TPA0505 | B73: Interconnector capacity | C73: MVA | D73: =IFERROR(INDEX('[7]3.5 Physical assets'!$F:$F,MATCH($A73,'[7]3.5 Physical assets'!$B:$B,0)),0) -> 740 | E73: 740 | F73: 740 | G73: 740 | H73: 740 | I73: 740 | J73: 740
A74: TPA0506 | B74: Other | C74: MVA | D74: =IFERROR(INDEX('[7]3.5 Physical assets'!$F:$F,MATCH($A74,'[7]3.5 Physical assets'!$B:$B,0)),0) -> 300 | E74: 300 | F74: 300 | G74: 300 | H74: 300 | I74: 300 | J74: 300
B76: Cold spare capacity
A77: TPA06 | B77: Cold spare capacity included in 3.5.1.5 | C77: MVA | D77: =IFERROR(INDEX('[7]3.5 Physical assets'!$F:$F,MATCH($A77,'[7]3.5 Physical assets'!$B:$B,0)),0) -> 2799.99 | E77: =D77 -> 2799.99 | F77: 2799.99 | G77: 2799.99 | H77: 2799.99 | I77: 2799.99 | J77: 2799.99

Sheet 3.7 Operating environment
B1: =(LOOKUP(dms_Model,dms_Model_List,dms_Worksheet_List)) -> REGULATORY REPORTING STATEMENT | F1: #25C6FF | H1: Protected (SOCI)
B2: =INDEX(dms_TradingNameFull_List,MATCH(dms_TradingName,dms_TradingName_List)) -> AusNet Transmission Group Pty Limited | F2: #FFCCCC | H2: Confidential
B3: =CONCATENATE("REGULATORY PERIOD FROM ", FRCP_y1," TO ",dms_MultiYear_FinalYear_Result) -> REGULATORY PERIOD FROM 2027-28 TO 2031-32 | F3: 12.5% Grey | H3: Amended
B4: 3.7 OPERATING ENVIRONMENT FACTORS | F4: #FFCCCC & 12.5% Grey | H4: Amended Confidential
A7: TEF01 | B7: 3.7.1 - TERRAIN FACTORS
D8: VOLUMES
D9: Forecast (0's)
C10: Units | D10: =dms_y4 -> 2025-26 | E10: =dms_y5 -> 2026-27 | F10: =dms_y6 -> 2027-28 | G10: =dms_y7 -> 2028-29 | H10: =dms_y8 -> 2029-30 | I10: =dms_y9 -> 2030-31 | J10: =dms_y10 -> 2031-32
A11: TEF0101 | B11: Total number of vegetation maintenance spans | C11: Number of spans | D11: 850
A12: TEF0102 | B12: Average vegetation maintenance span cycle | C12: Years | D12: 3
A13: TEF0103 | B13: Average number of trees per vegetation maintenance span | C13: Trees | D13: 12.52
A14: TEF0104 | B14: Average number of defects per vegetation maintenance span | C14: Defects | D14: 0.35
A15: TEF0105 | B15: Tropical proportion | C15: Number of spans | D15: 0
A16: TEF0106 | B16: Standard vehicle access | C16: km | D16: 2866.62
A17: TEF0107 | B17: Altitude | C17: km | D17: 212.5
A18: TEF0108 | B18: Bushfire risk | C18: Number of spans | D18: 730
A20: TEF02 | B20: 3.7.2 - NETWORK CHARACTERISTICS
D21: VOLUMES
D22: Forecast (0's)
C23: Units | D23: =dms_y4 -> 2025-26 | E23: =dms_y5 -> 2026-27 | F23: =dms_y6 -> 2027-28 | G23: =dms_y7 -> 2028-29 | H23: =dms_y8 -> 2029-30 | I23: =dms_y9 -> 2030-31 | J23: =dms_y10 -> 2031-32
A24: TEF0201 | B24: Route line length | C24: km | D24: ='[7]3.7 Operating environment'!$F$34 -> 5024.7 | E24: =D24 -> 5024.7 | F24: 5024.7 | G24: 5024.7 | H24: 5024.7 | I24: 5024.7 | J24: 5024.7
A25: TEF0202 | B25: Variability of dispatch | C25: % | D25: =IFERROR(INDEX('[7]3.7 Operating environment'!$F:$F,MATCH($A25,'[7]3.7 Operating environment'!$B:$B,0)),0) -> 0 | E25: 0 | F25: 0 | G25: 0 | H25: 0 | I25: 0 | J25: 0
A26: TEF0203 | B26: Concentrated load distance | C26: km | D26: =IFERROR(INDEX('[7]3.7 Operating environment'!$F:$F,MATCH($A26,'[7]3.7 Operating environment'!$B:$B,0)),0) -> 0 | E26: 0 | F26: 0 | G26: 0 | H26: 0 | I26: 0 | J26: 0
A27: TEF0204 | B27: Total number of spans | C27: number | D27: =IFERROR(INDEX('[7]3.7 Operating environment'!$F:$F,MATCH($A27,'[7]3.7 Operating environment'!$B:$B,0)),0) -> 13094 | E27: 13094 | F27: 13094 | G27: 13094 | H27: 13094 | I27: 13094 | J27: 13094

Sheet 7.1 Policies and Procedures
B1: =(LOOKUP(dms_Model,dms_Model_List,dms_Worksheet_List)) -> REGULATORY REPORTING STATEMENT | D1: #25C6FF | F1: Protected (SOCI)
B2: =INDEX(dms_TradingNameFull_List,MATCH(dms_TradingName,dms_TradingName_List)) -> AusNet Transmission Group Pty Limited | D2: #FFCCCC | F2: Confidential
B3: =CONCATENATE("REGULATORY PERIOD FROM ", FRCP_y1," TO ",dms_MultiYear_FinalYear_Result) -> REGULATORY PERIOD FROM 2027-28 TO 2031-32 | D3: 12.5% Grey | F3: Amended
B4: 7.1 PLANS, POLICIES, PROCEDURES AND STRATEGIES | D4: #FFCCCC & 12.5% Grey | F4: Amended Confidential
B6: Instructions
B7: =CONCATENATE(dms_TradingName, " must list and provide a brief description of key internal plans, "&"policies, procedures or strategies that are used by it to plan and conduct its day to day operations and that have been relied upon in the development of its regulatory proposal. "&dms_TradingName," must identify any internal plans, policies, procedures and strategies that have changed in the current regulatory control period "&"or that are expected to change before the next regulatory control period where the change has been identified as a step change.") -> AusNet (T) must list and provide a brief description of key internal plans, policies, procedures or strategies that are used by it to plan and conduct its day to day operations and that have been relied upon in the development of its regulatory proposal. AusNet (T) must identify any internal plans, policies, procedures and strategies that have changed in the current regulatory control period or that are expected to change before the next regulatory control period where the change has been identified as a step change.
B9: 7.1.1 - PLANS, POLICIES, PROCEDURES AND STRATEGIES
C10: Brief description | D10: Relevance to regulatory proposal | E10: Expenditure impact
C11: Description of the plan, policy, procedure or strategy. | D11: Identify the element of the proposal/supporting documents that the policy, plan, procedure or strategy is relevant to e.g. replacement capex, capacity utilisation thresholds, opex | E11: Is this policy, plan or procedure identified in the response to section 4 'Step Changes' of the notice (yes or no)?
B12: Corporate
B13: AusNet Corporate Strategy | C13: Represent corporate objectives and strategic directions | D13: Balanced corporate directions that set the tone and priorities of espects of our Regulatory Proposal | E13: No
B14: RM 10-04 Risk Management Policy | C14: The Risk Management Policy outlines AusNet’s approach to managing risk and the minimum accountabilities and expectations for risk management across AusNet. | D14: Informs AusNet Services asset risk management approaches | E14: No
B15: RM 10-01 Enterprise Risk Management Framework | C15: This Framework establishes a consistent and effective approach to the management of risk at all levels of the organisation. The Framework outlines the requirements of risk management at AusNet and includes an overview of risk management objective and principles, description of key roles and responsibilities in risk management, the process for identifying, assessing, and managing risks, criteria for assessing risk, control effectiveness and identifying treatment plans, and guidance on recording, reporting, and escalation of risks. | D15: Informs AusNet Services asset risk management approaches | E15: No
B16: Governance framework
B17: AMS 01-03 Strategic Asset Management Committee Charter | C17: The purpose of the Strategic Asset Management Committee is to maintain an Asset Management System which optimises network performance, risk and asset lifecycle cost in alignment with AusNet’s vision, purpose and strategy. | D17: Forms part of the governance systems for capital expenditure forecasting, planning and execution. | E17: No
B18: AMS 01-04 ISO 55001 Accreditation | C18: Certificate demonstrates AusNet Services' achievement of the standard necessary to demonstrate compliance with the requirements of Asset Management systems. | D18: Demonstrates that AM system has appropriate governance and controls. | E18: No
B19: QMS 10-01-1 Health, Safety, Environment and Quality Policy | C19: High level document that shows AusNet Services commitment to providing a safe and healthy work enviornment | D19: Demonstrates that AM system has appropriate governance and controls. | E19: No
B20: PTP 10-01 Procurement Policy | C20: Outlines principles and rules guiding all procurement activities. | D20: Demonstrates that cost forecasts based on unit rates are subject to formal competitive procedures | E20: No
B21: PTP 10-05 Sustainability Policy | C21: Embeds environmental and ethical considerations into procurement decisions. | D21: Informs AusNet's procurement approaches | E21: No
B22: PTP 10-05(a) Social Procurement Policy | C22: Promotes social outcomes through procurement, including diversity and inclusion. | D22: Informs AusNet's procurement approaches | E22: No
B23: PTP 10-04 Supplier Code of Conduct | C23: Sets ethical standards and expectations for suppliers. | D23: Informs AusNet's procurement approaches | E23: No
B24: PTP 10-06 Third Party Risk Framework | C24: Manages risks associated with external suppliers and contractors. | D24: Informs AusNet's procurement approaches | E24: No
B25: PTP 21-24 Tendering Procedure Manual | C25: Provides step-by-step guidance for conducting tenders. | D25: Informs AusNet's procurement approaches | E25: No
B26: ESMS 10-01 Electricity Safety Management Scheme - Electricity Transmission Network | C26: Theis document describes the assets forming AusNet Services’ electricity transmission network, their location and the associated planning, design, construction, commissioning, operation, augmentation, inspection, testing, maintenance, refurbishment, replacement and decommissioning processes necessary to ensure the safety of consumers, the public, AusNet Services’ staff and contractors. | D26: Forecast includes safety related expenditure required to meet the ESMS obligations which are outlined in this document | E26: No
B27: Project Cost Estimating Methodology | C27: This document outlines the method used for estimating the cost of projects. | D27: Chapter 4 (Capital Expenditure) | E27: No
B28: Top Down Review | C28: This document investigates areas of potential overlap between various line items of the capital forecast to establish if expenditure has been double counted, or if overlaps have been removed. | D28: Chapter 4 (Capital Expenditure) | E28: No
B34: Accounting policies, procedures and methodologies (including a capitalisation policy, depreciation policy and an approved expenditure allocation methodology)
B35: FIN 10-11 Capital vs. Operating Expenditure | C35: The objective of this policy is to prescribe the correct accounting treatment with respect to the distinction between capital expenditure (capex) and operating expenditure (opex). The policies in this document are consistent with the requirements of accounting standards AASB 116 Property, Plant and Equipment and AASB 138 Intangible Assets. | D35: Demonstrates consistency in capitalisation of assets | E35: No
B36: FIN 10-10 Property, Plant and Equipment | C36: The objective of this policy is to prescribe the accounting treatment for property, plant and equipment. This policy complies with the requirements of AASB 116 Property, plant and equipment. The principal accounting issues addressed by this policy are the measurement, presentation, and depreciation of assets once they have been capitalised to the Fixed Asset Register. | D36: Demonstrates consistency in depreciation of assets | E36: No
B37: FIN 10-81 Cost Allocation Methodology | C37: This document sets out the method used by AusNet Services for the attribution and allocation of costs to, and between, categories of electricity transmission network services. | D37: Provides the basis of allocation of costs in AusNet Services accounting | E37: No
B38: Asset management plan or equivalent documentation
B39: Asset Management Policies
B40: AMS 01-02 Asset Management Policy | C40: High level document that directs the content and implementation of asset management strategies, objectives and plans for the network and guides asset management decisions. | D40: Underpins all asset-related expenditure | E40: No
B42: Asset Management Strategies
B43: AMS 10-01 Asset Management Strategy | C43: Document sets the framework for AusNet Services’ holistic approach to management of the network assets, and in so doing establishes the linkages with and between the underpinning detailed strategies, processes and plans. The document provides context for management strategies, by taking into account the demand for network services, the condition of network assets, and expected trends into the future. It therefore also has regard to the network augmentation planning process. | D43: Underpins all asset-related expenditure | E43: No
B44: AMS 01-09 Asset Management Risk Overview | C44: This document describes the risk assessment process used by AusNet Services to identify and assess the highest risks associated with network assets. | D44: Risk assessments are used to inform the development of optimised inspection, maintenance and replacement programs, forecast future asset replacement capital and operational expenditure, and assist in the prioritisation of work | E44: No
B45: Transmission Connection Planning Report | C45: This document sets out a joint report on transmission connection asset planning in Victoria, prepared by the five Victorian electricity Distribution Businesses | D45: These annual reports forecast and trace connection asset developments that generally will roll into AusNet Services RAB when the augmentations are established | E45: No
B47: Asset Management Plans
B48: AMS 01-08-10 Electricity Transmission Network Asset Management Plan | C48: The AMP highlights the key factors, and defines the programs, projects and planned expenditure associated with managing AusNet Services’ network assets over the forward five-year period. The AMP informs stakeholders of the context, drivers, challenges, risks, and opportunities for network investment. | D48: Provides an overview of asset management priorities and activities planned to address these | E48: No
B49: RIT-T documents | C49: These reports for each major station project describe the planned works and form the basis for RIT-T processes | D49: Chapter 4 (Capital Expenditure) | E49: No
B50: Technical AMS 10-52 Auxiliary Power Supplies | C50: This document includes a current assessment of the asset population, key risks, and strategy to manage the assets | D50: Chapter 4 (Capital Expenditure) | E50: No
B51: Technical AMS 10-54 Circuit Breakers | C51: This document includes a current assessment of the asset population, key risks, and strategy to manage the assets | D51: Chapter 4 (Capital Expenditure) | E51: No
B52: Technical AMS 10-55 Transmission Infrastructure | C52: This document includes a current assessment of the asset population, key risks, and strategy to manage the assets | D52: Chapter 4 (Capital Expenditure) | E52: No
B53: Technical AMS 10-56 Communications Systems | C53: This document includes a current assessment of the asset population, key risks, and strategy to manage the assets | D53: Chapter 4 (Capital Expenditure) | E53: No
B54: Technical AMS 10-59 Disconnectors and Earth Switches | C54: This document includes a current assessment of the asset population, key risks, and strategy to manage the assets | D54: Chapter 4 (Capital Expenditure) | E54: No
B55: Technical AMS 10-64 Instrument Transformers | C55: This document includes a current assessment of the asset population, key risks, and strategy to manage the assets | D55: Chapter 4 (Capital Expenditure) | E55: No
B56: Technical AMS 10-67 Power Transformers and Oil Filled Reactors | C56: This document includes a current assessment of the asset population, key risks, and strategy to manage the assets | D56: Chapter 4 (Capital Expenditure) | E56: No
B57: Technical AMS 10-68 Protection (Secondary) Systems | C57: This document includes a current assessment of the asset population, key risks, and strategy to manage the assets | D57: Chapter 4 (Capital Expenditure) | E57: No
B58: Technical AMS 10-73 Surge Arresters | C58: This document includes a current assessment of the asset population, key risks, and strategy to manage the assets | D58: Chapter 4 (Capital Expenditure) | E58: No
B59: Technical AMS 10-75 Transmission Line Insulators | C59: This document includes a current assessment of the asset population, key risks, and strategy to manage the assets | D59: Chapter 4 (Capital Expenditure) | E59: No
B60: Technical AMS 10-77 Transmission Line Structures | C60: This document includes a current assessment of the asset population, key risks, and strategy to manage the assets | D60: Chapter 4 (Capital Expenditure) | E60: No
B61: Technical AMS 10-75-10 Ground Clearance | C61: This document includes a current assessment of the asset population, key risks, and strategy to manage the assets | D61: Chapter 4 (Capital Expenditure) | E61: No
B62: Technical AMS 10-79 Transmission Line Conductors and groundwires | C62: This document includes a current assessment of the asset population, key risks, and strategy to manage the assets | D62: Chapter 4 (Capital Expenditure) | E62: No
B71: Capital expenditure policies and procedures (including capex approval policies and procedures and replacement policy)
B72: Regulated Capital Projects Decision Framework | C72: This framework sets out the approval pathway for regulated capital projects | D72: Chapter 4 (Capital Expenditure) | E72: No
B73: Regulated Capital Investment Guidelines | C73: These guidelines outline key decision-making processes, roles and responsibilities relating to management of the regulated capital portfolio | D73: Chapter 4 (Capital Expenditure) | E73: No
B76: Internal standards for network planning, design, maintenance and operation
B77: ANT - TRR 2028-32 Technical AMS 10-17 Network Performance Monitoring | C77: This document outlines how AusNet Services’ asset management practices is measured directly by the performance of extra high voltage network elements and their impact on the availability and reliability of the Victorian electricity transmission network in which they operate. | D77: Chapter 4 (Capital Expenditure) | E77: No
B78: ANT - TRR 2028-32 Technical AMS 10-24 Asset Renewal Planning Guide | C78: This document provides a framework for AusNet Services’ asset renewal planning for the Victorian electricity transmission network. | D78: Chapter 4 (Capital Expenditure) | E78: No
B79: ANT - TRR 2028-32 Technical AMS 10-19 Plant and Equipment Maintenance | C79: This document outlines the plant and equipment maintenance strategies for management of assets in the transmission network. It provides background to the different categories of maintenance, condition monitoring, and current maintenance techniques and explores contemporary practice | D79: Chapter 4 (Capital Expenditure) | E79: No
B80: TOC 10-10 Power System Security Procedure | C80: This document describes how AusNet Services assists AEMO in seeking to meet its power system security responsibilities generally’ and the information and actions required from AusNet Services to assist in maintaining or restoring power system security. | D80: Underpins network operations activities | E80: No
B81: TOC 10-20 System Incident Management | C81: The purpose is to provide guidelines for system incident management including a post-incident reenergisation such as auto-reclose, protection operation, remedial action scheme operation, forced outage, or prolonged outage. | D81: Underpins network operations activities | E81: No
B82: TOC 10-21 Incident reporting | C82: This procedure is to define AusNet’s obligations to report transmission incidents and defines the process of reporting incidents and requesting resources including roles and responsibilities. It is specific for reporting only. | D82: Underpins network operations activities | E82: No
B156: Procurement and contracting out policies
B161: Information technology policies or strategies
B162: ICT Strategy Electricity Transmission Network | C162: This document sets out the ICT strategy forAusNet's transmission network | D162: Chapter 4 (Capital Expenditure), Chapter 5 (Operating Expenditure) | E162: Yes
B198: Demand management policies or strategies
B202: Self insurance guidelines or policy
B207: Land and easement acquisition polices
B212: Asset security plans and policies
B223: Disaster recovery policy
B224: AMS 10-03 Network Asset Contingency Plan | C224: The Transmission Network Contingency Plan supports the recovery from asset failure, natural events such as bushfires, floods or high winds; or actions that adversely affect the performance of the Victorian transmission network. | D224: Provides the basis of strategies, processes and practices to ensure effective and efficient response to network failure events | E224: No
B225: EM 01-03 Strategic Plan for Integrated Response & Contingency System (SPIRACS) | C225: The Strategic Plan for Integrated Response and Contingency System (SPIRACS) is AusNet’s Incident and Crisis Management Plan, detailing how AusNet operates before, during and after an emergency. | D225: Provides the basis of how AusNet responds to emergencies | E225: No

Sheet 7.2 Contingent projects
B1: =(LOOKUP(dms_Model,dms_Model_List,dms_Worksheet_List)) -> REGULATORY REPORTING STATEMENT | E1: #25C6FF | F1: Protected (SOCI)
B2: =INDEX(dms_TradingNameFull_List,MATCH(dms_TradingName,dms_TradingName_List)) -> AusNet Transmission Group Pty Limited | E2: #FFCCCC | F2: Confidential
B3: =CONCATENATE("REGULATORY PERIOD FROM ", FRCP_y1," TO ",dms_MultiYear_FinalYear_Result) -> REGULATORY PERIOD FROM 2027-28 TO 2031-32 | E3: 12.5% Grey | F3: Amended
B4: 7.2 CONTINGENT PROJECTS | E4: #FFCCCC & 12.5% Grey | F4: Amended Confidential
B7: Instructions
B8: =CONCATENATE(dms_TradingName," is required to populate all input cells (yellow) in table 7.2.1 presented below." ) -> AusNet (T) is required to populate all input cells (yellow) in table 7.2.1 presented below.
B10: 7.2.1 - PROPOSED CONTINGENT PROJECTS FOR THE FORTHCOMING REGULATORY CONTROL PERIOD
B11: Proposed contingent project name | C11: Proposed contingent capital expenditure ($0's, nominal) | D11: Proposed trigger events | E11: =CONCATENATE("Proposed MAR for ", FRCP_y1," ($0's, nominal)") -> Proposed MAR for 2027-28 ($0's, nominal) | F11: =CONCATENATE("5 per cent of the ", FRCP_y1," ($0's, nominal) MAR") -> 5 per cent of the 2027-28 ($0's, nominal) MAR
B12: DDTS H3 330/220kV transformer & circuit breaker replacement | C12: 43721050.87 | D12: AusNet board commitment to proceed with the project subject to the AER amending the revenue determination pursuant to the NER | E12: ='[4]Revenue summary'!$G$16*10^6 -> 829347904.8 | F12: =+E12*0.05 -> 41467395.24
E13: =+$E$12 -> 829347904.8 | F13: 41467395.24
E14: 829347904.8 | F14: 41467395.24
E15: 829347904.8 | F15: 41467395.24
E16: 829347904.8 | F16: 41467395.24
E17: 829347904.8 | F17: 41467395.24
E18: 829347904.8 | F18: 41467395.24
E19: 829347904.8 | F19: 41467395.24
E20: 829347904.8 | F20: 41467395.24
E21: 829347904.8 | F21: 41467395.24
E22: 829347904.8 | F22: 41467395.24
E23: 829347904.8 | F23: 41467395.24
E24: 829347904.8 | F24: 41467395.24
E25: 829347904.8 | F25: 41467395.24
E26: 829347904.8 | F26: 41467395.24
E27: 829347904.8 | F27: 41467395.24
E28: 829347904.8 | F28: 41467395.24
E29: 829347904.8 | F29: 41467395.24
E30: 829347904.8 | F30: 41467395.24
E31: 829347904.8 | F31: 41467395.24

Sheet 7.3 Obligations
B1: =(LOOKUP(dms_Model,dms_Model_List,dms_Worksheet_List)) -> REGULATORY REPORTING STATEMENT | D1: #25C6FF | E1: Protected (SOCI)
B2: =INDEX(dms_TradingNameFull_List,MATCH(dms_TradingName,dms_TradingName_List)) -> AusNet Transmission Group Pty Limited | D2: #FFCCCC | E2: Confidential
B3: =CONCATENATE("REGULATORY PERIOD FROM ", FRCP_y1," TO ",dms_MultiYear_FinalYear_Result) -> REGULATORY PERIOD FROM 2027-28 TO 2031-32 | D3: 12.5% Grey | E3: Amended
B4: 7.3 OBLIGATIONS, REQUIREMENTS & STANDARDS | D4: #FFCCCC & 12.5% Grey | E4: Amended Confidential
B6: Instructions
B7: =CONCATENATE("Outline those obligations and requirements that ",dms_TradingName, " identifies as having a material impact on expenditure requirements.") -> Outline those obligations and requirements that AusNet (T) identifies as having a material impact on expenditure requirements.
B10: 7.3.1 - OBLIGATIONS OR REQUIREMENTS
C11: Brief description | D11: Relevance to regulatory proposal | E11: Expenditure impact
C12: Description of relevant obligations or requirements within the instrument (e.g. safety obligations, reliability targets) | D12: Identify what element of the proposal/supporting documents the obligation or requirement is relevant to e.g. replacement capex, capacity utilisation thresholds, opex | E12: Is the obligation or requirement identified in the response to section 4 'Step Changes' of the notice (yes or no)?
B13: Legislation
B14: Electricity Industry Act 2000 | C14: Sets out key obligations relating to distribution of electricity in Victoria including matters such as licences and compliance with industry codes, standards, rules and guidelines. | D14: Chapter 4 Capex, Chapter 5 Opex | E14: No
B15: Electricity Safety Act 1998 | C15: Establishes safety framework for distribution of electricity in Victoria. | D15: Chapter 4 Capex, Chapter 5 Opex | E15: No
B16: Electricity Safety (Bushfire Mitigation) Regulations 2023 | C16: Requires the preparation of bushfire mitigation plans and specifies inspection of assets. | D16: Chapter 4 Capex, Chapter 5 Opex | E16: No
B17: Electricity Safety (Electric Line Clearance) Interim Regulations 2025 | C17: Prescribes line clearance requirements including vegetation clearing | D17: Chapter 4 Capex, Chapter 5 Opex | E17: No
B18: Electricity Safety (Management) Regulations 2019 | C18: Sets out requirements for Electricity Safety Management Schemes. | D18: Chapter 4 Capex, Chapter 5 Opex | E18: No
B19: Emergency Management Act 2013 | C19: Establishes arrangments for management of emergencies in Victoria | D19: Chapter 4 Capex, Chapter 5 Opex | E19: No
B20: Terrorism (Community Protection) Act 2003 | C20: Obliges providers of essential services including electricity to plan for the protection of services from the effects of terrorist acts. | D20: Chapter 4 Capex, Chapter 5 Opex, Chapter 12 Cost Pass Through | E20: No
B21: Energy and Water Ombudsman Charter 2018 | C21: Describes how electricity licence holders must participate in a customer dispute resolution scheme and how this scheme operates in Victoria. | D21: Chapter 4 Capex, Chapter 5 Opex | E21: No
B22: Occupational Health and Safety Act 2004 | C22: Sets out duties of employers and persons who manage or control workplaces to provide for the health, safety and welfare of employees and other persons including the public. Describes the principle of eliminating or reducing risks so far as is practicable. | D22: Chapter 4 Capex, Chapter 5 Opex | E22: No
B23: Occupational Health and Safety Regulations 2017 | C23: Detail many aspects of OH&S including manual handling, exposure to noise, prevention of falls, work in confined spaces, operating plant, and asbestos control & handling. | D23: Chapter 4 Capex, Chapter 5 Opex | E23: No
B24: National Greenhouse and Energy Reporting Act 2007 | C24: Provides for reporting and dissemination of information related to greenhouse emissions including annual reporting. | D24: Chapter 4 Capex, Chapter 5 Opex | E24: No
B25: National Greenhouse and Energy Reporting Regulations 2008 | C25: Sets out requirements for reporting greenhouse emissions. | D25: Chapter 4 Capex, Chapter 5 Opex | E25: No
B26: Environment Protection Act 2017 | C26: Legislative framework for the protection of the environment in Victoria. | D26: Chapter 4 Capex, Chapter 5 Opex | E26: No
B27: Environment Protection Regulations 2021 | C27: Sets out requirements for the management and control of pollution and waste, including air and water pollution, contaminated land, noise, vehicle emissions, waste, and wastewater | D27: Chapter 4 Capex, Chapter 5 Opex | E27: No
B28: Aboriginal Heritage Act 2006 | C28: Promotes the recognition, protection and conservation of Aboriginal culture in Victoria; recognition of Aboriginal people as the primary guardians of their cultural heritage; and management of Aboriginal cultural heritage as an integral part of land management | D28: Chapter 4 Capex, Chapter 5 Opex | E28: No
B29: Land Act 1958 | C29: Defines Crown Land and conditions relating to Crown Land which prohibit a number of activities including refuelling of vehicles, removal of vegetation and disposal of waste. | D29: Chapter 4 Capex, Chapter 5 Opex | E29: No
B30: Privacy Act 1988 (cth) | C30: Obligations to protect the privacy of individuals and the responsible and transparent handling of personal information in accordance with the Australian Privacy Principles (APPs). | D30: Revenue Proposal | E30: No
B31: National Electricity (Victoria) Act 2005 | C31: This Act provides for the regulation of the national electricity wholesale market. It is part of a national scheme which gives effect to the National Electricity Law and the National Electricity Rules made under that Law. The lead legislation under the national scheme is the National Electricity (South Australia) Act 1996. The economic regulator is the Australian Energy Regulator (AER) and the rule-maker is the Australian Energy Market Commission (AEMC). The national electricity wholesale market is administered by the Australian Energy Market Operator (AEMO). | D31: Revenue Proposal | E31: No
B32: Superannuation Guarantee (Administration) Act 1992, No. 111 | C32: The Act sets out relevant superannuation payment requirements. | D32: Chapter 5 Opex | E32: No
B33: Roads Management Act 2004 (Vic) | C33: Safety obligations when carrying out works on public roadways. | D33: Chapter 4 Capex | E33: No
B34: Fair Work Act 2009 | C34: Sets out our obligations in relation to the negotiation of employment terms and conditions. | D34: Chapter 5 Opex | E34: No
B35: The Security of Critical Infrastructure Act 2018 (Cth) | C35: Outlines the legal obligations you have if you own, operate, or have direct interests in critical infrastructure assets | D35: Chapter 4 Capex | E35: No
B36: Emergency Management (Critical Infrastructure Resilience) Regulations 2025 | C36: These regulations refer to relevant guidance from the Australian Government that must be adhered to in protecting critical assets from emergencies | D36: Chapter 4 Capex, Chapter 5 Opex | E36: No
B37: Workplace Injury Rehabilitation and Compensation Act 2013 (Vic) | C37: This act sets out provisions applying to the rehabilitation of injured workers and compensation in relation to workplace accidents and diseases. | D37: Chapter 5 Opex | E37: No
B38: Labour Hire Licensing Act 2018 (Vic) | C38: This act establishes a licensing system to regulate the provision of labour hire services, imposes civil penalties on providers and users of labour hire services who obtain those services from anyone other than licensed providers of labour hire services, and other matters relating to labour hiring. | D38: Chapter 5 Opex | E38: No
B39: Planning and Environment Act 1987 (Vic) | C39: This act establishes a framework for planning the use, development and protection of land in Victoria in the present and long term interests of all Victorians. | D39: Chapter 4 Capex, Chapter 5 Opex | E39: No
B40: AER Transmission Ring-fencing Guideline (Version 5) | C40: This guideline sets out the accounting and functional separation required between the provision of prescribed transmission services or negotiated transmission services by TNSPs from the provision of other services/contestable services by them or their affiliated entities | D40: Chapter 1 Introduction | E40: No
B225: Licences
B230: Rules
B235: Orders
B239: Codes
B255: Guidelines
B294: Default agreements
B299: Other

Sheet 7.4 Shared Assets
B1: =(LOOKUP(dms_Model,dms_Model_List,dms_Worksheet_List)) -> REGULATORY REPORTING STATEMENT | F1: #25C6FF | H1: Protected (SOCI)
B2: =INDEX(dms_TradingNameFull_List,MATCH(dms_TradingName,dms_TradingName_List)) -> AusNet Transmission Group Pty Limited | F2: #FFCCCC | H2: Confidential
B3: =CONCATENATE("REGULATORY PERIOD FROM ", FRCP_y1," TO ",dms_MultiYear_FinalYear_Result) -> REGULATORY PERIOD FROM 2027-28 TO 2031-32 | F3: 12.5% Grey | H3: Amended
B4: 7.4 SHARED ASSETS | F4: #FFCCCC & 12.5% Grey | H4: Amended Confidential
B7: 7.4.1 - TOTAL UNREGULATED REVENUE EARNED WITH SHARED ASSETS
B8: Name of shared asset unregulated service | C8: Description of shared assets used to provide the service | D8: =CONCATENATE("REVENUE ($0's, real ", dms_DollarReal,")") -> REVENUE ($0's, real March 2027)
D9: =dms_y4 -> 2025-26 | E9: =dms_y5 -> 2026-27 | F9: =dms_y6 -> 2027-28 | G9: =dms_y7 -> 2028-29 | H9: =dms_y8 -> 2029-30 | I9: =dms_y9 -> 2030-31 | J9: =dms_y10 -> 2031-32 | K9: =CONCATENATE("Total ",FRCP_y1, " to ", dms_MultiYear_FinalYear_Result) -> Total 2027-28 to 2031-32
B10: HV CT & VT Testing | C10: Yarraville Laboratory, Mobile and fixed Test Equip | D10: 1672981.19 | E10: 1739900.438 | F10: 1756792.675 | G10: 1792263.156 | H10: 1812177.191 | I10: 1833727.406 | J10: 1856890.279 | K10: =SUM(F10:J10) -> 9051850.707
B11: Transformer Testing (incl Condition Monitoring) | C11: Yarraville Laboratory, Mobile and fixed Test Equip | D11: 502183.9576 | E11: 522271.3159 | F11: 527341.9112 | G11: 537989.1955 | H11: 543966.8532 | I11: 550435.6482 | J11: 557388.5196 | K11: 2717122.128
B12: Chemical Testing & Analysis | C12: Yarraville Laboratory, laboratory Test Equip | D12: 3019533.431 | E12: 3140314.768 | F12: 3170803.261 | G12: 3234823.289 | H12: 3270765.77 | I12: 3309661.363 | J12: 3351467.612 | K12: 16337521.3
B13: Calibration & Electrical Testing (incl NATA accredited) | C13: Yarraville Laboratory, laboratory Test Equip | D13: 1692121.226 | E13: 1759806.075 | F13: 1776891.57 | G13: 1812767.857 | H13: 1832909.723 | I13: 1854706.487 | J13: 1878134.358 | K13: 9155409.995
B14: Fibre Optic Cable Leasing | C14: ~1000 km of fibre optic network at all stages in its lifecycle (0-20 years old). Total SPAN fibre optic network length ~2500 km | D14: 2075927.43 | E14: 2652258.75 | F14: 2639383.981 | G14: 2653837.857 | H14: 2644623.38 | I14: 2640751.896 | J14: 2648396.178 | K14: 13226993.29
B15: Leasing Access to third parties – Wireless Base Stations on EHV Towers | C15: 170 x EHV towers | D15: 7117662.38 | E15: 7284010.5 | F15: 7248651.699 | G15: 7288346.429 | H15: 7263039.815 | I15: 7252407.968 | J15: 7273401.781 | K15: 36325847.69
B16: Leasing Access to third parties – Various communication equipment on communication towers | C16: 20 x communication towers | D16: 2011902.8 | E16: 2043975.5 | F16: 2034053.155 | G16: 2045191.667 | H16: 2038090.509 | I16: 2035107.34 | J16: 2040998.44 | K16: 10193441.11
B17: Property Leasing to third parties | C17: Various network properties / sites | D17: 1042648.58 | E17: 1100000 | F17: 1067961.165 | G17: 1047619.048 | H17: 1018518.519 | I17: 998423.4234 | J17: 1001313.596 | K17: 5133835.751
K18: 0
K19: 0
K20: 0
K21: 0
K22: 0
K23: 0
K24: 0
B28: 7.4.2 - SHARED ASSET UNREGULATED SERVICES - APPORTIONMENT METHODOLOGY
B29: Name of shared asset unregulated service for which revenues were apportioned | C29: Apportionment methodology
B30: None | C30: Not applicable

Sheet 7.5 Large Projects
B1: =(LOOKUP(dms_Model,dms_Model_List,dms_Worksheet_List)) -> REGULATORY REPORTING STATEMENT | F1: #25C6FF | H1: Protected (SOCI)
B2: =INDEX(dms_TradingNameFull_List,MATCH(dms_TradingName,dms_TradingName_List)) -> AusNet Transmission Group Pty Limited | F2: #FFCCCC | H2: Confidential
B3: =CONCATENATE("REGULATORY PERIOD FROM ", FRCP_y1," TO ",dms_MultiYear_FinalYear_Result) -> REGULATORY PERIOD FROM 2027-28 TO 2031-32 | F3: 12.5% Grey | H3: Amended
B4: 7.5 LARGE PROJECTS | F4: #FFCCCC & 12.5% Grey | H4: Amended Confidential
B7: 7.5.1 - LARGE PROJECT OPERATING EXPENDITURE
C8: EXPENDITURE
C9: =CONCATENATE("Forecast ($0's. real ",dms_DollarReal,")") -> Forecast ($0's. real March 2027)
C10: =dms_y4 -> 2025-26 | D10: =dms_y5 -> 2026-27 | E10: =dms_y6 -> 2027-28 | F10: =dms_y7 -> 2028-29 | G10: =dms_y8 -> 2029-30 | H10: =dms_y9 -> 2030-31 | I10: =dms_y10 -> 2031-32
B11: PROJECT NAME/ID
B47: Total | C47: =SUM(C12:C46) -> 0 | D47: 0 | E47: 0 | F47: 0 | G47: 0 | H47: 0 | I47: 0
B52: 7.5.2 - LARGE PROJECT CAPITAL EXPENDITURE
C53: EXPENDITURE
C54: =CONCATENATE("Forecast ($0's. real ",dms_DollarReal,")") -> Forecast ($0's. real March 2027)
C55: =dms_y4 -> 2025-26 | D55: =dms_y5 -> 2026-27 | E55: =dms_y6 -> 2027-28 | F55: =dms_y7 -> 2028-29 | G55: =dms_y8 -> 2029-30 | H55: =dms_y9 -> 2030-31 | I55: =dms_y10 -> 2031-32
B56: PROJECT NAME/ID
B57: MLTS CB Replacement | C57: 17832272.98 | D57: 19891032.73 | E57: 12207045.17 | F57: 438324.9113 | G57: 0 | H57: 0 | I57: 0
B58: TSTS - Tx and Switchgear Replacement | C58: 15052701.29 | D58: 9122792.664 | E58: 0 | F58: 0 | G58: 0 | H58: 0 | I58: 0
B59: SHTS Transformer and CB Replacement | C59: 14518622.61 | D59: 10506049.14 | E59: 11850621.87 | F59: 7153789.201 | G59: 0 | H59: 0 | I59: 0
B60: RCTS Transformer & SwitchgearReplacement | C60: 7251747.946 | D60: 25280082.66 | E60: 21031823.36 | F60: 15222992.95 | G60: 0 | H60: 0 | I60: 0
B61: SYTS 500kV GIS Replacement | C61: 34755376.89 | D61: 16400628.16 | E61: 30084029.06 | F61: 5075323.281 | G61: 0 | H61: 0 | I61: 0
B62: KTS 500/220kV Transformer Replacement | C62: 14132998.7 | D62: 28692862.35 | E62: 71254626.8 | F62: 71768632.49 | G62: 59714728.58 | H62: 20147882.19 | I62: 11222404.66
B63: SMTS 500kV GIS and F2 Transformer Replacement | C63: 3896535.643 | D63: 23134609.97 | E63: 24818246.64 | F63: 69145898.17 | G63: 71346674.84 | H63: 63723047.1 | I63: 45227186.95
B64: SMTS 330/220kV Transformer Replacement | C64: 11445438.02 | D64: 30403337.25 | E64: 55855931.05 | F64: 49523970.56 | G64: 0 | H64: 0 | I64: 0
B65: NPSD 220kV GIS | C65: 0 | D65: 0 | E65: 3101477.04 | F65: 19126786.61 | G65: 48915899.05 | H65: 49417031.22 | I65: 37509177.73
B66: South West Network Comms Replacement | C66: 3237026.195 | D66: 7024322.878 | E66: 12507835.2 | F66: 1154103.204 | G66: 0 | H66: 0 | I66: 0
B67: Transmission Insulator Replacement | C67: 13018593.67 | D67: 20540059.05 | E67: 22117.32554 | F67: 0 | G67: 0 | H67: 0 | I67: 0
B68: T624 to T628B HYTS-APD tower replacement | C68: 28059680.47 | D68: 32456476.79 | E68: 448642.2074 | F68: 0 | G68: 0 | H68: 0 | I68: 0
B69: Portland tower replacement - Stage 2 | C69: 1943250.551 | D69: 19900112.58 | E69: 88469302.15 | F69: 94676706.44 | G69: 0 | H69: 0 | I69: 0
B70: SOCI - Security Fencing | C70: 2371704.868 | D70: 12501005.76 | E70: 17784051.84 | F70: 7516700.334 | G70: 14469155.69 | H70: 10568708.12 | I70: 8022002.57
B93: Total | C93: =SUM(C57:C92) -> 167515949.8 | D93: 255853372 | E93: 349435749.7 | F93: 340803228.2 | G93: 194446458.2 | H93: 143856668.6 | I93: 101980771.9

Sheet 7.9 STPIS
B1: =(LOOKUP(dms_Model,dms_Model_List,dms_Worksheet_List)) -> REGULATORY REPORTING STATEMENT | D1: #25C6FF | E1: Protected (SOCI)
B2: =INDEX(dms_TradingNameFull_List,MATCH(dms_TradingName,dms_TradingName_List)) -> AusNet Transmission Group Pty Limited | D2: #FFCCCC | E2: Confidential
B3: =CONCATENATE("REGULATORY PERIOD FROM ", FRCP_y1," TO ",dms_MultiYear_FinalYear_Result) -> REGULATORY PERIOD FROM 2027-28 TO 2031-32 | D3: 12.5% Grey | E3: Amended
B4: 7.9 SERVICE TARGET PERFORMANCE INCENTIVE SCHEME (STPIS) | D4: #FFCCCC & 12.5% Grey | E4: Amended Confidential
B8: 7.9.3 – NETWORK LIMIT INFORMATION
B9: Limit definition | C9: Define limit | D9: Reason for the limit | E9: Is limit addressed by priority project | F9: Supporting information reference
B10: Not required | C10: Not required | D10: Not required | E10: Not required

Sheet 8.2 Capex
B1: =(LOOKUP(dms_Model,dms_Model_List,dms_Worksheet_List)) -> REGULATORY REPORTING STATEMENT | C1: #25C6FF | D1: Protected (SOCI)
B2: =INDEX(dms_TradingNameFull_List,MATCH(dms_TradingName,dms_TradingName_List)) -> AusNet Transmission Group Pty Limited | C2: #FFCCCC | D2: Confidential
B3: =CONCATENATE("REGULATORY PERIOD FROM ", FRCP_y1," TO ",dms_MultiYear_FinalYear_Result) -> REGULATORY PERIOD FROM 2027-28 TO 2031-32 | C3: 12.5% Grey | D3: Amended
B4: 8.2 - CAPEX | C4: #FFCCCC & 12.5% Grey | D4: Amended Confidential
B6: 8.2.7 - IMMEDIATE EXPENSING OF CAPEX
B7: ESTIMATED - AS COMMISSIONED
C8: EXPENDITURE
C9: =CONCATENATE("$0's, real ", dms_DollarReal) -> $0's, real March 2027
B10: Asset class | C10: =dms_y4 -> 2025-26 | D10: =dms_y5 -> 2026-27
B11: Secondary | C11: 1188809.183 | D11: ='[8]TAB input'!L72*10^6 -> 1522800.95
B12: Switchgear | C12: 2081414.946 | D12: ='[8]TAB input'!L73*10^6 -> 2330378.7
B13: Transformers | C13: 1929252.127 | D13: ='[8]TAB input'!L74*10^6 -> 4004556.4
B14: Reactive | C14: 44874.75195 | D14: ='[8]TAB input'!L75*10^6 -> 66060.05
B15: Towers and Conductor | C15: 5795103.012 | D15: ='[8]TAB input'!L76*10^6 -> 3572615.85
B16: Establishment | C16: 1079005.924 | D16: ='[8]TAB input'!L77*10^6 -> 1317332.45
B17: Communications | C17: 1149497.666 | D17: ='[8]TAB input'!L78*10^6 -> 1493850.2
B18: IT | C18: 498951.4873 | D18: ='[8]TAB input'!L80*10^6 -> 684100
B19: Polymeric Insulators | C19: 635800.4116 | D19: ='[8]TAB input'!L91*10^6 -> 977344.65
B20: In-house software | C20: 796430.1168 | D20: ='[8]TAB input'!L120*10^6 -> 2076834.25
B61: Total | C61: =SUM(C11:C60) -> 15199139.63 | D61: =SUM(D11:D60) -> 18045873.5

Sheet AER CF (hidden)
B1: AER CONDITIONAL FORMATTING
B3: CELLS FLAGED "Y" and greyed out will be greyed out in the worksheets.
B4: CONDITIONAL FORMATTING MAP
F5: =INDEX(dms_CF_3.6.1, MATCH(dms_TradingName,dms_CF_TradingName))="Y" | G5: =INDEX(dms_CF_3.6.5, MATCH(dms_TradingName,dms_CF_TradingName))="Y" | H5: =INDEX(dms_CF_3.6.6.1, MATCH(dms_TradingName,dms_CF_TradingName))="Y" | I5: =INDEX(dms_CF_3.6.6.2, MATCH(dms_TradingName,dms_CF_TradingName))="Y" | J5: =INDEX(dms_CF_3.6.6.3, MATCH(dms_TradingName,dms_CF_TradingName))="Y" | K5: =INDEX(dms_CF_3.6.7.1, MATCH(dms_TradingName,dms_CF_TradingName))="Y" | L5: =INDEX(dms_CF_3.6.7.2, MATCH(dms_TradingName,dms_CF_TradingName))="Y" | M5: =INDEX(dms_CF_3.6.7.3, MATCH(dms_TradingName,dms_CF_TradingName))="Y" | N5: =INDEX(dms_CF_3.6.7.4, MATCH(dms_TradingName,dms_CF_TradingName))="Y" | O5: =INDEX(dms_CF_3.6.8, MATCH(dms_TradingName,dms_CF_TradingName))="Y" | P5: =INDEX(dms_CF_4.1, MATCH(dms_TradingName,dms_CF_TradingName))="Y" | Q5: =INDEX(dms_CF_6.8, MATCH(dms_TradingName,dms_CF_TradingName))="Y" | R5: =INDEX(dms_CF_7.12, MATCH(dms_TradingName,dms_CF_TradingName))="Y" | S5: =INDEX(dms_CF_8.1_A, MATCH(dms_TradingName,dms_CF_TradingName))="Y" | T5: =INDEX(dms_CF_8.1_B, MATCH(dms_TradingName,dms_CF_TradingName))="Y" | U5: =INDEX(dms_CF_8.1_Neg, MATCH(dms_TradingName,dms_CF_TradingName))="Y" -> TRUE | V5: =INDEX(dms_CF_4.4.1_Neg, MATCH(dms_TradingName,dms_CF_TradingName))="Y" | Y5: =INDEX(dms_CF_F10, MATCH(dms_TradingName,dms_CF_TradingName))="Y"
B6: dms_CF_TradingName | C6: JurisdictionList | D6: Sector | E6: Segment | F6: dms_CF_3.6.1 | G6: dms_CF_3.6.5 | H6: dms_CF_3.6.6.1 | I6: dms_CF_3.6.6.2 | J6: dms_CF_3.6.6.3 | K6: dms_CF_3.6.7.1 | L6: dms_CF_3.6.7.2 | M6: dms_CF_3.6.7.3 | N6: dms_CF_3.6.7.4 | O6: dms_CF_3.6.8 | P6: dms_CF_4.1 | Q6: dms_CF_6.8 (set from dms_MAIFI_flag) | R6: dms_CF_7.12 | S6: dms_CF_8.1_A (and 8.4) | T6: dms_CF_8.1_B (and 8.4) | U6: dms_CF_8.1_Neg (and 8.4) | V6: dms_CF_4.4.1 | W6: dms_CF_MAIFI_flag (set from dms_MAIFI_flag) | X6: 9.5 TUOS (set from Jurisdiction) | Y6: dms_CF_F10
B7: Amadeus | C7: NT | D7: Gas | E7: Transmission | F7: - | G7: - | H7: - | I7: - | J7: - | K7: - | L7: - | M7: - | N7: - | O7: - | P7: - | Q7: - | R7: - | S7: - | T7: - | U7: - | V7: - | W7: - | X7: - | Y7: -
B8: APA GasNet | C8: Vic | D8: Gas | E8: Transmission | F8: - | G8: - | H8: - | I8: - | J8: - | K8: - | L8: - | M8: - | N8: - | O8: - | P8: - | Q8: - | R8: - | S8: - | T8: - | U8: - | V8: - | W8: - | X8: - | Y8: -
B9: Ausgrid | C9: NSW | D9: Electricity | E9: Distribution | G9: Y | H9: N | I9: N | J9: N | K9: N | L9: N | M9: N | N9: Y | O9: N | P9: N | Q9: =IFERROR(IF(dms_MAIFI_flag="Yes","N","Y"),"Y") -> Y | R9: Y | S9: N | T9: Y | U9: Y | V9: N | W9: =IFERROR(LEFT(dms_MAIFI_flag),"N") -> N | X9: =IF('AER CF'!$C7="Vic","Y","N") -> N
B10: Ausgrid (Tx Assets) | C10: NSW | D10: Electricity | E10: Distribution | G10: Y | H10: N | I10: N | J10: N | K10: N | L10: N | M10: N | N10: Y | O10: N | P10: N | Q10: =IFERROR(IF(dms_MAIFI_flag="Yes","N","Y"),"Y") -> Y | R10: Y | S10: N | T10: Y | U10: Y | V10: N | W10: =IFERROR(LEFT(dms_MAIFI_flag),"N") -> N | X10: =IF('AER CF'!$C8="Vic","Y","N") -> Y
B11: AusNet (D) | C11: Vic | D11: Electricity | E11: Distribution | G11: N | H11: N | K11: N | L11: N | M11: N | N11: N | O11: N | P11: N | Q11: =IFERROR(IF(dms_MAIFI_flag="Yes","N","Y"),"Y") -> Y | R11: N | S11: N | T11: N | U11: Y | V11: N | W11: =IFERROR(LEFT(dms_MAIFI_flag),"N") -> N | X11: =IF('AER CF'!$C9="Vic","Y","N") -> N
B12: AusNet Services Tx | C12: Vic | D12: Electricity | E12: Transmission | G12: N | K12: N | L12: N | M12: N | N12: N | O12: N | P12: Y | Q12: =IFERROR(IF(dms_MAIFI_flag="Yes","N","Y"),"Y") -> Y | R12: N | S12: N | T12: N | U12: Y | V12: N | W12: =IFERROR(LEFT(dms_MAIFI_flag),"N") -> N | X12: =IF('AER CF'!$C10="Vic","Y","N") -> N
B13: Australian Distribution Co. | C13: NSW | D13: Electricity | E13: Distribution | F13: N | G13: N | H13: N | I13: N | K13: N | L13: N | M13: N | N13: N | O13: N | P13: N | Q13: =IFERROR(IF(dms_MAIFI_flag="Yes","N","Y"),"Y") -> Y | R13: N | S13: N | T13: N | U13: N | V13: N | W13: =IFERROR(LEFT(dms_MAIFI_flag),"N") -> N | X13: =IF('AER CF'!$C13="Vic","Y","N") -> N
B14: Australian Distribution Co. (Vic) | C14: Vic | D14: Electricity | E14: Distribution | F14: N | G14: N | H14: N | I14: N | K14: N | L14: N | M14: N | N14: N | O14: N | P14: N | Q14: =IFERROR(IF(dms_MAIFI_flag="Yes","N","Y"),"Y") -> Y | R14: N | S14: N | T14: N | U14: N | V14: N | W14: =IFERROR(LEFT(dms_MAIFI_flag),"N") -> N | X14: =IF('AER CF'!$C14="Vic","Y","N") -> Y
B15: CitiPower | C15: Vic | D15: Electricity | E15: Distribution | G15: N | H15: N | K15: N | L15: N | M15: N | N15: N | O15: N | P15: N | Q15: =IFERROR(IF(dms_MAIFI_flag="Yes","N","Y"),"Y") -> Y | R15: N | S15: N | T15: N | U15: Y | V15: N | W15: =IFERROR(LEFT(dms_MAIFI_flag),"N") -> N | X15: =IF('AER CF'!$C15="Vic","Y","N") -> Y
B16: Directlink | C16: Qld | D16: Electricity | E16: Transmission | G16: N | K16: N | L16: N | M16: N | N16: N | O16: N | P16: - | Q16: =IFERROR(IF(dms_MAIFI_flag="Yes","N","Y"),"Y") -> Y | R16: N | S16: N | T16: Y | U16: Y | V16: N | W16: =IFERROR(LEFT(dms_MAIFI_flag),"N") -> N | X16: =IF('AER CF'!$C16="Vic","Y","N") -> N
B17: ElectraNet | C17: SA | D17: Electricity | E17: Transmission | G17: N | K17: N | L17: N | M17: N | N17: N | O17: N | P17: - | Q17: =IFERROR(IF(dms_MAIFI_flag="Yes","N","Y"),"Y") -> Y | R17: N | S17: N | T17: Y | U17: Y | V17: N | W17: =IFERROR(LEFT(dms_MAIFI_flag),"N") -> N | X17: =IF('AER CF'!$C17="Vic","Y","N") -> N
B18: Endeavour Energy | C18: NSW | D18: Electricity | E18: Distribution | G18: Y | H18: N | I18: Y | J18: Y | K18: N | L18: N | M18: N | N18: Y | O18: N | P18: N | Q18: =IFERROR(IF(dms_MAIFI_flag="Yes","N","Y"),"Y") -> Y | R18: Y | S18: N | T18: Y | U18: Y | V18: Y | W18: =IFERROR(LEFT(dms_MAIFI_flag),"N") -> N | X18: =IF('AER CF'!$C18="Vic","Y","N") -> N
B19: Energex | C19: Qld | D19: Electricity | E19: Distribution | G19: Y | H19: N | K19: N | L19: N | M19: N | N19: N | O19: N | P19: N | Q19: =IFERROR(IF(dms_MAIFI_flag="Yes","N","Y"),"Y") -> Y | R19: Y | S19: N | T19: Y | U19: Y | V19: Y | W19: =IFERROR(LEFT(dms_MAIFI_flag),"N") -> N | X19: =IF('AER CF'!$C19="Vic","Y","N") -> N
B20: Ergon Energy | C20: Qld | D20: Electricity | E20: Distribution | G20: Y | H20: N | I20: Y | J20: Y | K20: N | L20: N | M20: N | N20: N | O20: N | P20: N | Q20: =IFERROR(IF(dms_MAIFI_flag="Yes","N","Y"),"Y") -> Y | R20: Y | S20: N | T20: Y | U20: Y | V20: N | W20: =IFERROR(LEFT(dms_MAIFI_flag),"N") -> N | X20: =IF('AER CF'!$C20="Vic","Y","N") -> N
B21: Essential Energy | C21: NSW | D21: Electricity | E21: Distribution | G21: Y | H21: N | I21: Y | J21: Y | K21: N | L21: N | M21: N | N21: Y | O21: N | P21: N | Q21: =IFERROR(IF(dms_MAIFI_flag="Yes","N","Y"),"Y") -> Y | R21: Y | S21: N | T21: Y | U21: Y | V21: N | W21: =IFERROR(LEFT(dms_MAIFI_flag),"N") -> N | X21: =IF('AER CF'!$C21="Vic","Y","N") -> N
B22: Evoenergy Distribution | C22: ACT | D22: Electricity | E22: Distribution | G22: Y | H22: N | I22: Y | J22: Y | K22: Y | L22: Y | M22: N | N22: Y | O22: N | P22: Y | Q22: =IFERROR(IF(dms_MAIFI_flag="Yes","N","Y"),"Y") -> Y | R22: Y | S22: N | T22: Y | U22: Y | V22: N | W22: =IFERROR(LEFT(dms_MAIFI_flag),"N") -> N | X22: =IF('AER CF'!$C22="Vic","Y","N") -> N
B23: Evoenergy Distribution (Tx Assets) | C23: ACT | D23: Electricity | E23: Distribution | G23: Y | H23: N | I23: Y | J23: Y | K23: Y | L23: Y | M23: N | N23: Y | O23: N | P23: Y | Q23: =IFERROR(IF(dms_MAIFI_flag="Yes","N","Y"),"Y") -> Y | R23: Y | S23: N | T23: Y | U23: Y | V23: N | W23: =IFERROR(LEFT(dms_MAIFI_flag),"N") -> N | X23: =IF('AER CF'!$C23="Vic","Y","N") -> N
B24: Jemena Electricity | C24: Vic | D24: Electricity | E24: Distribution | G24: N | H24: N | K24: N | L24: N | M24: N | N24: N | O24: N | P24: N | Q24: =IFERROR(IF(dms_MAIFI_flag="Yes","N","Y"),"Y") -> Y | R24: N | S24: N | T24: N | U24: Y | V24: N | W24: =IFERROR(LEFT(dms_MAIFI_flag),"N") -> N | X24: =IF('AER CF'!$C25="Vic","Y","N") -> Y
B25: JGN | C25: Vic | D25: Gas | E25: Distribution | F25: - | G25: - | H25: - | I25: - | J25: - | K25: - | L25: - | M25: - | N25: - | O25: - | P25: - | Q25: - | R25: - | S25: - | T25: - | U25: - | V25: - | W25: - | X25: - | Y25: -
B26: Murraylink | C26: SA | D26: Electricity | E26: Transmission | G26: N | K26: N | L26: N | M26: N | N26: N | O26: N | P26: - | Q26: =IFERROR(IF(dms_MAIFI_flag="Yes","N","Y"),"Y") -> Y | R26: N | S26: N | T26: Y | U26: Y | V26: N | W26: =IFERROR(LEFT(dms_MAIFI_flag),"N") -> N | X26: =IF('AER CF'!$C26="Vic","Y","N") -> N
B27: Power and Water | C27: NT | D27: Electricity | E27: Distribution | G27: N | H27: N | K27: N | L27: Y | M27: N | N27: N | O27: N | P27: Y | Q27: =IFERROR(IF(dms_MAIFI_flag="Yes","N","Y"),"Y") -> Y | R27: Y | S27: Y | T27: Y | U27: Y | V27: N | W27: =IFERROR(LEFT(dms_MAIFI_flag),"N") -> N | X27: =IF('AER CF'!$C27="Vic","Y","N") -> N
B28: Powercor Australia | C28: Vic | D28: Electricity | E28: Distribution | G28: N | H28: N | K28: N | L28: N | M28: N | N28: N | O28: N | P28: N | Q28: =IFERROR(IF(dms_MAIFI_flag="Yes","N","Y"),"Y") -> Y | R28: N | S28: N | T28: N | U28: Y | V28: N | W28: =IFERROR(LEFT(dms_MAIFI_flag),"N") -> N | X28: =IF('AER CF'!$C28="Vic","Y","N") -> Y
B29: Powerlink | C29: Qld | D29: Electricity | E29: Transmission | G29: N | K29: N | L29: N | M29: N | N29: N | O29: N | P29: - | Q29: =IFERROR(IF(dms_MAIFI_flag="Yes","N","Y"),"Y") -> Y | R29: N | S29: N | T29: Y | U29: Y | V29: N | W29: =IFERROR(LEFT(dms_MAIFI_flag),"N") -> N | X29: =IF('AER CF'!$C29="Vic","Y","N") -> N
B30: Roma to Brisbane Pipeline | C30: Qld | D30: Gas | E30: Transmission | F30: - | G30: - | H30: - | I30: - | J30: - | K30: - | L30: - | M30: - | N30: - | O30: - | P30: - | Q30: - | R30: - | S30: - | T30: - | U30: - | V30: - | W30: - | X30: - | Y30: -
B31: SA Power Networks | C31: SA | D31: Electricity | E31: Distribution | G31: Y | H31: N | K31: N | L31: N | M31: N | N31: N | O31: N | P31: N | Q31: =IFERROR(IF(dms_MAIFI_flag="Yes","N","Y"),"Y") -> Y | R31: Y | S31: N | T31: Y | U31: N | V31: N | W31: =IFERROR(LEFT(dms_MAIFI_flag),"N") -> N | X31: =IF('AER CF'!$C31="Vic","Y","N") -> N
B32: TasNetworks (D) | C32: Tas | D32: Electricity | E32: Distribution | G32: Y | H32: N | K32: N | L32: N | M32: N | N32: N | O32: N | P32: N | Q32: =IFERROR(IF(dms_MAIFI_flag="Yes","N","Y"),"Y") -> Y | R32: Y | S32: N | T32: Y | U32: Y | V32: N | W32: =IFERROR(LEFT(dms_MAIFI_flag),"N") -> N | X32: =IF('AER CF'!$C32="Vic","Y","N") -> N
B33: TasNetworks (T) | C33: Tas | D33: Electricity | E33: Transmission | G33: N | K33: N | L33: N | M33: N | N33: N | O33: N | P33: - | Q33: =IFERROR(IF(dms_MAIFI_flag="Yes","N","Y"),"Y") -> Y | R33: N | S33: N | T33: Y | U33: Y | V33: N | W33: =IFERROR(LEFT(dms_MAIFI_flag),"N") -> N | X33: =IF('AER CF'!$C33="Vic","Y","N") -> N
B34: TransGrid | C34: NSW | D34: Electricity | E34: Transmission | G34: N | K34: N | L34: N | M34: N | N34: N | O34: N | P34: - | Q34: =IFERROR(IF(dms_MAIFI_flag="Yes","N","Y"),"Y") -> Y | R34: N | S34: N | T34: Y | U34: Y | V34: N | W34: =IFERROR(LEFT(dms_MAIFI_flag),"N") -> N | X34: =IF('AER CF'!$C34="Vic","Y","N") -> N
B35: United Energy | C35: Vic | D35: Electricity | E35: Distribution | G35: N | H35: N | K35: N | L35: N | M35: N | N35: N | O35: N | P35: N | Q35: =IFERROR(IF(dms_MAIFI_flag="Yes","N","Y"),"Y") -> Y | R35: N | S35: N | T35: N | U35: Y | V35: N | W35: =IFERROR(LEFT(dms_MAIFI_flag),"N") -> N | X35: =IF('AER CF'!$C35="Vic","Y","N") -> Y
B38: Confidential
B39: Amended
B41: Worksheet 6.2 STPIS reliability
B42: Formula | F42: Applied to:
B44: =INDEX(dms_CBD_flag,MATCH(dms_TradingName,dms_TradingName_List))="NO" | F44: $D$11,$D$17,$D$23,$D$33,$D$39,$D$45,$D$55,$D$61,$D$67,$D$77,$D$83,$D$89
B45: =INDEX(dms_Urban_flag,MATCH(dms_TradingName,dms_TradingName_List))="NO" | F45: $D$12,$D$18,$D$24,$D$56,$D$62,$D$78,$D$68,$D$84
B46: =INDEX(dms_ShortRural_flag,MATCH(dms_TradingName,dms_TradingName_List))="NO" | F46: $D$13,$D$19,$D$25,$D$57,$D$63,$D$69,$D$79,$D$85
B47: =INDEX(dms_LongRural_flag,MATCH(dms_TradingName,dms_TradingName_List))="NO" | F47: $D$14,$D$20,$D$26,$D$58,$D$64,$D$65,$D$70,$D$71,$D$80,$D$86
B48: =INDEX(dms_FeederType_5_flag,MATCH(dms_TradingName,dms_TradingName_List))="NO" | F48: $D$87,$D$81,$D$71,$D$65,$D$59,$D$49,$D$43,$D$37,$D$21,$D$15
B49: =dms_MAIFI_Flag="No" | F49: $D$55:$D$72
B52: Business & other details
B53: =(INDEX(dms_Model_Span,MATCH(dms_Model,dms_Model_List))>1)
B54: =(INDEX(dms_Model_Span,MATCH(dms_Model,dms_Model_List))=1)
B57: STYLES IN USE
B58: HEADING ONE | C58: dms_1
B59: HEADING TWO | C59: dms_2
B60: HEADING THREE | C60: dms_3
B61: HEADING FOUR | C61: dms_4
B62: HEADING FIVE | C62: dms_5
B63: 5.111 | C63: dms_NUM
B64: 0.0545 | C64: dms_NUM%
B65: 5.5555 | C65: dms_NUM3d
B66: Text description | C66: dms_Row_Locked
B67: Text description | C67: dms_Row1
B68: Text description | C68: dms_Row2
B69: Total | C69: dms_T1
B70: Total | C70: dms_T2
B71: EXPENSES | C71: dms_BH
B72: 2019 | C72: dms_BY1
B73: 2019 | C73: dms_BY2
B74: VOLUMES | C74: dms_GH
B75: 2019 | C75: dms_GY1
B76: 2019 | C76: dms_GY2

Sheet AER NRs (hidden)
B1: AER NAMED RANGES
B3: DROP DOWN SELECTORS USED IN WORKBOOKS
B5: COVER SHEET | C5: dms_DataQuality_List | D5: dms_Confid_status_List
C6: -- select -- | D6: -- select --
C7: Actual | D7: Public
C8: Estimate | D8: Confidential
C9: Consolidated
C12: For all files either AER or business needs to be able to specify the type of submission | D12: For PTRM & RFM templates we must provide a choice in case they change their form of control - otherwise it is drawn from the business specific lookup table above.
C13: dms_SourceList | D13: dms_FormControl_Choices
C14: -- select -- | D14: Revenue cap
C15: After appeal | D15: Revenue yield
C16: Draft decision | D16: Tariff cap
C17: Final decision | D17: Weighted average price cap
C18: PTRM update 1
C19: PTRM update 2
C20: PTRM update 3
C21: PTRM update 4
C22: PTRM update 5
C23: PTRM update 6
C24: PTRM update 7
C25: Reallocated
C26: Recast
C27: Regulatory proposal
C28: Reporting
C29: Revised regulatory proposal
K32: This is used to create an image to insert on 6.3 STPIS sheet - not for dropdown lists. | N32: GAS
B33: CA & RESET RINS DNSP | C33: dms_DNSP_020301_SubstationType | D33: dms_DNSP_020301_ProjectType | E33: dms_DNSP_020301_ProjectTrigger | F33: dms_DNSP_020302_ProjectType | G33: dms_DNSP_020302_ProjectTrigger | H33: dms_STPIS_Exclusion_List | I33: dms_Reason_Interruption | J33: dms_Reason_Interruption_Detailed | K33: Reason for interruption | N33: dms_N0205_AssetType
C34: Subtransmission substation | D34: New substation establishment | E34: Demand growth | F34: New line on new route - single circuit | G34: Demand growth | H34: Weather | I34: Animal | J34: Animal impact | K34: Animal | L34: Animal impact | N34: Cast Iron
C35: Zone substation | D35: Substation upgrade - capacity | E35: Voltage issues | F35: New line on new route - dual circuit | G35: Voltage issues | H35: Equipment failure | I35: Asset failure | J35: Animal nesting/burrowing, etc and other | L35: Animal nesting/burrowing, etc and other | N35: PVC
C36: Switching station | D36: Substation upgrade - voltage | E36: Reactive power issue | F36: New line on new route - other | G36: Reactive power issue | H36: Operational error | I36: Other | J36: Other | L36: Other | N36: Polyamide
C37: Other | D37: Other | E37: Fault level issues | F37: Line rebuild over existing route - single circuit | G37: Fault level issues | H37: Vegetation | I37: Overloads | J37: LV | K37: Asset failure | L37: LV | N37: High density polyethylene (80)
E38: Safety | F38: Line rebuild over existing route - dual circuit | G38: Net market benefit | H38: Animals | I38: Planned | J38: Distribution substation | L38: Distribution substation | N38: High density polyethylene (100)
E39: Environment | F39: Reconductor - Single circuit | G39: Safety | H39: Third party impacts | I39: Network business | J39: HV | L39: HV | N39: High density polyethylene (250)
E40: Other | F40: Reconductor - Dual circuit | G40: Environment | H40: Transmission failure | I40: Third party | J40: Zone substation | L40: Zone substation | N40: High density polyethylene (575)
F41: Reconductor - Other | G41: Other | H41: Load shedding | I41: Unknown | J41: Subtransmission | L41: Subtransmission | N41: Medium density polyethylene
F42: Line upgrade - raising/retensoring | H42: Inter-distributor connection failure | I42: Vegetation | J42: insert description of 'other' | K42: Other | L42: insert description of 'other' | N42: Unprotected steel
F43: Line upgrade - voltage upgrade | H43: Other | I43: Weather | J43: Network error | K43: Overloads | N43: Protected steel
F44: Line upgrade - capacity | I44: 2 - STPIS Exclusion (3.3)(a) | J44: Switching and protection error | K44: Planned | N44: Other
F45: String spare circuit | I45: 3 - STPIS Exclusion (3.3)(a) | J45: Fire | K45: Network business | L45: Network error
F46: Other | I46: 4 - STPIS Exclusion (3.3)(a) | J46: Other | L46: Switching and protection error
I47: 5 - STPIS Exclusion (3.3)(a) | J47: Dig-in | K47: Third party | L47: Fire
I48: 6 - STPIS Exclusion (3.3)(a) | J48: Unauthorised access | L48: Other
I49: 7 - STPIS Exclusion (3.3)(a) | J49: Vehicle impact | L49: Dig-in
J50: Unknown | L50: Unauthorised access
J51: Blow-in/Fall-in - NSP responsibility | L51: Vehicle impact
J52: Grow-in - NSP responsibility | K52: Unknown | L52: Unknown
J53: Blow-in/Fall-in - Other responsible party | K53: Vegetation | L53: Blow-in/Fall-in - NSP responsibility
J54: Grow-in - Other responsible party | L54: Grow-in - NSP responsibility
L55: Blow-in/Fall-in - Other responsible party
L56: Grow-in - Other responsible party
K57: Weather
K58: 2 - STPIS Exclusion (3.3)(a)
K59: 3 - STPIS Exclusion (3.3)(a)
K60: 4 - STPIS Exclusion (3.3)(a)
K61: 5 - STPIS Exclusion (3.3)(a)
K62: 6 - STPIS Exclusion (3.3)(a)
K63: 7 - STPIS Exclusion (3.3)(a)
B66: CA & RESET RINS TNSP | C66: dms_TNSP_0203_SubstationType | D66: dms_TNSP_020301_ProjectType | E66: dms_TNSP_020301_ProjectTrigger | F66: dms_TNSP_020302_ProjectType | G66: dms_TNSP_0203_ProjectTrigger
C67: Terminal station | D67: New substation establishment | E67: Demand growth | F67: New line on new route - single circuit | G67: Demand growth
C68: Switching station | D68: Capacity upgrade | E68: Voltage issues | F68: New line on new route - dual circuit | G68: Voltage issues
C69: Transmission substation | D69: Voltage upgrade | E69: Reactive power issue | F69: New line on new route - other | G69: Reactive power issue
C70: Other | D70: Other | E70: Fault level issues | F70: Line rebuild over existing route - single circuit | G70: Fault level issues
E71: Net market benefit | F71: Line rebuild over existing route - dual circuit | G71: Net market benefit
E72: Safety | F72: Reconductor - Single circuit | G72: Safety
E73: Environment | F73: Reconductor - Dual circuit | G73: Environment
E74: Other | F74: Reconductor - Other | G74: Other
F75: Line upgrade - raising/retensoring
F76: Line upgrade - voltage upgrade
F77: Line upgrade - capacity
F78: String spare circuit
F79: Other
B83: NAMED RANGES USED IN ETL PROCESS
M84: GAS ARR & RESET
B85: CA & RESET RINS DNSP ONLY | C85: dms_020303_01_UOM | D85: dms_020501_01_UOM | E85: dms_020501_02_UOM | F85: dms_020501_03_UOM | G85: dms_020501_04_UOM | H85: dms_020701_01_UOM | I85: dms_020701_02_UOM | J85: dms_020701_01_Rows | K85: dms_040102_01_UOM | L85: dms_040102_04_UOM | M85: dms_S140101_UOM | N85: dms_S140201_UOM | O85: dms_E050201_UOM | P85: dms_E050202_UOM
C86: Circuit line length in km | D86: 0's | E86: 0's | F86: 0's | G86: 0's | H86: km | I86: km | J86: Route line length within zone | K86: 0's | L86: days | M86: number | N86: number per km | O86: per metre per connection | P86: metres per connection
C87: Circuit line length in km | D87: 0's | E87: 0's | F87: 0's | G87: 0's | H87: 0's | I87: 0's | J87: Number of maintenance spans | K87: 0's | L87: 0's | M87: number | N87: number | O87: per service per connection | P87: number per connection
C88: Circuit line length in km | D88: MVA added | E88: MVA added | F88: MVA added | G88: MVA added | H88: km | I88: km | J88: Total length of maintenance spans | K88: 0's | L88: $0s | M88: number | N88: number | O88: number per connection | P88: number per connection
C89: Circuit line length in km | D89: 0's | E89: 0's | F89: 0's | G89: 0's | H89: km | I89: km | J89: Length of vegetation corridors | K89: $0s | L89: 0's | M89: km
C90: Number | D90: total spend $0s | E90: total spend $0s | F90: total spend $0s | G90: total spend $0s | H90: 0's | I90: 0's | J90: Average number of trees per maintenance span
C91: Number | D91: net circuit km added | E91: net circuit km added | F91: net circuit km added | G91: net circuit km added | H91: years | I91: years | J91: Average frequency of cutting cycle
C92: Number | D92: total spend $0s | E92: total spend $0s | F92: total spend $0s | G92: total spend $0s
D93: net circuit km added | E93: net circuit km added | F93: net circuit km added | G93: net circuit km added
D94: total spend $0s | E94: total spend $0s | F94: total spend $0s | G94: total spend $0s
D95: 0's | F95: $0s
D96: 0's
D97: 0's
D98: $0s
B101: CA & RESET RINS TNSP ONLY | C101: dms_020701_01_UOM
C102: km
C103: 0's
C104: km
C105: 0's
C106: km
C107: metres
C108: years
B111: CA & RESET RINS DNSP & TNSP | C111: dms_020603_01_UOM
C112: 0's
C113: 0's
C114: 0's
C115: 0's
C116: (per cent)
B119: EB & RESET RINS DNSP ONLY | C119: dms_030601_01_UOM | D119: dms_030601_02_UOM | E119: dms_030701_01_UOM | F119: dms_030702_01_UOM | G119: dms_030703_01_UOM
C120: minutes/customer | D120: minutes/customer | E120: Customer / km | F120: % | G120: km
C121: minutes/customer | D121: minutes/customer | E121: MWh/customer | F121: Number of spans
C122: interruptions/customer | D122: interruptions/customer | E122: kVA / customer | F122: Number of spans
C123: interruptions/customer | D123: interruptions/customer | F123: Number of spans
F124: Number of spans
F125: Years
F126: Years
F127: Trees
F128: Trees
F129: Defects
F130: Defects
F131: Spans
F132: km
F133: Spans
C135: WHEN INSERTING COVER SHEET INTO A TNSP FILE - APPLY THESE NAMED RANGES
B136: EB & RESET RINS TNSP ONLY | C136: dms_030601_01_UOM | E136: dms_030701_01_UOM | F136: dms_030702_01_UOM
C137: % | E137: Number of spans | F137: km
C138: number | E138: Years | F138: %
C139: number | E139: Trees | F139: km
C140: % | E140: Defects | F140: number
C141: number | E141: Number of spans
C142: number | E142: km
C143: % | E143: km
C144: number | E144: Number of spans
C145: number
C146: %
C147: number
C148: %
C149: number
C150: %
C151: number
B153: EB & RESET RINS DNSP & TNSP | C153: dms_EB_RAB_PIT
C154: Beginning of year
C155: End of year
C156: End of year
C157: End of year
C158: End of year
C159: End of year
B161: ARR DNSP ONLY | C161: dms_030605_UOM | D161: dms_03060703_UOM | E161: dms_E020202_UOM | F161: Spare
C162: number | D162: number | E162: Length of mains replaced
C163: number | D163: number | E163: Number of services replaced
C164: number | D164: number
C165: number | D165: number
C166: number | D166: (per cent)
C167: number
C168: number
C169: number
C170: number
C171: number
C172: number
C173: number
C174: (per cent)
C175: (per cent)
B177: RFM | C177: dms_Beg | D177: dms_Mid | E177: dms_End
C178: Beginning of year | D178: Mid year | E178: End of Year
B180: PTRM | C180: dms_PTRM_RAB_PIT | D180: dms_PTRM_TAB_PIT | E180: DMS_Xfactor
C181: Beginning of year | D181: Beginning of year | E181: x factors
C182: End of year | D182: End of year
C183: End of year | D183: End of year
C184: End of year | D184: End of year
C185: End of year
B188: STPIS & MIC NAMED RANGES
B190: These "row descriptions" are the column headings in the various templates but become row descriptions in the ETL process
B192: Table 6.3 sustained interruptions - row descriptions | C192: dms_060301_CustNo_Affected_Row | D192: dms_060301_Avg_Duration_Sustained_Int_Row | E192: dms_060301_Effect_unplanned_SAIDI_Row | F192: dms_060301_Effect_unplanned_SAIFI_Row
C193: Number of customers affected by the interruption | D193: Average duration of sustained customer interruption | E193: Effect on unplanned SAIDI | F193: Effect on unplanned SAIFI
B196: Table 6.1 telephone answering - row descriptions and start date | C196: dms_060101_Rows | D196: dms_060102_Rows | E196: dms_060101_StartDateTxt
C197: Total number of calls (after removing excluded events) | D197: Number of calls answered within 30 seconds (after excluding excluded events) | E197: =dms_060701_StartDateTxt -> 1-Jul-2020
B200: Table 6.8.1 - row descriptions | C200: dms_060801_01_Rows | D200: dms_060801_02_Rows | E200: dms_060801_03_Rows | F200: dms_060801_04_Rows
C201: Number of interruptions | D201: Duration of interruptions | E201: Total unplanned minutes off supply | F201: Effect on unplanned MAIFI
B204: Table 7.9.4 - market impact component - row descriptions | C204: dms_070904_01_Rows | D204: without exclusions | E204: with exclusions
B207: These headings (Lists) are determined from the INDEX/MATCH function on the NSP selected on the Business & other details sheet
B209: Table 6.7.1 - daily performance data - unplanned - MAIFI -- row descriptions and header named range values | C209: dms_060701_Feeder_Header_Lvl4 | D209: =INDEX(dms_FeederName_1,MATCH(dms_TradingName,dms_TradingName_List)) -> CBD | E209: =INDEX(dms_FeederName_1,MATCH(dms_TradingName,dms_TradingName_List)) -> CBD | F209: =INDEX(dms_FeederName_2,MATCH(dms_TradingName,dms_TradingName_List)) -> Urban | G209: =INDEX(dms_FeederName_2,MATCH(dms_TradingName,dms_TradingName_List)) -> Urban | H209: =INDEX(dms_FeederName_3,MATCH(dms_TradingName,dms_TradingName_List)) -> Short rural | I209: =INDEX(dms_FeederName_3,MATCH(dms_TradingName,dms_TradingName_List)) -> Short rural | J209: =INDEX(dms_FeederName_4,MATCH(dms_TradingName,dms_TradingName_List)) -> Long rural | K209: =INDEX(dms_FeederName_4,MATCH(dms_TradingName,dms_TradingName_List)) -> Long rural | L209: =IF((INDEX(dms_FeederName_5,MATCH(dms_TradingName,dms_TradingName_List))=0),"Network",(INDEX(dms_FeederName_5,MATCH(dms_TradingName,dms_TradingName_List)))) -> Network | M209: =IF((INDEX(dms_FeederName_5,MATCH(dms_TradingName,dms_TradingName_List))=0),"Network",(INDEX(dms_FeederName_5,MATCH(dms_TradingName,dms_TradingName_List)))) -> Network | N209: Network | O209: Network
C211: dms_060701_Rows | D211: All events | E211: After removing excluded events | F211: All events | G211: After removing excluded events | H211: All events | I211: After removing excluded events | J211: All events | K211: After removing excluded events | L211: All events | M211: After removing excluded events | N211: All events | O211: After removing excluded events
D212: the number of column headings changes from 10 to 12 depending on the number of feeder categories for the NSP
C214: dms_0603_FeederList | D214: =INDEX(dms_FeederName_1,MATCH(dms_TradingName,dms_TradingName_List)) -> CBD | E214: =INDEX(dms_FeederName_2,MATCH(dms_TradingName,dms_TradingName_List)) -> Urban | F214: =INDEX(dms_FeederName_3,MATCH(dms_TradingName,dms_TradingName_List)) -> Short rural | G214: =INDEX(dms_FeederName_4,MATCH(dms_TradingName,dms_TradingName_List)) -> Long rural
B217: Use these to add to specific worksheets in existing files | C217: Use these to add to specific worksheets in existing files
B220: ARRs 6.7 STPIS daily performance | C220: dms_060101_Values | D220: dms_060102_Values | E220: dms_060701_Values
C221: dms_LeapYear
B224: ARR's 6.8 STPIS exclusions | C224: dms_060801_Event_Date | D224: dms_060801_OutageID | E224: dms_060801_FeederID | F224: dms_060801_FeederClass | G224: dms_060801_CauseID | H224: dms_060801_01_Values | I224: dms_060801_02_Values | J224: dms_060801_03_Values | K224: dms_060801_Excl_Cat | L224: dms_060801_04_Values
C225: dms_060801_StartCell
B228: CA 6.3 sustained interruptions | C228: dms_060301_Event_Date | D228: dms_060301_Event_Time | E228: dms_060301_AssetID | F228: dms_060301_FeederClass | G228: dms_060301_Reason | H228: dms_060301_DetailedReason | I228: dms_060301_CustNo_Affected_Values | J228: dms_060301_Avg_Duration_Sustained_Int_Values | K228: dms_060301_Effect_unplanned_SAIDI_Values | L228: dms_060301_Effect_unplanned_SAIFI_Values | M228: dms_060301_MED
B232: PTRM input sheet | C232: DMS_50_01_01a | D232: DMS_50_01_01aa | E232: DMS_50_01_01b | F232: DMS_50_01_01bb | G232: DMS_50_01_01c | H232: DMS_50_01_01d | I232: DMS_50_01_01dd

Sheet AER lookups (hidden)
B1: AER LOOKUP TABLES
B3: Template number | C3: 5
Y5: FOR ELECTRICITY BUSINESSES ONLY
Y6: Feeder Types | AC6: TasNetworks (D) | AD6: Feeder Names
Y8: CBD | Z8: Urban | AA8: Short rural | AB8: long rural | AC8: EXTRA
B9: dms_TradingName_List | C9: dms_TradingNameFull_List | D9: dms_ABN_List | E9: dms_JurisdictionList | F9: dms_Sector_List | G9: dms_Segment_List | H9: dms_FormControl_List | I9: dms_RPT_List | J9: dms_RPTMonth_List | K9: dms_CRCPlength_List | L9: dms_FRCPlength_List | M9: dms_PRCPlength_List | N9: dms_663_List | O9: dms_Addr1_List | P9: dms_Addr2_List | Q9: dms_Suburb_List | R9: dms_State_List | S9: dms_PostCode_List | T9: dms_PAddr1_List | U9: dms_PAddr2_List | V9: dms_PSuburb_List | W9: dms_PState_List | X9: dms_PPostCode_List | Y9: dms_CBD_flag | Z9: dms_Urban_flag | AA9: dms_ShortRural_flag | AB9: dms_LongRural_flag | AC9: dms_FeederType_5_flag | AD9: dms_FeederName_1 | AE9: dms_FeederName_2 | AF9: dms_FeederName_3 | AG9: dms_FeederName_4 | AH9: dms_FeederName_5 | AI9: dms_Public_Lighting_List | AJ9: Name
B10: AusNet (T) | C10: AusNet Transmission Group Pty Limited | D10: 78079798173 | E10: VIC | F10: Electricity | G10: Transmission | H10: Revenue cap | I10: Financial | J10: March | K10: 5 | L10: 5 | M10: 5 | N10: 5 | R10: Vic | S10: 3000 | W10: VIC | Y10: NO | Z10: NO | AA10: NO | AB10: NO | AC10: NO | AD10: CBD | AE10: Urban | AF10: Short rural | AG10: Long rural | AI10: NO | AJ10: =B10 -> AusNet (T)
B11: Australian Transmission Co. | C11: Australian Transmission Co. | D11: 11222333444 | E11: NSW | F11: Electricity | G11: Transmission | H11: Revenue cap | I11: Financial | J11: June | K11: 5 | L11: 5 | M11: 5 | N11: 5 | O11: 123 Straight Street | Q11: SYDNEY | R11: NSW | S11: 2000 | T11: PO Box 123 | V11: SYDNEY | W11: NSW | X11: 2000 | Y11: NO | Z11: NO | AA11: NO | AB11: NO | AC11: NO | AD11: CBD | AE11: Urban | AF11: Short rural | AG11: Long rural | AI11: NO | AJ11: =B11 -> Australian Transmission Co.
B12: Directlink | C12: Directlink | D12: 16779340889 | E12: Qld | F12: Electricity | G12: Transmission | H12: Revenue cap | I12: Financial | J12: June | K12: 5 | L12: 5 | M12: 5 | N12: 5 | O12: Level 25 | P12: 580 George Street | Q12: SYDNEY | R12: NSW | S12: 2000 | T12: PO Box R41 | V12: ROYAL EXCHANGE | W12: NSW | X12: 1225 | Y12: NO | Z12: NO | AA12: NO | AB12: NO | AC12: NO | AD12: CBD | AE12: Urban | AF12: Short rural | AG12: Long rural | AI12: NO | AJ12: Directlink
B13: Murraylink | C13: Murraylink | D13: 79181207909 | E13: SA | F13: Electricity | G13: Transmission | H13: Revenue cap | I13: Financial | J13: June | K13: 5 | L13: 5 | M13: 5 | N13: 5 | O13: Level 19 | P13: 580 George Street | Q13: SYDNEY | R13: NSW | S13: 2000 | T13: PO Box R41 | V13: ROYAL EXCHANGE | W13: NSW | X13: 1225 | Y13: NO | Z13: NO | AA13: NO | AB13: NO | AC13: NO | AD13: CBD | AE13: Urban | AF13: Short rural | AG13: Long rural | AI13: NO | AJ13: Murraylink
B14: TasNetworks (T) | C14: TasNetworks (T) | D14: 24167357299 | E14: Tas | F14: Electricity | G14: Transmission | H14: Revenue cap | I14: Financial | J14: June | K14: 5 | L14: 5 | M14: 5 | N14: 5 | O14: 1-7 Maria Street | Q14: LENAH VALLEY | R14: Tas | S14: 7008 | T14: PO Box 606 | V14: MOONAH | W14: Tas | X14: 7009 | Y14: NO | Z14: NO | AA14: NO | AB14: NO | AC14: NO | AD14: CBD | AE14: Urban | AF14: Short rural | AG14: Long rural | AI14: NO | AJ14: TasNetworks (T)
B15: TransGrid | C15: NSW Electricity Networks Operations Pty Ltd trading as TransGrid | D15: 70 250 995 390 | E15: NSW | F15: Electricity | G15: Transmission | H15: Revenue cap | I15: Financial | J15: June | K15: 5 | L15: 5 | M15: 4 | N15: 5 | O15: 180 Thomas Street | Q15: SYDNEY | R15: NSW | S15: 2000 | T15: PO Box A1000 | V15: SYDNEY SOUTH | W15: NSW | X15: 1235 | Y15: NO | Z15: NO | AA15: NO | AB15: NO | AC15: NO | AD15: CBD | AE15: Urban | AF15: Short rural | AG15: Long rural | AI15: NO | AJ15: TransGrid
B20: The Reg Year Ending (dms_RYE) must be set to the last year of the regulatory period. For forecast data is is usually (FRCP_y5) for actual it is a single year (CRY). For historical actual data the RYE will need to be set manually in the business details sheet by setting the dms_Multiyear_flag to 1 and putting the correct value in 'dms_Specified_FinalYear. See cells C67:C68
B21: dms_Model_List | C21: dms_Model_Name_Format1 | D21: dms_Worksheet_List | E21: dms_Model_Span_List
B22: ARR | C22: Annual Reporting | D22: =IF(dms_MultiYear_ResponseFlag="yes","NEW HISTORICAL ANNUAL REPORTING","ANNUAL REPORTING") -> ANNUAL REPORTING | E22: 1
B23: CA | C23: Category Analysis | D23: =IF(dms_MultiYear_ResponseFlag="yes","NEW HISTORICAL CATEGORY ANALYSIS","CATEGORY ANALYSIS") -> CATEGORY ANALYSIS | E23: 1
B24: CESS | C24: Capitlal Expenditure | D24: CAPITLAL EXPENDITURE SHARING SCHEMING | E24: 5
B25: CPI | C25: CPI | D25: CPI | E25: 5
B26: EB | C26: Economic Benchmarking | D26: =IF(dms_MultiYear_ResponseFlag="yes","NEW HISTORICAL ECONOMIC BENCHMARKING","ECONOMIC BENCHMARKING") -> ECONOMIC BENCHMARKING | E26: 1
B27: EBSS | C27: Efficiency Benefit Sharing Scheme | D27: EFFICIENCY BENEFIT SHARING SCHEME | E27: 5
B28: Pricing | C28: Pricing Proposal | D28: PRICING PROPOSAL | E28: 5
B29: Profitability | C29: Profitability | D29: PROFITABILITY | E29: 5
B30: PTRM | C30: Post Tax Revenue Model | D30: POST TAX REVENUE MODEL | E30: 5
B31: Reset | C31: Regulatory Reporting (Reset) | D31: REGULATORY REPORTING STATEMENT | E31: 5
B32: RFM | C32: Roll Forward Model | D32: ROLL FORWARD MODEL | E32: 5
B33: WACC | C33: Weighted Average Cost of Capital | D33: WEIGHTED AVERAGE COST OF CAPITAL | E33: 1
B37: Financial | C37: Calendar | E37: PREVIOUS | G37: CURRENT | I37: FORTHCOMING
B38: 1987-88 | C38: 1988 | D38: PRCP_y1 | E38: =INDEX(INDIRECT(dms_RPT),dms_PRCP_start_row) -> 2017-18 | F38: CRCP_y1 | G38: =INDEX(INDIRECT(dms_RPT),dms_CRCP_start_row) -> 2022-23 | H38: =FRCP_y1 -> 2027-28 | I38: =INDEX(INDIRECT(dms_RPT),dms_FRCP_start_row) -> 2027-28
B39: 1988-89 | C39: 1989 | D39: PRCP_y2 | E39: =INDEX(INDIRECT(dms_RPT),dms_PRCP_start_row+1) -> 2018-19 | F39: CRCP_y2 | G39: =INDEX(INDIRECT(dms_RPT),dms_CRCP_start_row+1) -> 2023-24 | H39: FRCP_y2 | I39: =INDEX(INDIRECT(dms_RPT),dms_FRCP_start_row+1) -> 2028-29
B40: 1989-90 | C40: 1990 | D40: PRCP_y3 | E40: =INDEX(INDIRECT(dms_RPT),dms_PRCP_start_row+2) -> 2019-20 | F40: CRCP_y3 | G40: =INDEX(INDIRECT(dms_RPT),dms_CRCP_start_row+2) -> 2024-25 | H40: FRCP_y3 | I40: =INDEX(INDIRECT(dms_RPT),dms_FRCP_start_row+2) -> 2029-30
B41: 1990-91 | C41: 1991 | D41: PRCP_y4 | E41: =INDEX(INDIRECT(dms_RPT),dms_PRCP_start_row+3) -> 2020-21 | F41: CRCP_y4 | G41: =INDEX(INDIRECT(dms_RPT),dms_CRCP_start_row+3) -> 2025-26 | H41: FRCP_y4 | I41: =INDEX(INDIRECT(dms_RPT),dms_FRCP_start_row+3) -> 2030-31
B42: 1991-92 | C42: 1992 | D42: PRCP_y5 | E42: =INDEX(INDIRECT(dms_RPT),dms_PRCP_start_row+4) -> 2021-22 | F42: CRCP_y5 | G42: =INDEX(INDIRECT(dms_RPT),dms_CRCP_start_row+4) -> 2026-27 | H42: FRCP_y5 | I42: =INDEX(INDIRECT(dms_RPT),dms_FRCP_start_row+4) -> 2031-32
B43: 1992-93 | C43: 1993 | D43: PRCP_y6 | E43: =INDEX(INDIRECT(dms_RPT),dms_PRCP_start_row+5) -> 2022-23 | F43: CRCP_y6 | G43: =INDEX(INDIRECT(dms_RPT),dms_CRCP_start_row+5) -> 2027-28 | H43: FRCP_y6 | I43: =INDEX(INDIRECT(dms_RPT),dms_FRCP_start_row+5) -> 2032-33
B44: 1993-94 | C44: 1994 | D44: PRCP_y7 | E44: =INDEX(INDIRECT(dms_RPT),dms_PRCP_start_row+6) -> 2023-24 | F44: CRCP_y7 | G44: =INDEX(INDIRECT(dms_RPT),dms_CRCP_start_row+6) -> 2028-29 | H44: FRCP_y7 | I44: =INDEX(INDIRECT(dms_RPT),dms_FRCP_start_row+6) -> 2033-34
B45: 1994-95 | C45: 1995 | D45: PRCP_y8 | E45: =INDEX(INDIRECT(dms_RPT),dms_PRCP_start_row+7) -> 2024-25 | F45: CRCP_y8 | G45: =INDEX(INDIRECT(dms_RPT),dms_CRCP_start_row+7) -> 2029-30 | H45: FRCP_y8 | I45: =INDEX(INDIRECT(dms_RPT),dms_FRCP_start_row+7) -> 2034-35
B46: 1995-96 | C46: 1996 | D46: PRCP_y9 | E46: =INDEX(INDIRECT(dms_RPT),dms_PRCP_start_row+8) -> 2025-26 | F46: CRCP_y9 | G46: =INDEX(INDIRECT(dms_RPT),dms_CRCP_start_row+8) -> 2030-31 | H46: FRCP_y9 | I46: =INDEX(INDIRECT(dms_RPT),dms_FRCP_start_row+8) -> 2035-36
B47: 1996-97 | C47: 1997 | D47: PRCP_y10 | E47: =INDEX(INDIRECT(dms_RPT),dms_PRCP_start_row+9) -> 2026-27 | F47: CRCP_y10 | G47: =INDEX(INDIRECT(dms_RPT),dms_CRCP_start_row+9) -> 2031-32 | H47: FRCP_y10 | I47: =INDEX(INDIRECT(dms_RPT),dms_FRCP_start_row+9) -> 2036-37
B48: 1997-98 | C48: 1998 | D48: PRCP_y11 | E48: =INDEX(INDIRECT(dms_RPT),dms_PRCP_start_row+10) -> 2027-28 | F48: CRCP_y11 | G48: =INDEX(INDIRECT(dms_RPT),dms_CRCP_start_row+10) -> 2032-33 | H48: FRCP_y11 | I48: =INDEX(INDIRECT(dms_RPT),dms_FRCP_start_row+10) -> 2037-38
B49: 1998-99 | C49: 1999 | D49: PRCP_y12 | E49: =INDEX(INDIRECT(dms_RPT),dms_PRCP_start_row+11) -> 2028-29 | F49: CRCP_y12 | G49: =INDEX(INDIRECT(dms_RPT),dms_CRCP_start_row+11) -> 2033-34 | H49: FRCP_y12 | I49: =INDEX(INDIRECT(dms_RPT),dms_FRCP_start_row+11) -> 2038-39
B50: 1999-00 | C50: 2000 | D50: PRCP_y13 | E50: =INDEX(INDIRECT(dms_RPT),dms_PRCP_start_row+12) -> 2029-30 | F50: CRCP_y13 | G50: =INDEX(INDIRECT(dms_RPT),dms_CRCP_start_row+12) -> 2034-35 | H50: FRCP_y13 | I50: =INDEX(INDIRECT(dms_RPT),dms_FRCP_start_row+12) -> 2039-40
B51: 2000-01 | C51: 2001 | D51: PRCP_y14 | E51: =INDEX(INDIRECT(dms_RPT),dms_PRCP_start_row+13) -> 2030-31 | F51: CRCP_y14 | G51: =INDEX(INDIRECT(dms_RPT),dms_CRCP_start_row+13) -> 2035-36 | H51: FRCP_y14 | I51: =INDEX(INDIRECT(dms_RPT),dms_FRCP_start_row+13) -> 2040-41
B52: 2001-02 | C52: 2002 | D52: PRCP_y15 | E52: =INDEX(INDIRECT(dms_RPT),dms_PRCP_start_row+14) -> 2031-32 | F52: CRCP_y15 | G52: =INDEX(INDIRECT(dms_RPT),dms_CRCP_start_row+14) -> 2036-37 | H52: FRCP_y15 | I52: =INDEX(INDIRECT(dms_RPT),dms_FRCP_start_row+14) -> 2041-42
B53: 2002-03 | C53: 2003 | D53: PRCP_y16 | E53: =INDEX(INDIRECT(dms_RPT),dms_PRCP_start_row+15) -> 2032-33 | F53: CRCP_y16 | G53: =INDEX(INDIRECT(dms_RPT),dms_CRCP_start_row+15) -> 2037-38 | H53: FRCP_y16 | I53: =INDEX(INDIRECT(dms_RPT),dms_FRCP_start_row+15) -> 2042-43
B54: 2003-04 | C54: 2004
B55: 2004-05 | C55: 2005
B56: 2005-06 | C56: 2006 | E56: CRY - FRY
B57: 2006-07 | C57: 2007 | D57: dms_y1 | E57: =IFERROR(INDEX(INDIRECT(dms_RPT),dms_CRY_start_row),0) -> 2022-23
B58: 2007-08 | C58: 2008 | D58: dms_y2 | E58: =IFERROR(INDEX(INDIRECT(dms_RPT),dms_CRY_start_row+1),0) -> 2023-24
B59: 2008-09 | C59: 2009 | D59: dms_y3 | E59: =IFERROR(INDEX(INDIRECT(dms_RPT),dms_CRY_start_row+2),0) -> 2024-25
B60: 2009-10 | C60: 2010 | D60: dms_y4 | E60: =IFERROR(INDEX(INDIRECT(dms_RPT),dms_CRY_start_row+3),0) -> 2025-26
B61: 2010-11 | C61: 2011 | D61: dms_y5 | E61: =IFERROR(INDEX(INDIRECT(dms_RPT),dms_CRY_start_row+4),0) -> 2026-27
B62: 2011-12 | C62: 2012 | D62: dms_y6 | E62: =IFERROR(INDEX(INDIRECT(dms_RPT),dms_CRY_start_row+5),0) -> 2027-28
B63: 2012-13 | C63: 2013 | D63: dms_y7 | E63: =IFERROR(INDEX(INDIRECT(dms_RPT),dms_CRY_start_row+6),0) -> 2028-29
B64: 2013-14 | C64: 2014 | D64: dms_y8 | E64: =IFERROR(INDEX(INDIRECT(dms_RPT),dms_CRY_start_row+7),0) -> 2029-30
B65: 2014-15 | C65: 2015 | D65: dms_y9 | E65: =IFERROR(INDEX(INDIRECT(dms_RPT),dms_CRY_start_row+8),0) -> 2030-31
B66: 2015-16 | C66: 2016 | D66: dms_y10 | E66: =IFERROR(INDEX(INDIRECT(dms_RPT),dms_CRY_start_row+9),0) -> 2031-32
B67: 2016-17 | C67: 2017 | D67: dms_y11 | E67: =IFERROR(INDEX(INDIRECT(dms_RPT),dms_CRY_start_row+10),0) -> 2032-33
B68: 2017-18 | C68: 2018 | D68: dms_y12 | E68: =IFERROR(INDEX(INDIRECT(dms_RPT),dms_CRY_start_row+11),0) -> 2033-34
B69: 2018-19 | C69: 2019 | D69: dms_y13 | E69: =IFERROR(INDEX(INDIRECT(dms_RPT),dms_CRY_start_row+12),0) -> 2034-35
B70: 2019-20 | C70: 2020 | D70: dms_y14 | E70: =IFERROR(INDEX(INDIRECT(dms_RPT),dms_CRY_start_row+13),0) -> 2035-36
B71: 2020-21 | C71: 2021 | D71: dms_y15 | E71: =IFERROR(INDEX(INDIRECT(dms_RPT),dms_CRY_start_row+14),0) -> 2036-37
B72: 2021-22 | C72: 2022 | D72: dms_y16 | E72: =IFERROR(INDEX(INDIRECT(dms_RPT),dms_CRY_start_row+15),0) -> 2037-38
B73: 2022-23 | C73: 2023
B74: 2023-24 | C74: 2024
B75: 2024-25 | C75: 2025
B76: 2025-26 | C76: 2026
B77: 2026-27 | C77: 2027
B78: 2027-28 | C78: 2028
B79: 2028-29 | C79: 2029
B80: 2029-30 | C80: 2030
B81: 2030-31 | C81: 2031
B82: 2031-32 | C82: 2032
B83: 2032-33 | C83: 2033
B84: 2033-34 | C84: 2034
B85: 2034-35 | C85: 2035
B86: 2035-36 | C86: 2036
B87: 2036-37 | C87: 2037
B88: 2037-38 | C88: 2038
B89: 2038-39 | C89: 2039
B90: 2039-40 | C90: 2040
B91: 2040-41 | C91: 2041
B92: 2041-42 | C92: 2042
B93: 2042-43 | C93: 2043
B94: 2043-44 | C94: 2044
B95: 2044-45 | C95: 2045
B96: 2045-46 | C96: 2046
B97: 2046-47 | C97: 2047
B98: 2047-28 | C98: 2048

Sheet AER ETL (hidden)
B1: AER ETL INFORMATION
B3: USES NAMED RANGES FLAG | C3: yes | D3: dms_Defined_Names_Used
B5: IF THIS IS AN ABC RIN - make sure the the named range CRY is applied and the named range dms_dollar_nom_UOM is applied
B6: IF THIS IS A RESET RIN - make sure the named ranges CRY and dms_dollar_nom_UOM are NOT present in the workbook
B7: FOR ABC RINS THAT SPAN MULTIPLE YEARS - make sure MultiYear Flag is set and final year entered as required
B9: Full trading name | C9: =INDEX(dms_TradingNameFull_List,MATCH(dms_TradingName,dms_TradingName_List)) -> AusNet Transmission Group Pty Limited | E9: dms_TradingNameFull
B10: Trading name | C10: =dms_TradingName -> AusNet (T)
B11: Unique ID | C11: ETTVIC200 | D11: dms_UID
A12: Selected here | B12: Model / RIN | C12: Reset | D12: dms_Model
A13: Read from Business & other details | B13: Source | C13: Regulatory proposal | D13: dms_Source | E13: =IF(dms_Model="Reset", "You have chosen Reset - make sure you have set Reg Proposal as source","") -> You have chosen Reset - make sure you have set Reg Proposal as source
B14: Data quality | C14: Consolidated | D14: For DB purposes this is always Consoldiated
B15: Data status | C15: Public | D15: "See "& " - For DB purposes this is always Public"
B16: Amendment reason | C16: =dms_Amendment_Text -> . | F16: dms_AmendmentReason
B17: Submission date | C17: =dms_Typed_Submission_Date -> dd/mm/yy | D17: dms_SubmissionDate
A19: Redundant | B19: EBSS - First application of scheme in forthcoming period? | C19: No
A20: Pre-populated from lookup table | B20: Data ingestion data quality | C20: Consolidated | D20: dms_DataQuality | E20: Always Consolidated
B21: Sector | C21: =INDEX(dms_Sector_List,MATCH(dms_TradingName,dms_TradingName_List)) -> Electricity | D21: dms_Sector | E21: =INDEX(dms_Sector_List,MATCH(dms_TradingName,dms_TradingName_List))
B22: Segment | C22: =INDEX(dms_Segment_List,MATCH(dms_TradingName,dms_TradingName_List)) -> Transmission | D22: dms_Segment | E22: =INDEX(dms_Segment_List,MATCH(dms_TradingName,dms_TradingName_List))
B23: Regulatory Year Ending | C23: =IF(dms_MultiYear_Flag=1,LEFT(dms_Specified_FinalYear,2)&RIGHT(dms_Specified_FinalYear,2),dms_RYE_result) -> 2032 | D23: dms_RYE | E23: =IF(dms_MultiYear_Flag=1,LEFT(dms_Specified_FinalYear,2)&RIGHT(dms_Specified_FinalYear,2),dms_RYE_result)
B24: Reporting Period Type | C24: Financial | D24: dms_RPT | E24: =INDEX(dms_RPT_List,MATCH(dms_TradingName,dms_TradingName_List))
B25: EB/CA Unit of Measure for Monetary Values | C25: $0s | D25: dms_dollar_nom_UOM | E25: =IF(dms_SingleYearModel="yes","This is set to an historical template (EB, CA or ARR), apply UOM Named Range to cell !","This is not an historical template, make sure UOM Named Range is not applied") -> This is not an historical template, make sure UOM Named Range is not applied | J25: =IFERROR(dms_dollar_nom_UOM, "NR not applied") -> NR not applied
B26: Security Classification | C26: Public | D26: dms_Classification | E26: Always Public
B27: Jurisdiction | C27: =INDEX(dms_JurisdictionList,MATCH(dms_TradingName,dms_TradingName_List)) -> VIC | D27: dms_Jurisdiction | E27: =INDEX(dms_JurisdictionList,MATCH(dms_TradingName,dms_TradingName_List))
A28: Relevant for PTRM, RFMs and Reset RINS | B28: $ REAL REFERENCES
B29: Does the named range CRY exist in this file? | C29: =IFERROR(CRY,"NO") -> 2022-23
B30: CRY-1 (last full calendar year before CRY) | C30: =IFERROR(IF(dms_RPT="calendar",CRY-1,LEFT(CRY,4)),"CRY not present") -> 2022 | D30: dms_Cal_Year_B4_CRY | E30: '=IF(dms_RPT="financial",VALUE(LEFT(dms_SingleYear_FinalYear_Result,4)),VALUE(LEFT(dms_SingleYear_FinalYear_Result,4)-1))
B31: Dollar $ real month | C31: =INDEX(dms_RPTMonth_List,MATCH(dms_TradingName,dms_TradingName_List)) -> March | D31: dms_RPTMonth | E31: =INDEX(dms_RPTMonth_List,MATCH(dms_TradingName,dms_TradingName_List))
B32: Dollar $ real (the last month before the FRCP_y1) | C32: =IF(dms_Model="RFM",dms_DollarReal_Prev, IF(dms_SingleYearModel="yes",CONCATENATE(dms_RPTMonth)&" "&VALUE((LEFT(dms_CRY_start_year,2)&RIGHT(dms_CRY_start_year,2))),CONCATENATE(dms_RPTMonth)&" "&dms_DollarReal_year)) -> March 2027 | D32: dms_DollarReal | E32: =IF(dms_Model="RFM",dms_DollarReal_Prev, IF(dms_SingleYearModel="yes",CONCATENATE(dms_RPTMonth)&" "&VALUE((LEFT(dms_CRY_start_year,2)&RIGHT(dms_CRY_start_year,2))),CONCATENATE(dms_RPTMonth)&" "&dms_DollarReal_year))
B33: Dollar $ real previous year (PRCP_y5) | C33: =CONCATENATE(dms_RPTMonth)&" "&dms_Previous_DollarReal_year -> March 2022 | D33: dms_DollarReal_Prev | E33: =IF(SUM(dms_SingleYear_Model)>0,CONCATENATE(dms_RPTMonth)&" "&VALUE(((LEFT(CRY,2))&RIGHT(CRY,2))-1),CONCATENATE(dms_RPTMonth)&" "&VALUE(((LEFT(dms_CRCP_FirstYear_Result,2)&RIGHT(dms_CRCP_FirstYear_Result,2))))-1)
B34: PTRM/ RFMs
B35: Form of control | C35: =INDEX(dms_FormControl_List,MATCH(dms_TradingName,dms_TradingName_List)) -> Revenue cap | D35: dms_FormControl | E35: =INDEX(dms_FormControl_List,MATCH(dms_TradingName,dms_TradingName_List))
A36: All potential values for Regulatory Years or RYEs as calculated | B36: This block works out the various RYE's for ALL RIN types and MODELS
B37: dms_start_year | C37: =FRCP_y1 -> 2027-28 | D37: =FRCP_y1 | E37: FRCP_y1 from cover sheet
B38: dms_CRY_start_year | C38: =IFERROR(CRY,CRCP_y4) -> 2022-23 | D38: =IFERROR(CRY,CRCP_y4)
B39: dms_CRY_start_row | C39: =IFERROR(MATCH(dms_CRY_start_year,INDIRECT(dms_RPT),0),0) -> 36 | D39: =IFERROR(MATCH(dms_CRY_start_year,INDIRECT(dms_RPT),0),0)
B40: dms_FRCP_start_row | C40: =MATCH(dms_start_year,INDIRECT(dms_RPT),0) -> 41 | D40: =MATCH(dms_start_year,INDIRECT(dms_RPT),0) | E40: Uses FRCP_y1 as a start reference
B41: dms_CRCP_start_row | C41: =dms_FRCP_start_row-dms_CRCPlength_Num -> 36 | D41: =dms_FRCP_start_row-dms_CRCPlength_Num | E41: Uses the value in dms_CRCPlength_Num
B42: dms_PRCP_start_row | C42: =dms_FRCP_start_row-dms_CRCPlength_Num-dms_PRCPlength_Num -> 31 | D42: =dms_FRCP_start_row-dms_CRCPlength_Num-dms_PRCPlength_Num | E42: Uses the value in dms_CRCPlength_Num and dms_PRCPlength_Num
B43: dms_RYE_start_row | C43: =dms_FRCP_start_row+(dms_FRCPlength_Num-1) -> 45 | D43: =dms_FRCP_start_row+(dms_FRCPlength_Num-1) | E43: Uses the value in dms_FRCPlength_Num-1
B44: FRCP_start_year | C44: =INDEX(INDIRECT(dms_RPT),dms_FRCP_start_row) -> 2027-28 | D44: =INDEX(INDIRECT(dms_RPT),dms_FRCP_start_row) | E44: Converts the FRCP start row to display the year
B45: CRCP_start_year | C45: =INDEX(INDIRECT(dms_RPT),dms_CRCP_start_row) -> 2022-23 | D45: =INDEX(INDIRECT(dms_RPT),dms_CRCP_start_row) | E45: Converts the CRCP start row to display the year
B46: PRCP_start_year | C46: =INDEX(INDIRECT(dms_RPT),dms_PRCP_start_row) -> 2017-18 | D46: =INDEX(INDIRECT(dms_RPT),dms_PRCP_start_row) | E46: Converts the PRCP start row to display the year
B47: FRCP_final_year | C47: =INDEX(INDIRECT(dms_RPT),dms_FRCP_start_row+dms_FRCPlength_Num-1) -> 2031-32 | D47: =INDEX(INDIRECT(dms_RPT),dms_FRCP_start_row+dms_FRCPlength_Num-1) | E47: Finds the FRCP final year
B48: CRCP_final_year | C48: =INDEX(INDIRECT(dms_RPT),dms_CRCP_start_row+dms_CRCPlength_Num-1) -> 2026-27 | D48: =INDEX(INDIRECT(dms_RPT),dms_CRCP_start_row+dms_CRCPlength_Num-1) | E48: Finds the CRCP final year
B49: PRCP_final_year | C49: =INDEX(INDIRECT(dms_RPT),dms_PRCP_start_row+dms_FRCPlength_Num-1) -> 2021-22 | D49: =INDEX(INDIRECT(dms_RPT),dms_PRCP_start_row+dms_FRCPlength_Num-1) | E49: Finds the PRCP final year
B50: dms_Reset_final_year | C50: =INDEX(INDIRECT(dms_RPT),dms_RYE_start_row) -> 2031-32 | D50: =INDEX(INDIRECT(dms_RPT),dms_RYE_start_row) | E50: For Resets and PTRM/RFMs (same as FRCP_final_year)
B51: dms_SpecifiedYear_final_year | C51: =FRY -> 2022-23 | D51: =FRY | E51: FRY from cover sheet
B52: dms_DollarReal_year | C52: =LEFT(CRCP_final_year,2)&RIGHT(CRCP_final_year,2) -> 2027 | D52: =LEFT(CRCP_final_year,2)&RIGHT(CRCP_final_year,2) | E52: Uses the value in CRCP_final_year
B53: dms_Previous_DollarReal_year | C53: =LEFT(PRCP_final_year,2)&RIGHT(PRCP_final_year,2) -> 2022 | D53: =LEFT(PRCP_final_year,2)&RIGHT(PRCP_final_year,2) | E53: Uses the value in PRCP_final_year
B54: dms_CRY_RYE | C54: =IFERROR(LEFT(CRY,2)&RIGHT(CRY,2),0) -> 2023 | D54: =IFERROR(LEFT(CRY,2)&RIGHT(CRY,2),0) | E54: For ABC single year RINS
B55: dms_Reset_RYE | C55: =IF(dms_Model_Span>1,IF(dms_Model="RFM",(LEFT(dms_DollarReal_year,2)&RIGHT(dms_DollarReal_year,2)),(LEFT(dms_Reset_final_year,2)&RIGHT(dms_Reset_final_year,2))),0) -> 2032 | D55: =IF(dms_Model_Span>1,IF(dms_Model="RFM",(LEFT(dms_DollarReal_year,2)&RIGHT(dms_DollarReal_year,2)),(LEFT(dms_Reset_final_year,2)&RIGHT(dms_Reset_final_year,2))),0) | E55: If model span > 1 then uses dms_Reset_RYE otherwise it's a multi year ABC and uses dms_Specified_RYE
B56: dms_Specified_RYE | C56: =IF(dms_MultiYear_ResponseFlag="Yes",(LEFT(dms_Specified_FinalYear,2)&RIGHT(dms_Specified_FinalYear,2)),0) -> 0 | D56: =IF(dms_MultiYear_ResponseFlag="Yes",(LEFT(dms_Specified_FinalYear,2)&RIGHT(dms_Specified_FinalYear,2)),0) | E56: If multi year ABC - uses dms_Specified_FinalYear
B57: dms_Model_Span | C57: =INDEX(dms_Model_Span_List,MATCH(dms_Model,dms_Model_List)) -> 5 | D57: =INDEX(dms_Model_Span_List,MATCH(dms_Model,dms_Model_List)) | E57: A result of 5 is used to signify that it is more than 1 year span
B58: dms_RYE_result | C58: =IF(dms_MultiYear_ResponseFlag="yes",dms_Specified_RYE,(IF(dms_Model_Span>1,dms_Reset_RYE,dms_CRY_RYE))) -> 2032 | D58: =IF(dms_MultiYear_ResponseFlag="yes",dms_Specified_RYE,(IF(dms_Model_Span>1,dms_Reset_RYE,dms_CRY_RYE))) | E58: Nested IF - feeds into dms_RYE
B59: dms_Reset_Span | C59: =IF(dms_Reset_RYE>0,CONCATENATE(FRCP_y1," to ",FRCP_final_year),0) -> 2027-28 to 2031-32 | D59: =IF(dms_Reset_RYE>0,CONCATENATE(FRCP_y1," to ",FRCP_final_year),0) | E59: Reset span of years as text
B60: dms_SpecifiedYear_Span | C60: =IF(dms_Specified_RYE>0,CONCATENATE(CRY," to ",dms_Specified_FinalYear),0) -> 0 | D60: =IF(dms_Specified_RYE>0,CONCATENATE(CRY," to ",dms_Specified_FinalYear),0) | E60: Multi year ABC span of years as text
B61: dms_Header_Span | C61: =IF(dms_MultiYear_Flag=1,dms_SpecifiedYear_Span,IF(dms_Model_Span>1,dms_y1&" to "&FRCP_final_year,CRY)) -> 2022-23 to 2031-32 | D61: =IF(dms_MultiYear_Flag=1,dms_SpecifiedYear_Span,IF(dms_Model_Span>1,dms_Reset_Span,CRY)) | E61: NESTED IF - for Sheet Headers
B62: ABC RINS THAT SPAN MULTIPLE YEARS
B63: This is a multi year ABC RIN? | C63: No
C64: =IF(dms_MultiYear_ResponseFlag="No",0,1) -> 0 | D64: dms_MultiYear_Flag | E64: This is set from the answer provided above
C65: =IF(dms_MultiYear_Flag=1,FRY,"not a Multiple year submission") -> not a Multiple year submission | D65: dms_Specified_FinalYear | E65: The result here is returned to dms_CRCP_FinalYear_Result if response to Q in C73 is "yes" and dms_MultiYear_Flag is set to 1
B66: Start year for 5.2 in Multi year ABC RINS | C66: =IFERROR(IF(dms_MultiYear_Flag=1,FRY,CRY),"not an ABC") -> 2022-23 | D66: dms_0502_Inst_Year | E66: =IF(dms_MultiYear_Flag=1,FRY,CRY) | G66: For single year RINS this is CRY - multi year RINS need to start a the end of the span of years (ie. FRY)
B67: WHAT IS THE RYE?
B68: Reg Period Lengths
B69: PRCP length in years | C69: =INDEX(dms_PRCPlength_List,MATCH(dms_TradingName,dms_TradingName_List)) -> 5 | D69: dms_PRCPlength_Num | E69: =INDEX(dms_PRCPlength_List,MATCH(dms_TradingName,dms_TradingName_List))
B70: CRCP length in years | C70: =INDEX(dms_CRCPlength_List,MATCH(dms_TradingName,dms_TradingName_List)) -> 5 | D70: dms_CRCPlength_Num | E70: =INDEX(dms_CRCPlength_List,MATCH(dms_TradingName,dms_TradingName_List))
B71: FRCP length in years | C71: =INDEX(dms_FRCPlength_List,MATCH(dms_TradingName,dms_TradingName_List)) -> 5 | D71: dms_FRCPlength_Num | E71: =INDEX(dms_FRCPlength_List,MATCH(dms_TradingName,dms_TradingName_List))
B72: Single year RIN?
B73: Single Year ABC RIN ? | C73: =IF(dms_Model="EB",1,0) -> 0 | D73: dms_EB
C74: =IF(dms_Model="CA",1,0) -> 0 | D74: dms_CA | E74: =dms_SingleYear_Model
C75: =IF(dms_Model="ARR",1,0) -> 0 | D75: dms_ARR
B76: Is this a single Year ABC RIN? | C76: =IF(SUM(dms_SingleYear_Model)=1,"yes","no") -> no | D76: dms_SingleYearModel | E76: =IF(SUM(dms_SingleYear_Model)=1,"yes","no")
B77: Single Year Final Year Result | C77: =IF(AND(dms_SingleYearModel="yes",dms_MultiYear_Flag=0),CRY,0) -> 0 | D77: dms_SingleYear_FinalYear_Result | E77: =IFERROR(IF(SUM(dms_SingleYear_Model)<>0,(INDIRECT(dms_SingleYear_FinalYear_Ref)),"not a single year RIN"),"CRY not present")
B78: Multi year RIN?
B80: Multi Year Reset/Model? | C80: =IF(dms_Model_Span>1,"yes","no") -> yes
B81: Final year result for Reset/Model | C81: =IF(dms_Model_Span>1,dms_Reset_final_year,0) -> 2031-32 | D81: dms_MultiYear_FinalYear_Result | E81: dms_CRCP_FinalYear_Result
B83: Multi Year ABC RIN? | C83: =IF(dms_MultiYear_Flag=1,"yes","no") -> no | D83: dms_MultiYear_ABC_RIN
B84: Final year result for ABC multi year | C84: =IF(dms_MultiYear_Flag=1,C51,0) -> 0
B86: EB RINS
B87: Calendar Year for table 3.6 data | C87: =IFERROR(IF(dms_Segment="Transmission",dms_Cal_Year_B4_CRY,CRY),"CRY not present") -> 2022 | D87: dms_0306_Year | E87: =IF(dms_Segment="Transmission",dms_Cal_Year_B4_CRY,CRY)
B88: CA RINS
B89: Find how many rows in tables 6.3 sustained interruptions? | E89: dms_060301_MaxRows only returns a valid value when cover sheet is attached to a CA file
C90: =IF(dms_Model<>"CA","not a CA","Is a CA") -> not a CA | E90: =IF(dms_Model<>"CA","not a CA","Is a CA")
B91: dms_060301_Avg_Duration_Sustained_Int_Values present? | C91: =IFERROR(IF(INDEX(dms_060301_Avg_Duration_Sustained_Int_Values,1,1)<>"","yes","no"),"no") -> no | D91: dms_060301_checkvalue | E91: =IFERROR(IF(INDEX(dms_060301_Avg_Duration_Sustained_Int_Values,1,1)<>"","yes","no"),"no")
C92: =IF(AND(dms_Model="CA",(dms_060301_checkvalue="no")),"error - NR not present","no errors") -> no errors | E92: =IF(AND(dms_Model="CA",(dms_060301_checkvalue="no")),"error - NR not present","no errors")
B93: Table 6.3.1 - last row reference | C93: =IFERROR(IF(dms_Model="CA",LOOKUP(2,1/(dms_060301_Avg_Duration_Sustained_Int_Values<>""),(ROW(dms_060301_Avg_Duration_Sustained_Int_Values))),"not a CA"),"6.3 not present") -> not a CA | D93: dms_060301_LastRow | E93: =IFERROR(IF(dms_Model="CA",LOOKUP(2,1/(dms_060301_Avg_Duration_Sustained_Int_Values<>""),(ROW(dms_060301_Avg_Duration_Sustained_Int_Values))),"not a CA"),"6.3 not present")
B94: Table 6.3.1 - max number rows | C94: =IFERROR(IF(dms_Model="CA",(dms_060301_LastRow-15),"not a CA"),"error") -> not a CA | D94: dms_060301_MaxRows | E94: =IFERROR(IF(dms_Model="CA",(dms_060301_LastRow-15),"not a CA"),"error")
B95: Table 6.6.3 - Public lighting repair - no. business days | C95: =INDEX(dms_663_List,MATCH(dms_TradingName,dms_TradingName_List)) -> 5 | D95: dms_663 | E95: =INDEX(dms_663_List,MATCH(dms_TradingName,dms_TradingName_List))
B96: ARR or RESET RINS
B97: How many rows in tables 6.1 or 6.7? (leap year?) | C97: insert dms_LeapYear NR if required | E97: 'dms_LeapYear is used to determine dms_060701_Max_Rows BUT it is only found on worksheet 6.1 or 6.7 and the date value in the cell is used to determine whether it is a leap year
B98: Is dms_LeapYear named range present? | C98: =IFERROR(IF(dms_LeapYear,"yes"),"no") -> no
B99: Table 6.7.1 - includes a leap year? | C99: =IFERROR(IF(MONTH(DATE(YEAR(dms_LeapYear),2,29))=2,"is a leap year","not a leap year"), "dms_LeapYear not present") -> dms_LeapYear not present | D99: dms_LeapYear_Result | E99: =IFERROR(IF(MONTH(DATE(YEAR(dms_LeapYear),2,29))=2,"is a leap year","not a leap year"),"dms_LeapYear not present")
B100: MaxRows if Reset and leap year | C100: =IF(dms_LeapYear_Result="is a leap year",1827,1826) -> 1826 | D100: dms_060701_Reset_MaxRows | E100: =IF(dms_LeapYear_Result="is a leap year",1827,1826) | H100: number of days present in Reset RIN table
B101: MaxRows if ARR and leap year | C101: =IF(dms_LeapYear_Result="is a leap year",366,365) -> 365 | D101: dms_060701_ARR_MaxRows | E101: =IF(dms_LeapYear_Result="is a leap year",366,365) | H101: number of days present in ARR RIN table
B102: Table 6.7.1 - Max Rows (leap year/ non leap year) | C102: =IF(dms_Model="ARR",dms_060701_ARR_MaxRows,IF(dms_Model="Reset",dms_060701_Reset_MaxRows,"not a relevant RIN type")) -> 1826 | D102: dms_060701_MaxRows | E102: =IF(dms_Model="ARR",dms_060701_ARR_MaxRows,IF(dms_Model="Reset",dms_060701_Reset_MaxRows,"not a relevant RIN type"))
B103: How many columns in 6.7? (4 or 5 feeder categories) | C103: =IF(dms_FifthFeeder_flag_NSP="NO","This NSP has only 4 feeder categories","This NSP has 5 feeder categories") -> This NSP has only 4 feeder categories
B104: Table 6.7.1 - Last column (# of feeder categories > 4) | C104: =IF(dms_FifthFeeder_flag_NSP="NO",10,12) -> 10 | D104: dms_060701_MaxCols | E104: =IF(dms_FifthFeeder_flag_NSP="NO",8,10)
B105: Table 6.7.1 - Number of offset rows | C105: =IF(dms_Model="ARR",15,9) -> 9 | D105: dms_060701_OffsetRows | E105: =IF(dms_Model="ARR",15,9)
B106: Start date for telephone answering in 6.1 or 6.7? | E106: Using 060101 as naming standard not 060701 for start dates
B107: Table 6.1.1 and 6.7.1 - Start Date as Text | C107: =IF(dms_SingleYearModel="yes",(CONCATENATE(IF(LEN(CRY)=4,"1-Jan-","1-Jul-"),LEFT(CRY,4))),(CONCATENATE(IF(LEN(PRCP_y4)=4,"1-Jan-","1-Jul-"),LEFT(PRCP_y4,4)))) -> 1-Jul-2020 | D107: dms_060101_StartDateTxt | E107: =IF(SUM(dms_SingleYear_Model)>1,(CONCATENATE(IF(LEN(CRY)=4,"1-Jan-","1-Jul-"),LEFT(CRY,4))),(CONCATENATE(IF(LEN(CRCP_y4)=4,"1-Jan-","1-Jul-"),LEFT(CRCP_y4,4))))
B108: Table 6.1.1 and 6.7.1 - Start Date as Date Value | C108: =DATEVALUE(dms_060701_StartDateTxt) -> 44013 | D108: dms_060101_StartDateVal | E108: =DATEVALUE(dms_060701_StartDateTxt)
B109: ARRs
B110: How many rows in table 6.8? | C110: insert dms_060801_StartCell NR if required | E110: dms_060801_StartCell is only found on worksheet 6.8 and is used to determine the starting date for the date range
B111: Is dms_060801_StartCell named range present? | C111: =IFERROR(IF((ROW(dms_060801_StartCell)-1)=1,"yes","yes"),"no") -> no | D111: Must be present for ARRs | E111: =IFERROR(IF((ROW(dms_060801_StartCell)-1)=1,"yes","yes"),"no")
B112: Table 6.8 - Number of offset rows | C112: 12 | D112: dms_0608_OffsetRows | E112: =IFERROR(IF(dms_Model="ARR",(ROW(dms_060801_StartCell)-1),"not an ARR"),"6.8 error")
B113: Table 6.8 - Last row | C113: =IFERROR(IF(dms_060801_StartCell<>"",IF(dms_Model="ARR",(LOOKUP(2,1/(dms_060801_01_Values<>""),(ROW(dms_060801_01_Values)))),"not an ARR"),0),"0") -> 0 | D113: dms_0608_LastRow | E113: =IFERROR(IF(dms_060801_StartCell<>"",IF(dms_Model="ARR",(LOOKUP(2,1/(dms_060801_01_Values<>""),(ROW(dms_060801_01_Values)))),"not an ARR"),0),"0")
B114: Table 6.8 - MaxRows | C114: =IFERROR(IF(dms_Model="ARR",(MAX(0,dms_0608_LastRow-dms_0608_OffsetRows)),"not an ARR"),"0") -> not an ARR | D114: dms_060801_MaxRows | E114: =IFERROR(IF(dms_Model="ARR",(MAX(0,dms_0608_LastRow-dms_0608_OffsetRows)),"not an ARR"),"0")
B115: TNSP RESET RINS
B116: Table 7.9.4 only appears in TNSPs Reset RIN
B117: Table 7.9.4 - first year | C117: =LEFT(PRCP_y3,4) -> 2019 | D117: dms_070904_Start_Year | E117: =LEFT(PRCP_y3,4)
B119: MISC
B120: Distribution Determination Reference | C120: - | D120: dms_DeterminationRef
B121: Public lighting NSP? | C121: =INDEX(dms_Public_Lighting_List,MATCH(dms_TradingName,dms_TradingName_List)) -> NO | D121: dms_Public_Lighting | E121: =INDEX(dms_Public_Lighting_List,MATCH(dms_TradingName,dms_TradingName_List))
B122: CBD Feeder for this business | C122: =INDEX(dms_CBD_flag,MATCH(dms_TradingName,dms_TradingName_List)) -> NO | D122: dms_CBD_flag_NSP
B123: Urban Feeder for this business | C123: =INDEX(dms_Urban_flag,MATCH(dms_TradingName,dms_TradingName_List)) -> NO | D123: dms_Urban_flag_NSP
B124: Short rural Feeder for this business | C124: =INDEX(dms_ShortRural_flag,MATCH(dms_TradingName,dms_TradingName_List)) -> NO | D124: dms_ShortRural_flag_NSP
B125: Long rural Feeder for this business | C125: =INDEX(dms_LongRural_flag,MATCH(dms_TradingName,dms_TradingName_List)) -> NO | D125: dms_LongRural_flag_NSP
B126: Fifth Feeder Category (eg. TasNetworks (D)) | C126: =INDEX(dms_FeederType_5_flag,MATCH(dms_TradingName,dms_TradingName_List)) -> NO | D126: dms_FifthFeeder_flag_NSP | E126: =INDEX(dms_FeederType_5_flag,MATCH(dms_TradingName,dms_TradingName_List))
B128: DISCARD FILES
B129: discard this record? | C129: NO | D129: dms_DISCARD | E129: If record is to be discarded from DB set this flag to YES
B131: SUBSET FILES
B132: Is this Submission File a Subset File | C132: NO | D132: dms_Partial
B135: REGULATORY YEARS FOR MULTI RYE SUBMISSIONS
B136: Multiple RYE flag | C136: NO | D136: dms_Multi_RYE_flag
C137: Manually specify RYE | D137: Named ranges to apply
C138: 2013 | D138: dms_RYE_01
C139: 2014 | D139: dms_RYE_02
C140: 2015 | D140: dms_RYE_03
C141: 2016 | D141: dms_RYE_04
C142: 2017 | D142: dms_RYE_05
C143: 2018 | D143: dms_RYE_06
C144: 2019 | D144: dms_RYE_07
C145: 2020 | D145: dms_RYE_08
C146: 2021 | D146: dms_RYE_09
